{"text_format":"1","workbook":"xlsx","n_sheets":5,"sheets":["INFORMAÇÕES GERAIS","EMPRESAS ELABORADORAS","LISTA","LISTA_PATRIMÔNIO","LISTAS"],"not_rendered":{"charts":0,"images":1,"macros":1,"external_links":0,"defined_names":58,"comments":0,"pivot_tables":0},"unopened":[],"bounds":{"document_bytes":16777216,"sheet_cells":100000,"rows_first":2000,"rows_last":500,"rows_between":2000,"halvings":0,"cell_chars":16384,"cell_head_chars":4096},"cells_cut":0,"cells_raw":0,"read":"whole","date_system":"1900"}

{"sheet":"INFORMAÇÕES GERAIS","index":0,"n_rows":877,"n_cols":51,"rows_kept":877,"cut":false,"hidden":false,"merged":[[759,18,759,21],[759,22,759,25],[759,26,759,28],[750,18,750,21],[750,22,750,25],[750,26,750,28],[751,18,751,21],[751,22,751,25],[751,26,751,28],[752,18,752,21],[752,22,752,25],[752,26,752,28],[753,18,753,21],[753,22,753,25],[753,26,753,28],[754,18,754,21],[754,22,754,25],[754,26,754,28],[755,18,755,21],[755,22,755,25],[755,26,755,28],[743,26,743,28],[744,18,744,21],[744,22,744,25],[744,26,744,28],[745,18,745,21],[745,22,745,25],[745,26,745,28],[746,18,746,21],[746,22,746,25],[746,26,746,28],[747,18,747,21],[747,22,747,25],[747,26,747,28],[748,18,748,21],[748,22,748,25],[748,26,748,28],[749,18,749,21],[749,22,749,25],[749,26,749,28],[731,26,731,28],[732,18,732,21],[732,22,732,25],[732,26,732,28],[733,18,733,21],[733,22,733,25],[733,26,733,28],[734,18,734,21],[734,22,734,25],[734,26,734,28],[735,18,735,21],[735,22,735,25],[735,26,735,28],[736,18,736,21],[736,22,736,25],[736,26,736,28],[737,18,737,21],[737,22,737,25],[737,26,737,28],[647,18,647,21],[647,22,647,25],[647,26,647,28],[648,18,648,21],[648,22,648,25],[648,26,648,28],[649,18,649,21],[649,22,649,25],[649,26,649,28],[717,18,717,21],[717,22,717,25],[717,26,717,28],[718,18,718,21],[718,22,718,25],[718,26,718,28],[719,18,719,21],[719,22,719,25],[719,26,719,28],[641,18,641,21],[641,22,641,25],[641,26,641,28],[642,18,642,21],[642,22,642,25],[642,26,642,28],[643,18,643,21],[643,22,643,25],[643,26,643,28],[644,18,644,21],[644,22,644,25],[644,26,644,28],[645,18,645,21],[645,22,645,25],[645,26,645,28],[646,18,646,21],[646,22,646,25],[646,26,646,28],[635,22,635,25],[635,26,635,28],[636,18,636,21],[636,22,636,25],[636,26,636,28],[637,18,637,21],[637,22,637,25],[637,26,637,28],[638,18,638,21],[638,22,638,25],[638,26,638,28],[639,18,639,21],[639,22,639,25],[639,26,639,28],[640,18,640,21],[640,22,640,25],[640,26,640,28],[612,26,612,28],[613,26,613,28],[614,26,614,28],[615,26,615,28],[616,26,616,28],[617,26,617,28],[618,26,618,28],[619,26,619,28],[620,26,620,28],[621,26,621,28],[622,26,622,28],[623,26,623,28],[624,26,624,28],[625,26,625,28],[626,26,626,28],[627,26,627,28],[629,26,629,28],[630,26,630,28],[631,26,631,28],[632,26,632,28],[633,26,633,28],[634,26,634,28],[720,26,720,28],[721,26,721,28],[722,26,722,28],[723,26,723,28],[724,26,724,28],[725,26,725,28],[726,26,726,28],[727,26,727,28],[728,26,728,28],[625,18,625,21],[626,18,626,21],[627,18,627,21],[608,22,608,25],[609,22,609,25],[610,22,610,25],[611,22,611,25],[612,22,612,25],[613,22,613,25],[614,22,614,25],[615,22,615,25],[616,22,616,25],[617,22,617,25],[618,22,618,25],[619,22,619,25],[620,22,620,25],[621,22,621,25],[622,22,622,25],[623,22,623,25],[624,22,624,25],[625,22,625,25],[626,22,626,25],[627,22,627,25],[629,18,629,21],[629,22,629,25],[630,18,630,21],[630,22,630,25],[631,18,631,21],[631,22,631,25],[632,18,632,21],[632,22,632,25],[710,12,710,15],[710,16,710,18],[710,19,710,22],[710,23,710,27],[711,12,711,15],[711,16,711,18],[711,19,711,22],[711,23,711,27],[712,12,712,15],[712,16,712,18],[712,19,712,22],[712,23,712,27],[607,18,607,21],[607,22,607,25],[607,26,607,28],[608,18,608,21],[609,18,609,21],[610,18,610,21],[611,18,611,21],[612,18,612,21],[613,18,613,21],[614,18,614,21],[615,18,615,21],[616,18,616,21],[617,18,617,21],[618,18,618,21],[619,18,619,21],[620,18,620,21],[621,18,621,21],[622,18,622,21],[623,18,623,21],[705,12,705,15],[705,16,705,18],[705,19,705,22],[705,23,705,27],[706,12,706,15],[706,16,706,18],[706,19,706,22],[706,23,706,27],[707,12,707,15],[707,16,707,18],[707,19,707,22],[707,23,707,27],[708,12,708,15],[708,16,708,18],[708,19,708,22],[708,23,708,27],[709,12,709,15],[709,16,709,18],[709,19,709,22],[709,23,709,27],[696,12,696,15],[696,16,696,18],[696,19,696,22],[696,23,696,27],[697,12,697,15],[697,16,697,18],[697,19,697,22],[697,23,697,27],[698,12,698,15],[698,16,698,18],[698,19,698,22],[698,23,698,27],[699,12,699,15],[699,16,699,18],[699,19,699,22],[699,23,699,27],[700,12,700,15],[700,16,700,18],[700,19,700,22],[700,23,700,27],[684,12,684,15],[684,16,684,18],[684,19,684,22],[684,23,684,27],[685,12,685,15],[685,16,685,18],[685,19,685,22],[685,23,685,27],[686,12,686,15],[686,16,686,18],[686,19,686,22],[686,23,686,27],[687,12,687,15],[687,16,687,18],[687,19,687,22],[687,23,687,27],[688,12,688,15],[688,16,688,18],[688,19,688,22],[688,23,688,27],[675,12,675,15],[675,16,675,18],[675,19,675,22],[675,23,675,27],[676,12,676,15],[676,16,676,18],[676,19,676,22],[676,23,676,27],[677,12,677,15],[677,16,677,18],[677,19,677,22],[677,23,677,27],[678,12,678,15],[678,16,678,18],[678,19,678,22],[678,23,678,27],[679,12,679,15],[679,16,679,18],[679,19,679,22],[679,23,679,27],[670,12,670,15],[670,16,670,18],[670,19,670,22],[670,23,670,27],[671,12,671,15],[671,16,671,18],[671,19,671,22],[671,23,671,27],[672,12,672,15],[672,16,672,18],[672,19,672,22],[672,23,672,27],[673,12,673,15],[673,16,673,18],[673,19,673,22],[673,23,673,27],[674,12,674,15],[674,16,674,18],[674,19,674,22],[674,23,674,27],[597,12,597,15],[597,16,597,18],[597,19,597,22],[597,23,597,27],[598,12,598,15],[598,16,598,18],[598,19,598,22],[598,23,598,27],[599,12,599,15],[599,16,599,18],[599,19,599,22],[599,23,599,27],[600,12,600,15],[600,16,600,18],[600,19,600,22],[600,23,600,27],[601,12,601,15],[601,16,601,18],[601,19,601,22],[601,23,601,27],[592,12,592,15],[592,16,592,18],[592,19,592,22],[592,23,592,27],[593,12,593,15],[593,16,593,18],[593,19,593,22],[593,23,593,27],[594,12,594,15],[594,16,594,18],[594,19,594,22],[594,23,594,27],[595,12,595,15],[595,16,595,18],[595,19,595,22],[595,23,595,27],[596,12,596,15],[596,16,596,18],[596,19,596,22],[596,23,596,27],[587,12,587,15],[587,16,587,18],[587,19,587,22],[587,23,587,27],[588,12,588,15],[588,16,588,18],[588,19,588,22],[588,23,588,27],[589,12,589,15],[589,16,589,18],[589,19,589,22],[589,23,589,27],[590,12,590,15],[590,16,590,18],[590,19,590,22],[590,23,590,27],[591,12,591,15],[591,16,591,18],[591,19,591,22],[591,23,591,27],[582,12,582,15],[582,16,582,18],[582,19,582,22],[582,23,582,27],[583,12,583,15],[583,16,583,18],[583,19,583,22],[583,23,583,27],[584,12,584,15],[584,16,584,18],[584,19,584,22],[584,23,584,27],[585,12,585,15],[585,16,585,18],[585,19,585,22],[585,23,585,27],[586,12,586,15],[586,16,586,18],[586,19,586,22],[586,23,586,27],[580,19,580,22],[561,23,561,27],[562,23,562,27],[563,23,563,27],[565,23,565,27],[566,23,566,27],[567,23,567,27],[568,23,568,27],[569,23,569,27],[570,23,570,27],[571,23,571,27],[572,23,572,27],[573,23,573,27],[574,23,574,27],[575,23,575,27],[576,23,576,27],[577,23,577,27],[578,23,578,27],[579,23,579,27],[580,23,580,27],[564,23,564,27],[568,16,568,18],[569,16,569,18],[570,16,570,18],[571,16,571,18],[572,16,572,18],[573,16,573,18],[574,16,574,18],[575,16,575,18],[576,16,576,18],[577,16,577,18],[578,16,578,18],[579,16,579,18],[580,16,580,18],[561,19,561,22],[562,19,562,22],[563,19,563,22],[564,19,564,22],[565,19,565,22],[566,19,566,22],[567,19,567,22],[568,19,568,22],[569,19,569,22],[570,19,570,22],[571,19,571,22],[572,19,572,22],[573,19,573,22],[574,19,574,22],[575,19,575,22],[576,19,576,22],[577,19,577,22],[578,19,578,22],[579,19,579,22],[560,23,560,27],[560,12,560,15],[560,16,560,18],[560,19,560,22],[561,12,561,15],[562,12,562,15],[563,12,563,15],[564,12,564,15],[565,12,565,15],[566,12,566,15],[567,12,567,15],[568,12,568,15],[569,12,569,15],[570,12,570,15],[571,12,571,15],[572,12,572,15],[573,12,573,15],[574,12,574,15],[575,12,575,15],[576,12,576,15],[577,12,577,15],[578,12,578,15],[579,12,579,15],[580,12,580,15],[561,16,561,18],[562,16,562,18],[563,16,563,18],[564,16,564,18],[565,16,565,18],[566,16,566,18],[567,16,567,18],[652,13,652,20],[652,21,652,31],[61,0,61,44],[421,17,421,28],[422,17,422,28],[230,0,230,44],[231,0,231,44],[4,5,4,15],[4,0,4,4],[818,4,818,8],[800,4,800,8],[830,4,830,8],[859,0,859,23],[869,20,869,44],[511,39,511,44],[451,26,451,32],[171,36,171,39],[171,40,171,44],[171,0,171,35],[225,36,225,39],[225,40,225,44],[433,40,433,44],[232,17,232,28],[233,17,233,28],[234,17,234,28],[235,17,235,28],[236,17,236,28],[237,17,237,28],[238,17,238,28],[240,17,240,28],[241,17,241,28],[652,0,652,12],[652,32,652,44],[874,20,876,24],[866,0,867,44],[871,0,872,16383],[849,0,849,26],[860,1,862,43],[794,4,794,13],[844,0,844,44],[845,0,847,44],[848,0,848,3],[848,4,848,14],[854,0,854,44],[855,0,857,44],[858,0,858,3],[858,4,858,14],[836,4,836,21],[842,4,842,32],[850,1,852,43],[806,4,806,16],[833,0,835,44],[836,0,836,3],[838,0,838,44],[832,0,832,44],[839,0,841,44],[842,0,842,3],[812,0,812,3],[814,0,814,44],[815,0,817,44],[818,0,818,3],[812,4,812,8],[826,0,826,44],[827,0,829,44],[830,0,830,3],[528,33,528,38],[528,39,528,44],[532,7,532,29],[532,0,532,6],[531,39,531,44],[531,33,531,38],[248,17,248,28],[249,17,249,28],[250,17,250,28],[251,17,251,28],[252,17,252,28],[253,17,253,28],[254,17,254,28],[425,17,425,28],[423,17,423,28],[333,17,333,28],[334,17,334,28],[335,17,335,28],[336,17,336,28],[337,17,337,28],[338,17,338,28],[339,17,339,28],[340,17,340,28],[341,17,341,28],[342,17,342,28],[343,17,343,28],[344,17,344,28],[353,17,353,28],[354,17,354,28],[409,17,409,28],[410,17,410,28],[411,17,411,28],[523,0,523,6],[523,7,523,29],[523,30,523,32],[523,33,523,38],[523,39,523,44],[520,0,520,6],[524,0,524,6],[524,7,524,29],[524,30,524,32],[524,33,524,38],[524,39,524,44],[532,30,532,32],[532,33,532,38],[532,39,532,44],[525,0,525,6],[525,7,525,29],[525,30,525,32],[525,33,525,38],[525,39,525,44],[526,0,526,6],[526,7,526,29],[526,30,526,32],[526,33,526,38],[526,39,526,44],[527,0,527,6],[527,7,527,29],[527,30,527,32],[527,33,527,38],[527,39,527,44],[528,0,528,6],[528,7,528,29],[517,30,517,32],[517,33,517,38],[517,39,517,44],[518,0,518,6],[518,7,518,29],[518,30,518,32],[518,33,518,38],[518,39,518,44],[528,30,528,32],[519,0,519,6],[519,7,519,29],[519,30,519,32],[519,33,519,38],[519,39,519,44],[520,7,520,29],[520,30,520,32],[520,33,520,38],[520,39,520,44],[521,0,521,6],[521,7,521,29],[521,30,521,32],[521,33,521,38],[521,39,521,44],[522,0,522,6],[522,7,522,29],[522,30,522,32],[522,33,522,38],[522,39,522,44],[479,0,479,6],[479,7,479,12],[479,13,479,18],[479,19,479,25],[479,26,479,32],[479,33,479,38],[479,39,479,44],[480,0,480,6],[480,7,480,12],[480,13,480,18],[480,19,480,25],[480,26,480,32],[480,33,480,38],[480,39,480,44],[503,0,503,6],[503,7,503,29],[503,30,503,32],[503,33,503,38],[503,39,503,44],[497,30,497,32],[497,33,497,38],[497,39,497,44],[498,0,498,6],[498,7,498,29],[498,30,498,32],[498,33,498,38],[498,39,498,44],[499,0,499,6],[499,7,499,29],[499,30,499,32],[499,33,499,38],[499,39,499,44],[476,0,476,6],[476,7,476,12],[476,13,476,18],[476,19,476,25],[476,26,476,32],[476,33,476,38],[476,39,476,44],[477,0,477,6],[477,7,477,12],[477,13,477,18],[477,19,477,25],[477,26,477,32],[477,33,477,38],[477,39,477,44],[478,0,478,6],[478,7,478,12],[478,13,478,18],[478,19,478,25],[478,26,478,32],[478,33,478,38],[478,39,478,44],[473,0,473,6],[473,7,473,12],[473,13,473,18],[473,19,473,25],[473,26,473,32],[473,33,473,38],[473,39,473,44],[474,0,474,6],[474,7,474,12],[474,13,474,18],[474,19,474,25],[474,26,474,32],[474,33,474,38],[474,39,474,44],[475,0,475,6],[475,7,475,12],[475,13,475,18],[475,19,475,25],[475,26,475,32],[475,33,475,38],[475,39,475,44],[470,0,470,6],[470,7,470,12],[470,13,470,18],[470,19,470,25],[470,26,470,32],[470,33,470,38],[470,39,470,44],[471,0,471,6],[471,7,471,12],[471,13,471,18],[471,19,471,25],[471,26,471,32],[471,33,471,38],[471,39,471,44],[472,0,472,6],[472,7,472,12],[472,13,472,18],[472,19,472,25],[472,26,472,32],[472,33,472,38],[472,39,472,44],[467,0,467,6],[467,7,467,12],[467,13,467,18],[467,19,467,25],[467,26,467,32],[467,33,467,38],[467,39,467,44],[468,0,468,6],[468,7,468,12],[468,13,468,18],[468,19,468,25],[468,26,468,32],[468,33,468,38],[468,39,468,44],[469,0,469,6],[469,7,469,12],[469,13,469,18],[469,19,469,25],[469,26,469,32],[469,33,469,38],[469,39,469,44],[464,0,464,6],[464,7,464,12],[464,13,464,18],[464,19,464,25],[464,26,464,32],[464,33,464,38],[464,39,464,44],[465,0,465,6],[465,7,465,12],[465,13,465,18],[465,19,465,25],[465,26,465,32],[465,33,465,38],[465,39,465,44],[466,0,466,6],[466,7,466,12],[466,13,466,18],[466,19,466,25],[466,26,466,32],[466,33,466,38],[466,39,466,44],[461,0,461,6],[461,7,461,12],[461,13,461,18],[461,19,461,25],[461,26,461,32],[461,33,461,38],[461,39,461,44],[462,0,462,6],[462,7,462,12],[462,13,462,18],[462,19,462,25],[462,26,462,32],[462,33,462,38],[462,39,462,44],[463,0,463,6],[463,7,463,12],[463,13,463,18],[463,19,463,25],[463,26,463,32],[463,33,463,38],[463,39,463,44],[457,0,457,6],[457,7,457,12],[457,13,457,18],[457,19,457,25],[457,26,457,32],[457,33,457,38],[457,39,457,44],[458,0,458,6],[458,7,458,12],[458,13,458,18],[458,19,458,25],[458,26,458,32],[458,33,458,38],[458,39,458,44],[459,0,459,6],[459,7,459,12],[459,13,459,18],[459,19,459,25],[459,26,459,32],[459,33,459,38],[459,39,459,44],[454,0,454,6],[454,7,454,12],[454,13,454,18],[454,19,454,25],[454,26,454,32],[454,33,454,38],[454,39,454,44],[455,0,455,6],[455,7,455,12],[455,13,455,18],[455,19,455,25],[455,26,455,32],[455,33,455,38],[455,39,455,44],[456,0,456,6],[456,7,456,12],[456,13,456,18],[456,19,456,25],[456,26,456,32],[456,33,456,38],[456,39,456,44],[212,0,212,4],[212,5,212,29],[212,30,212,32],[212,33,212,35],[212,36,212,39],[212,40,212,44],[429,32,429,34],[429,35,429,39],[429,0,429,5],[429,29,429,31],[421,32,421,34],[421,35,421,39],[421,40,421,44],[422,0,422,5],[422,29,422,31],[422,32,422,34],[433,35,433,39],[430,17,430,28],[412,17,412,28],[413,17,413,28],[418,17,418,28],[419,17,419,28],[420,17,420,28],[391,17,391,28],[429,40,429,44],[424,0,424,5],[424,29,424,31],[424,32,424,34],[424,35,424,39],[424,40,424,44],[425,0,425,5],[425,29,425,31],[210,40,210,44],[206,33,206,35],[206,36,206,39],[206,40,206,44],[451,33,451,38],[451,39,451,44],[431,17,431,28],[432,17,432,28],[377,17,377,28],[378,17,378,28],[379,17,379,28],[380,17,380,28],[381,17,381,28],[382,17,382,28],[383,17,383,28],[384,17,384,28],[385,17,385,28],[386,17,386,28],[387,17,387,28],[388,17,388,28],[239,17,239,28],[242,17,242,28],[243,17,243,28],[244,17,244,28],[245,17,245,28],[207,33,207,35],[207,36,207,39],[206,5,206,29],[206,30,206,32],[351,17,351,28],[352,17,352,28],[409,29,409,31],[192,0,192,4],[192,5,192,29],[192,30,192,32],[192,33,192,35],[192,36,192,39],[192,40,192,44],[193,0,193,4],[193,5,193,29],[193,30,193,32],[193,33,193,35],[193,40,193,44],[197,40,197,44],[198,0,198,4],[198,5,198,29],[198,30,198,32],[198,33,198,35],[198,36,198,39],[198,40,198,44],[194,0,194,4],[194,5,194,29],[194,30,194,32],[194,33,194,35],[194,36,194,39],[194,40,194,44],[196,40,196,44],[197,0,197,4],[197,5,197,29],[197,30,197,32],[197,33,197,35],[197,36,197,39],[188,0,188,4],[188,5,188,29],[188,30,188,32],[188,33,188,35],[188,36,188,39],[188,40,188,44],[189,0,189,4],[189,5,189,29],[189,30,189,32],[189,33,189,35],[189,36,189,39],[189,40,189,44],[190,0,190,4],[190,5,190,29],[190,30,190,32],[190,33,190,35],[190,36,190,39],[190,40,190,44],[191,0,191,4],[191,5,191,29],[191,30,191,32],[191,33,191,35],[191,36,191,39],[195,0,195,4],[195,5,195,29],[195,30,195,32],[195,33,195,35],[195,36,195,39],[195,40,195,44],[191,40,191,44],[422,40,422,44],[349,0,349,5],[430,0,430,5],[430,29,430,31],[430,32,430,34],[430,35,430,39],[430,40,430,44],[204,0,204,4],[204,5,204,29],[204,30,204,32],[204,33,204,35],[204,36,204,39],[204,40,204,44],[205,0,205,4],[205,5,205,29],[205,30,205,32],[205,33,205,35],[205,36,205,39],[205,40,205,44],[206,0,206,4],[211,0,211,4],[211,5,211,29],[211,30,211,32],[211,33,211,35],[211,36,211,39],[211,40,211,44],[209,40,209,44],[207,0,207,4],[207,5,207,29],[207,30,207,32],[429,17,429,28],[424,17,424,28],[428,35,428,39],[428,40,428,44],[423,0,423,5],[424,6,424,16],[425,6,425,16],[426,6,426,16],[427,6,427,16],[428,6,428,16],[207,40,207,44],[208,0,208,4],[208,5,208,29],[210,0,210,4],[210,5,210,29],[210,30,210,32],[210,33,210,35],[420,40,420,44],[421,29,421,31],[422,35,422,39],[349,17,349,28]],"merged_total":5020,"flags":["merged_cut"]}
[]
[]
[]
[]
["Planilha:",null,null,null,null,"ABERTURA DE CONTA"]
["DADOS DO ASSOCIADO",null,null,null,null,null,null,null,null,null,null,null,null,null,null,null,null,null,null,null,null,null,null,null,null,null,null,null,null,null,null,null,null,null,null,null,null,null,null,null,null,null,null,null,null,{"$f":"IF(OR(F10=\"\",AJ10=\"\",F12=\"\",AH12=\"\",G14=\"\",R14=\"\",AC14=\"\"),\"AUSENTE\",\"OK\")","v":"AUSENTE"}]
[]
["TIPO DE PESSOA:"]
[]
["NOME:",null,null,null,null,null,null,null,null,null,null,null,null,null,null,null,null,null,null,null,null,null,null,null,null,null,null,null,null,null,null,null,"CPF:"]
[]
["ENDEREÇO:",null,null,null,null,null,null,null,null,null,null,null,null,null,null,null,null,null,null,null,null,null,null,null,null,null,null,null,null,"CIDADE:"]
[]
["TELEFONES:",null,null,null,null,null,null,null,null,null,null,null,null,null,null,null,null,null,null,null,null,null,null,null,"EMAIL:"]
[]
["NÍVEL DE ESCOLARIDADE:",null,null,null,null,null,null,null,null,null,null,null,null,null,null,null,null,null,null,null,null,null,null,null,null,null,null,null,null,null,"ESTADO CIVIL:"]
[]
["NOME DO CÔNJUGE:",null,null,null,null,null,null,null,null,null,null,null,null,null,null,null,null,null,null,null,null,null,null,null,null,null,null,null,null,null,null,null,"CPF:"]
[]
[]
["NOME:",null,null,null,null,null,null,null,null,null,null,null,null,null,null,null,null,null,null,null,null,null,null,null,null,null,null,null,null,null,null,null,"CNPJ:"]
[]
["ENDEREÇO:",null,null,null,null,null,null,null,null,null,null,null,null,null,null,null,null,null,null,null,null,null,null,null,null,null,null,null,null,"CIDADE:"]
[]
["CONTA CORRENTE:",null,null,null,null,null,null,null,null,null,null,null,"TELEFONE:",null,null,null,null,null,null,null,null,null,null,null,"EMAIL:"]
[]
["TIPO EMPRESA:",null,null,null,null,null,null,null,null,null,null,null,null,null,null,null,null,null,null,"CAPITAL SOCIAL:"]
[]
["QUADRO SOCIETÁRIO"]
[]
["SÓCIOS"]
["RELACIONAMENTO",null,null,null,null,null,null,null,"NOME",null,null,null,null,null,null,null,null,null,null,null,null,null,null,null,null,null,null,null,null,null,"CPF / CNPJ",null,null,null,null,null,"PERCENTUAL DO CAPITAL SOCIAL (%)"]
[null,null,null,null,null,null,null,null,null,null,null,null,null,null,null,null,null,null,null,null,null,null,null,null,null,null,null,null,null,null,null,null,null,null,null,null,null,null,null,null,null,null,null,null,null,null,{"$f":"SUM(AV32:AV51)","v":1},1]
[]
[]
[]
[]
[]
[]
[]
[]
[]
[]
[]
[]
[]
[]
[]
[]
[]
[]
[]
["REPONSÁVEL PELO LEVANTAMENTO",null,null,null,null,null,null,null,null,null,null,null,null,null,null,null,null,null,null,null,null,null,null,null,null,null,null,null,null,null,null,null,null,null,null,null,null,null,null,null,null,null,null,null,null,{"$f":"IF(OR(F55=\"\",AI55=\"\",F57=\"\",AH57=\"\",F59=\"\",X59=\"\",H61=\"\",AI61=\"\"),\"AUSENTE\",\"OK\")","v":"AUSENTE"}]
[]
["ELABORADOR:",null,null,null,null,null,null,null,null,null,null,null,null,null,null,null,null,null,null,null,null,null,null,null,null,null,null,null,null,null,"CPF/CNPJ:",null,null,null,{"$f":"IFERROR(VLOOKUP(F55,'EMPRESAS ELABORADORAS'!A2:F13,2,0),\"-\")","v":"-"}]
[]
["ENDEREÇO:",null,null,null,null,{"$f":"IFERROR(VLOOKUP(F55,'EMPRESAS ELABORADORAS'!A2:F13,3,0),\"-\")","v":"-"},null,null,null,null,null,null,null,null,null,null,null,null,null,null,null,null,null,null,null,null,null,null,null,"CIDADE:",null,null,null,{"$f":"IFERROR(VLOOKUP(F55,'EMPRESAS ELABORADORAS'!A2:F13,4,0),\"-\")","v":"-"}]
[]
["TELEFONE:",null,null,null,null,{"$f":"IFERROR(VLOOKUP(F55,'EMPRESAS ELABORADORAS'!A2:F13,5,0),\"-\")","v":"-"},null,null,null,null,null,null,null,null,null,null,null,null,null,"EMAIL:",null,null,null,{"$f":"IFERROR(VLOOKUP(F55,'EMPRESAS ELABORADORAS'!A2:F13,6,0),\"-\")","v":"-"}]
[]
["RESP. TÉCNICO:",null,null,null,null,null,null,null,null,null,null,null,null,null,null,null,null,null,null,null,null,null,null,null,null,null,null,null,null,null,"CREA / CFTA:"]
[]
["Observações"]
[]
[]
["LEVANTAMENTO PATRIMONIAL",null,null,null,null,null,null,null,null,null,null,null,null,null,null,null,null,null,null,null,null,null,null,null,null,null,null,null,null,null,null,null,null,null,null,null,null,null,null,null,null,null,null,null,null,{"$f":"IF(OR(F68=\"\",AI68=\"\",F71=\"\",AH71=\"\",F73=\"\",X73=\"\",H75=\"\",AI75=\"\"),\"AUSENTE\",\"OK\")","v":"AUSENTE"}]
[]
["BENS IMÓVEIS"]
[]
["IMÓVEIS RURAIS E URBANOS"]
["REF",null,"TIPO",null,null,"DESCRIÇÃO",null,null,null,null,null,null,null,null,null,null,null,null,null,null,null,"PARTICIPAÇÃO",null,null,null,null,null,null,"DOCUMENTO",null,null,null,null,"PERCEN.\n%",null,null,"VALOR BEM\n (R$)",null,null,null,"VALOR %\n(R$)"]
[1,null,null,null,null,null,null,null,null,null,null,null,null,null,null,null,null,null,null,null,null,null,null,null,null,null,null,null,null,null,null,null,null,null,null,null,null,null,null,null,{"$f":"IF(OR(AH72=\"\",AK72=\"\"),\"\",AK72*AH72)","v":""},null,null,null,null,null,{"$f":"SUM(AV72:AV171)","v":1},1,null,{"$f":"IF(A72<>\"\",_xlfn.CONCAT(\"IMÓVEL \",A72),\"\")","v":"IMÓVEL 1"},{"$f":"_xlfn.CONCAT(\"AX69:AX\"&(69+CONT_IMOVEIS-1))","v":"AX69:AX69"}]
[{"$f":"IF(C73<>\"\",A72+1,\"\")","v":""},null,null,null,null,null,null,null,null,null,null,null,null,null,null,null,null,null,null,null,null,null,null,null,null,null,null,null,null,null,null,null,null,null,null,null,null,null,null,null,{"$f":"IF(OR(AH73=\"\",AK73=\"\"),\"\",AK73*AH73)","v":""},null,null,null,null,null,null,null,null,{"$f":"IF(A73<>\"\",_xlfn.CONCAT(\"IMÓVEL \",A73),\"\")","v":""}]
[{"$f":"IF(C74<>\"\",A73+1,\"\")","v":""},null,null,null,null,null,null,null,null,null,null,null,null,null,null,null,null,null,null,null,null,null,null,null,null,null,null,null,null,null,null,null,null,null,null,null,null,null,null,null,{"$f":"IF(OR(AH74=\"\",AK74=\"\"),\"\",AK74*AH74)","v":""},null,null,null,null,null,null,null,null,""]
["",null,null,null,null,null,null,null,null,null,null,null,null,null,null,null,null,null,null,null,null,null,null,null,null,null,null,null,null,null,null,null,null,null,null,null,null,null,null,null,"",null,null,null,null,null,null,null,null,""]
["",null,null,null,null,null,null,null,null,null,null,null,null,null,null,null,null,null,null,null,null,null,null,null,null,null,null,null,null,null,null,null,null,null,null,null,null,null,null,null,"",null,null,null,null,null,null,null,null,""]
["",null,null,null,null,null,null,null,null,null,null,null,null,null,null,null,null,null,null,null,null,null,null,null,null,null,null,null,null,null,null,null,null,null,null,null,null,null,null,null,"",null,null,null,null,null,null,null,null,""]
["",null,null,null,null,null,null,null,null,null,null,null,null,null,null,null,null,null,null,null,null,null,null,null,null,null,null,null,null,null,null,null,null,null,null,null,null,null,null,null,"",null,null,null,null,null,null,null,null,""]
["",null,null,null,null,null,null,null,null,null,null,null,null,null,null,null,null,null,null,null,null,null,null,null,null,null,null,null,null,null,null,null,null,null,null,null,null,null,null,null,"",null,null,null,null,null,null,null,null,""]
["",null,null,null,null,null,null,null,null,null,null,null,null,null,null,null,null,null,null,null,null,null,null,null,null,null,null,null,null,null,null,null,null,null,null,null,null,null,null,null,"",null,null,null,null,null,null,null,null,""]
["",null,null,null,null,null,null,null,null,null,null,null,null,null,null,null,null,null,null,null,null,null,null,null,null,null,null,null,null,null,null,null,null,null,null,null,null,null,null,null,"",null,null,null,null,null,null,null,null,""]
["",null,null,null,null,null,null,null,null,null,null,null,null,null,null,null,null,null,null,null,null,null,null,null,null,null,null,null,null,null,null,null,null,null,null,null,null,null,null,null,"",null,null,null,null,null,null,null,null,""]
["",null,null,null,null,null,null,null,null,null,null,null,null,null,null,null,null,null,null,null,null,null,null,null,null,null,null,null,null,null,null,null,null,null,null,null,null,null,null,null,"",null,null,null,null,null,null,null,null,""]
["",null,null,null,null,null,null,null,null,null,null,null,null,null,null,null,null,null,null,null,null,null,null,null,null,null,null,null,null,null,null,null,null,null,null,null,null,null,null,null,"",null,null,null,null,null,null,null,null,""]
["",null,null,null,null,null,null,null,null,null,null,null,null,null,null,null,null,null,null,null,null,null,null,null,null,null,null,null,null,null,null,null,null,null,null,null,null,null,null,null,"",null,null,null,null,null,null,null,null,""]
["",null,null,null,null,null,null,null,null,null,null,null,null,null,null,null,null,null,null,null,null,null,null,null,null,null,null,null,null,null,null,null,null,null,null,null,null,null,null,null,"",null,null,null,null,null,null,null,null,""]
["",null,null,null,null,null,null,null,null,null,null,null,null,null,null,null,null,null,null,null,null,null,null,null,null,null,null,null,null,null,null,null,null,null,null,null,null,null,null,null,"",null,null,null,null,null,null,null,null,""]
["",null,null,null,null,null,null,null,null,null,null,null,null,null,null,null,null,null,null,null,null,null,null,null,null,null,null,null,null,null,null,null,null,null,null,null,null,null,null,null,"",null,null,null,null,null,null,null,null,""]
["",null,null,null,null,null,null,null,null,null,null,null,null,null,null,null,null,null,null,null,null,null,null,null,null,null,null,null,null,null,null,null,null,null,null,null,null,null,null,null,"",null,null,null,null,null,null,null,null,""]
["",null,null,null,null,null,null,null,null,null,null,null,null,null,null,null,null,null,null,null,null,null,null,null,null,null,null,null,null,null,null,null,null,null,null,null,null,null,null,null,"",null,null,null,null,null,null,null,null,""]
["",null,null,null,null,null,null,null,null,null,null,null,null,null,null,null,null,null,null,null,null,null,null,null,null,null,null,null,null,null,null,null,null,null,null,null,null,null,null,null,"",null,null,null,null,null,null,null,null,""]
["",null,null,null,null,null,null,null,null,null,null,null,null,null,null,null,null,null,null,null,null,null,null,null,null,null,null,null,null,null,null,null,null,null,null,null,null,null,null,null,"",null,null,null,null,null,null,null,null,""]
["",null,null,null,null,null,null,null,null,null,null,null,null,null,null,null,null,null,null,null,null,null,null,null,null,null,null,null,null,null,null,null,null,null,null,null,null,null,null,null,"",null,null,null,null,null,null,null,null,""]
["",null,null,null,null,null,null,null,null,null,null,null,null,null,null,null,null,null,null,null,null,null,null,null,null,null,null,null,null,null,null,null,null,null,null,null,null,null,null,null,"",null,null,null,null,null,null,null,null,""]
["",null,null,null,null,null,null,null,null,null,null,null,null,null,null,null,null,null,null,null,null,null,null,null,null,null,null,null,null,null,null,null,null,null,null,null,null,null,null,null,"",null,null,null,null,null,null,null,null,""]
["",null,null,null,null,null,null,null,null,null,null,null,null,null,null,null,null,null,null,null,null,null,null,null,null,null,null,null,null,null,null,null,null,null,null,null,null,null,null,null,"",null,null,null,null,null,null,null,null,""]
["",null,null,null,null,null,null,null,null,null,null,null,null,null,null,null,null,null,null,null,null,null,null,null,null,null,null,null,null,null,null,null,null,null,null,null,null,null,null,null,"",null,null,null,null,null,null,null,null,""]
["",null,null,null,null,null,null,null,null,null,null,null,null,null,null,null,null,null,null,null,null,null,null,null,null,null,null,null,null,null,null,null,null,null,null,null,null,null,null,null,"",null,null,null,null,null,null,null,null,""]
["",null,null,null,null,null,null,null,null,null,null,null,null,null,null,null,null,null,null,null,null,null,null,null,null,null,null,null,null,null,null,null,null,null,null,null,null,null,null,null,"",null,null,null,null,null,null,null,null,""]
["",null,null,null,null,null,null,null,null,null,null,null,null,null,null,null,null,null,null,null,null,null,null,null,null,null,null,null,null,null,null,null,null,null,null,null,null,null,null,null,"",null,null,null,null,null,null,null,null,""]
["",null,null,null,null,null,null,null,null,null,null,null,null,null,null,null,null,null,null,null,null,null,null,null,null,null,null,null,null,null,null,null,null,null,null,null,null,null,null,null,"",null,null,null,null,null,null,null,null,""]
["",null,null,null,null,null,null,null,null,null,null,null,null,null,null,null,null,null,null,null,null,null,null,null,null,null,null,null,null,null,null,null,null,null,null,null,null,null,null,null,"",null,null,null,null,null,null,null,null,""]
["",null,null,null,null,null,null,null,null,null,null,null,null,null,null,null,null,null,null,null,null,null,null,null,null,null,null,null,null,null,null,null,null,null,null,null,null,null,null,null,"",null,null,null,null,null,null,null,null,""]
["",null,null,null,null,null,null,null,null,null,null,null,null,null,null,null,null,null,null,null,null,null,null,null,null,null,null,null,null,null,null,null,null,null,null,null,null,null,null,null,"",null,null,null,null,null,null,null,null,""]
["",null,null,null,null,null,null,null,null,null,null,null,null,null,null,null,null,null,null,null,null,null,null,null,null,null,null,null,null,null,null,null,null,null,null,null,null,null,null,null,"",null,null,null,null,null,null,null,null,""]
["",null,null,null,null,null,null,null,null,null,null,null,null,null,null,null,null,null,null,null,null,null,null,null,null,null,null,null,null,null,null,null,null,null,null,null,null,null,null,null,"",null,null,null,null,null,null,null,null,""]
["",null,null,null,null,null,null,null,null,null,null,null,null,null,null,null,null,null,null,null,null,null,null,null,null,null,null,null,null,null,null,null,null,null,null,null,null,null,null,null,"",null,null,null,null,null,null,null,null,""]
["",null,null,null,null,null,null,null,null,null,null,null,null,null,null,null,null,null,null,null,null,null,null,null,null,null,null,null,null,null,null,null,null,null,null,null,null,null,null,null,"",null,null,null,null,null,null,null,null,""]
["",null,null,null,null,null,null,null,null,null,null,null,null,null,null,null,null,null,null,null,null,null,null,null,null,null,null,null,null,null,null,null,null,null,null,null,null,null,null,null,"",null,null,null,null,null,null,null,null,""]
["",null,null,null,null,null,null,null,null,null,null,null,null,null,null,null,null,null,null,null,null,null,null,null,null,null,null,null,null,null,null,null,null,null,null,null,null,null,null,null,"",null,null,null,null,null,null,null,null,""]
["",null,null,null,null,null,null,null,null,null,null,null,null,null,null,null,null,null,null,null,null,null,null,null,null,null,null,null,null,null,null,null,null,null,null,null,null,null,null,null,"",null,null,null,null,null,null,null,null,""]
["",null,null,null,null,null,null,null,null,null,null,null,null,null,null,null,null,null,null,null,null,null,null,null,null,null,null,null,null,null,null,null,null,null,null,null,null,null,null,null,"",null,null,null,null,null,null,null,null,""]
["",null,null,null,null,null,null,null,null,null,null,null,null,null,null,null,null,null,null,null,null,null,null,null,null,null,null,null,null,null,null,null,null,null,null,null,null,null,null,null,"",null,null,null,null,null,null,null,null,""]
["",null,null,null,null,null,null,null,null,null,null,null,null,null,null,null,null,null,null,null,null,null,null,null,null,null,null,null,null,null,null,null,null,null,null,null,null,null,null,null,"",null,null,null,null,null,null,null,null,""]
["",null,null,null,null,null,null,null,null,null,null,null,null,null,null,null,null,null,null,null,null,null,null,null,null,null,null,null,null,null,null,null,null,null,null,null,null,null,null,null,"",null,null,null,null,null,null,null,null,""]
["",null,null,null,null,null,null,null,null,null,null,null,null,null,null,null,null,null,null,null,null,null,null,null,null,null,null,null,null,null,null,null,null,null,null,null,null,null,null,null,"",null,null,null,null,null,null,null,null,""]
["",null,null,null,null,null,null,null,null,null,null,null,null,null,null,null,null,null,null,null,null,null,null,null,null,null,null,null,null,null,null,null,null,null,null,null,null,null,null,null,"",null,null,null,null,null,null,null,null,""]
["",null,null,null,null,null,null,null,null,null,null,null,null,null,null,null,null,null,null,null,null,null,null,null,null,null,null,null,null,null,null,null,null,null,null,null,null,null,null,null,"",null,null,null,null,null,null,null,null,""]
["",null,null,null,null,null,null,null,null,null,null,null,null,null,null,null,null,null,null,null,null,null,null,null,null,null,null,null,null,null,null,null,null,null,null,null,null,null,null,null,"",null,null,null,null,null,null,null,null,""]
["",null,null,null,null,null,null,null,null,null,null,null,null,null,null,null,null,null,null,null,null,null,null,null,null,null,null,null,null,null,null,null,null,null,null,null,null,null,null,null,"",null,null,null,null,null,null,null,null,""]
["",null,null,null,null,null,null,null,null,null,null,null,null,null,null,null,null,null,null,null,null,null,null,null,null,null,null,null,null,null,null,null,null,null,null,null,null,null,null,null,"",null,null,null,null,null,null,null,null,""]
["",null,null,null,null,null,null,null,null,null,null,null,null,null,null,null,null,null,null,null,null,null,null,null,null,null,null,null,null,null,null,null,null,null,null,null,null,null,null,null,"",null,null,null,null,null,null,null,null,""]
["",null,null,null,null,null,null,null,null,null,null,null,null,null,null,null,null,null,null,null,null,null,null,null,null,null,null,null,null,null,null,null,null,null,null,null,null,null,null,null,"",null,null,null,null,null,null,null,null,""]
["",null,null,null,null,null,null,null,null,null,null,null,null,null,null,null,null,null,null,null,null,null,null,null,null,null,null,null,null,null,null,null,null,null,null,null,null,null,null,null,"",null,null,null,null,null,null,null,null,""]
["",null,null,null,null,null,null,null,null,null,null,null,null,null,null,null,null,null,null,null,null,null,null,null,null,null,null,null,null,null,null,null,null,null,null,null,null,null,null,null,"",null,null,null,null,null,null,null,null,""]
["",null,null,null,null,null,null,null,null,null,null,null,null,null,null,null,null,null,null,null,null,null,null,null,null,null,null,null,null,null,null,null,null,null,null,null,null,null,null,null,"",null,null,null,null,null,null,null,null,""]
["",null,null,null,null,null,null,null,null,null,null,null,null,null,null,null,null,null,null,null,null,null,null,null,null,null,null,null,null,null,null,null,null,null,null,null,null,null,null,null,"",null,null,null,null,null,null,null,null,""]
["",null,null,null,null,null,null,null,null,null,null,null,null,null,null,null,null,null,null,null,null,null,null,null,null,null,null,null,null,null,null,null,null,null,null,null,null,null,null,null,"",null,null,null,null,null,null,null,null,""]
["",null,null,null,null,null,null,null,null,null,null,null,null,null,null,null,null,null,null,null,null,null,null,null,null,null,null,null,null,null,null,null,null,null,null,null,null,null,null,null,"",null,null,null,null,null,null,null,null,""]
["",null,null,null,null,null,null,null,null,null,null,null,null,null,null,null,null,null,null,null,null,null,null,null,null,null,null,null,null,null,null,null,null,null,null,null,null,null,null,null,"",null,null,null,null,null,null,null,null,""]
["",null,null,null,null,null,null,null,null,null,null,null,null,null,null,null,null,null,null,null,null,null,null,null,null,null,null,null,null,null,null,null,null,null,null,null,null,null,null,null,"",null,null,null,null,null,null,null,null,""]
["",null,null,null,null,null,null,null,null,null,null,null,null,null,null,null,null,null,null,null,null,null,null,null,null,null,null,null,null,null,null,null,null,null,null,null,null,null,null,null,"",null,null,null,null,null,null,null,null,""]
["",null,null,null,null,null,null,null,null,null,null,null,null,null,null,null,null,null,null,null,null,null,null,null,null,null,null,null,null,null,null,null,null,null,null,null,null,null,null,null,"",null,null,null,null,null,null,null,null,""]
["",null,null,null,null,null,null,null,null,null,null,null,null,null,null,null,null,null,null,null,null,null,null,null,null,null,null,null,null,null,null,null,null,null,null,null,null,null,null,null,"",null,null,null,null,null,null,null,null,""]
["",null,null,null,null,null,null,null,null,null,null,null,null,null,null,null,null,null,null,null,null,null,null,null,null,null,null,null,null,null,null,null,null,null,null,null,null,null,null,null,"",null,null,null,null,null,null,null,null,""]
["",null,null,null,null,null,null,null,null,null,null,null,null,null,null,null,null,null,null,null,null,null,null,null,null,null,null,null,null,null,null,null,null,null,null,null,null,null,null,null,"",null,null,null,null,null,null,null,null,""]
["",null,null,null,null,null,null,null,null,null,null,null,null,null,null,null,null,null,null,null,null,null,null,null,null,null,null,null,null,null,null,null,null,null,null,null,null,null,null,null,"",null,null,null,null,null,null,null,null,{"$f":"IF(A137<>\"\",_xlfn.CONCAT(\"IMÓVEL \",A137),\"\")","v":""}]
[{"$f":"IF(C138<>\"\",A137+1,\"\")","v":""},null,null,null,null,null,null,null,null,null,null,null,null,null,null,null,null,null,null,null,null,null,null,null,null,null,null,null,null,null,null,null,null,null,null,null,null,null,null,null,"",null,null,null,null,null,null,null,null,""]
["",null,null,null,null,null,null,null,null,null,null,null,null,null,null,null,null,null,null,null,null,null,null,null,null,null,null,null,null,null,null,null,null,null,null,null,null,null,null,null,"",null,null,null,null,null,null,null,null,""]
["",null,null,null,null,null,null,null,null,null,null,null,null,null,null,null,null,null,null,null,null,null,null,null,null,null,null,null,null,null,null,null,null,null,null,null,null,null,null,null,"",null,null,null,null,null,null,null,null,""]
["",null,null,null,null,null,null,null,null,null,null,null,null,null,null,null,null,null,null,null,null,null,null,null,null,null,null,null,null,null,null,null,null,null,null,null,null,null,null,null,"",null,null,null,null,null,null,null,null,""]
["",null,null,null,null,null,null,null,null,null,null,null,null,null,null,null,null,null,null,null,null,null,null,null,null,null,null,null,null,null,null,null,null,null,null,null,null,null,null,null,"",null,null,null,null,null,null,null,null,""]
["",null,null,null,null,null,null,null,null,null,null,null,null,null,null,null,null,null,null,null,null,null,null,null,null,null,null,null,null,null,null,null,null,null,null,null,null,null,null,null,"",null,null,null,null,null,null,null,null,""]
["",null,null,null,null,null,null,null,null,null,null,null,null,null,null,null,null,null,null,null,null,null,null,null,null,null,null,null,null,null,null,null,null,null,null,null,null,null,null,null,"",null,null,null,null,null,null,null,null,""]
["",null,null,null,null,null,null,null,null,null,null,null,null,null,null,null,null,null,null,null,null,null,null,null,null,null,null,null,null,null,null,null,null,null,null,null,null,null,null,null,{"$f":"IF(OR(AH145=\"\",AK145=\"\"),\"\",AK145*AH145)","v":""},null,null,null,null,null,null,null,null,""]
["",null,null,null,null,null,null,null,null,null,null,null,null,null,null,null,null,null,null,null,null,null,null,null,null,null,null,null,null,null,null,null,null,null,null,null,null,null,null,null,"",null,null,null,null,null,null,null,null,""]
["",null,null,null,null,null,null,null,null,null,null,null,null,null,null,null,null,null,null,null,null,null,null,null,null,null,null,null,null,null,null,null,null,null,null,null,null,null,null,null,"",null,null,null,null,null,null,null,null,""]
["",null,null,null,null,null,null,null,null,null,null,null,null,null,null,null,null,null,null,null,null,null,null,null,null,null,null,null,null,null,null,null,null,null,null,null,null,null,null,null,"",null,null,null,null,null,null,null,null,""]
["",null,null,null,null,null,null,null,null,null,null,null,null,null,null,null,null,null,null,null,null,null,null,null,null,null,null,null,null,null,null,null,null,null,null,null,null,null,null,null,"",null,null,null,null,null,null,null,null,""]
["",null,null,null,null,null,null,null,null,null,null,null,null,null,null,null,null,null,null,null,null,null,null,null,null,null,null,null,null,null,null,null,null,null,null,null,null,null,null,null,"",null,null,null,null,null,null,null,null,""]
["",null,null,null,null,null,null,null,null,null,null,null,null,null,null,null,null,null,null,null,null,null,null,null,null,null,null,null,null,null,null,null,null,null,null,null,null,null,null,null,"",null,null,null,null,null,null,null,null,""]
["",null,null,null,null,null,null,null,null,null,null,null,null,null,null,null,null,null,null,null,null,null,null,null,null,null,null,null,null,null,null,null,null,null,null,null,null,null,null,null,"",null,null,null,null,null,null,null,null,""]
["",null,null,null,null,null,null,null,null,null,null,null,null,null,null,null,null,null,null,null,null,null,null,null,null,null,null,null,null,null,null,null,null,null,null,null,null,null,null,null,"",null,null,null,null,null,null,null,null,""]
["",null,null,null,null,null,null,null,null,null,null,null,null,null,null,null,null,null,null,null,null,null,null,null,null,null,null,null,null,null,null,null,null,null,null,null,null,null,null,null,"",null,null,null,null,null,null,null,null,""]
["",null,null,null,null,null,null,null,null,null,null,null,null,null,null,null,null,null,null,null,null,null,null,null,null,null,null,null,null,null,null,null,null,null,null,null,null,null,null,null,"",null,null,null,null,null,null,null,null,""]
["",null,null,null,null,null,null,null,null,null,null,null,null,null,null,null,null,null,null,null,null,null,null,null,null,null,null,null,null,null,null,null,null,null,null,null,null,null,null,null,"",null,null,null,null,null,null,null,null,""]
["",null,null,null,null,null,null,null,null,null,null,null,null,null,null,null,null,null,null,null,null,null,null,null,null,null,null,null,null,null,null,null,null,null,null,null,null,null,null,null,"",null,null,null,null,null,null,null,null,""]
["",null,null,null,null,null,null,null,null,null,null,null,null,null,null,null,null,null,null,null,null,null,null,null,null,null,null,null,null,null,null,null,null,null,null,null,null,null,null,null,"",null,null,null,null,null,null,null,null,""]
["",null,null,null,null,null,null,null,null,null,null,null,null,null,null,null,null,null,null,null,null,null,null,null,null,null,null,null,null,null,null,null,null,null,null,null,null,null,null,null,"",null,null,null,null,null,null,null,null,""]
["",null,null,null,null,null,null,null,null,null,null,null,null,null,null,null,null,null,null,null,null,null,null,null,null,null,null,null,null,null,null,null,null,null,null,null,null,null,null,null,"",null,null,null,null,null,null,null,null,""]
["",null,null,null,null,null,null,null,null,null,null,null,null,null,null,null,null,null,null,null,null,null,null,null,null,null,null,null,null,null,null,null,null,null,null,null,null,null,null,null,"",null,null,null,null,null,null,null,null,""]
["",null,null,null,null,null,null,null,null,null,null,null,null,null,null,null,null,null,null,null,null,null,null,null,null,null,null,null,null,null,null,null,null,null,null,null,null,null,null,null,"",null,null,null,null,null,null,null,null,""]
["",null,null,null,null,null,null,null,null,null,null,null,null,null,null,null,null,null,null,null,null,null,null,null,null,null,null,null,null,null,null,null,null,null,null,null,null,null,null,null,"",null,null,null,null,null,null,null,null,""]
["",null,null,null,null,null,null,null,null,null,null,null,null,null,null,null,null,null,null,null,null,null,null,null,null,null,null,null,null,null,null,null,null,null,null,null,null,null,null,null,"",null,null,null,null,null,null,null,null,""]
["",null,null,null,null,null,null,null,null,null,null,null,null,null,null,null,null,null,null,null,null,null,null,null,null,null,null,null,null,null,null,null,null,null,null,null,null,null,null,null,"",null,null,null,null,null,null,null,null,""]
["",null,null,null,null,null,null,null,null,null,null,null,null,null,null,null,null,null,null,null,null,null,null,null,null,null,null,null,null,null,null,null,null,null,null,null,null,null,null,null,"",null,null,null,null,null,null,null,null,""]
["",null,null,null,null,null,null,null,null,null,null,null,null,null,null,null,null,null,null,null,null,null,null,null,null,null,null,null,null,null,null,null,null,null,null,null,null,null,null,null,"",null,null,null,null,null,null,null,null,""]
["",null,null,null,null,null,null,null,null,null,null,null,null,null,null,null,null,null,null,null,null,null,null,null,null,null,null,null,null,null,null,null,null,null,null,null,null,null,null,null,"",null,null,null,null,null,null,null,null,""]
["",null,null,null,null,null,null,null,null,null,null,null,null,null,null,null,null,null,null,null,null,null,null,null,null,null,null,null,null,null,null,null,null,null,null,null,null,null,null,null,"",null,null,null,null,null,null,null,null,""]
["",null,null,null,null,null,null,null,null,null,null,null,null,null,null,null,null,null,null,null,null,null,null,null,null,null,null,null,null,null,null,null,null,null,null,null,null,null,null,null,"",null,null,null,null,null,null,null,null,""]
["",null,null,null,null,null,null,null,null,null,null,null,null,null,null,null,null,null,null,null,null,null,null,null,null,null,null,null,null,null,null,null,null,null,null,null,null,null,null,null,"",null,null,null,null,null,null,null,null,""]
["TOTAL",null,null,null,null,null,null,null,null,null,null,null,null,null,null,null,null,null,null,null,null,null,null,null,null,null,null,null,null,null,null,null,null,null,null,null,{"$f":"SUM(AK72:AN171)","v":0},null,null,null,{"$f":"SUM(AO72:AS171)","v":0}]
[]
["BENFEITORIAS"]
["IMÓVEL REF",null,null,null,null,"DESCRIÇÃO",null,null,null,null,null,null,null,null,null,null,null,null,null,null,null,null,null,null,null,null,null,null,null,null,"QTD",null,null,"PERCEN.\n%",null,null,"VALOR BEM\n (R$)",null,null,null,"VALOR %\n(R$)"]
[null,null,null,null,null,null,null,null,null,null,null,null,null,null,null,null,null,null,null,null,null,null,null,null,null,null,null,null,null,null,null,null,null,null,null,null,null,null,null,null,{"$f":"IF(OR(AE176=\"\",AH176=\"\",AK176=\"\"),\"\",AK176*AH176*AE176)","v":""},null,null,null,null,null,{"$f":"SUM(AV176:AV225)","v":1},1]
[null,null,null,null,null,null,null,null,null,null,null,null,null,null,null,null,null,null,null,null,null,null,null,null,null,null,null,null,null,null,null,null,null,null,null,null,null,null,null,null,{"$f":"IF(OR(AE177=\"\",AH177=\"\",AK177=\"\"),\"\",AK177*AH177*AE177)","v":""}]
[null,null,null,null,null,null,null,null,null,null,null,null,null,null,null,null,null,null,null,null,null,null,null,null,null,null,null,null,null,null,null,null,null,null,null,null,null,null,null,null,""]
[null,null,null,null,null,null,null,null,null,null,null,null,null,null,null,null,null,null,null,null,null,null,null,null,null,null,null,null,null,null,null,null,null,null,null,null,null,null,null,null,""]
[null,null,null,null,null,null,null,null,null,null,null,null,null,null,null,null,null,null,null,null,null,null,null,null,null,null,null,null,null,null,null,null,null,null,null,null,null,null,null,null,""]
[null,null,null,null,null,null,null,null,null,null,null,null,null,null,null,null,null,null,null,null,null,null,null,null,null,null,null,null,null,null,null,null,null,null,null,null,null,null,null,null,""]
[null,null,null,null,null,null,null,null,null,null,null,null,null,null,null,null,null,null,null,null,null,null,null,null,null,null,null,null,null,null,null,null,null,null,null,null,null,null,null,null,""]
[null,null,null,null,null,null,null,null,null,null,null,null,null,null,null,null,null,null,null,null,null,null,null,null,null,null,null,null,null,null,null,null,null,null,null,null,null,null,null,null,""]
[null,null,null,null,null,null,null,null,null,null,null,null,null,null,null,null,null,null,null,null,null,null,null,null,null,null,null,null,null,null,null,null,null,null,null,null,null,null,null,null,""]
[null,null,null,null,null,null,null,null,null,null,null,null,null,null,null,null,null,null,null,null,null,null,null,null,null,null,null,null,null,null,null,null,null,null,null,null,null,null,null,null,""]
[null,null,null,null,null,null,null,null,null,null,null,null,null,null,null,null,null,null,null,null,null,null,null,null,null,null,null,null,null,null,null,null,null,null,null,null,null,null,null,null,""]
[null,null,null,null,null,null,null,null,null,null,null,null,null,null,null,null,null,null,null,null,null,null,null,null,null,null,null,null,null,null,null,null,null,null,null,null,null,null,null,null,""]
[null,null,null,null,null,null,null,null,null,null,null,null,null,null,null,null,null,null,null,null,null,null,null,null,null,null,null,null,null,null,null,null,null,null,null,null,null,null,null,null,""]
[null,null,null,null,null,null,null,null,null,null,null,null,null,null,null,null,null,null,null,null,null,null,null,null,null,null,null,null,null,null,null,null,null,null,null,null,null,null,null,null,""]
[null,null,null,null,null,null,null,null,null,null,null,null,null,null,null,null,null,null,null,null,null,null,null,null,null,null,null,null,null,null,null,null,null,null,null,null,null,null,null,null,{"$f":"IF(OR(AE190=\"\",AH190=\"\",AK190=\"\"),\"\",AK190*AH190*AE190)","v":""}]
[null,null,null,null,null,null,null,null,null,null,null,null,null,null,null,null,null,null,null,null,null,null,null,null,null,null,null,null,null,null,null,null,null,null,null,null,null,null,null,null,""]
[null,null,null,null,null,null,null,null,null,null,null,null,null,null,null,null,null,null,null,null,null,null,null,null,null,null,null,null,null,null,null,null,null,null,null,null,null,null,null,null,""]
[null,null,null,null,null,null,null,null,null,null,null,null,null,null,null,null,null,null,null,null,null,null,null,null,null,null,null,null,null,null,null,null,null,null,null,null,null,null,null,null,""]
[null,null,null,null,null,null,null,null,null,null,null,null,null,null,null,null,null,null,null,null,null,null,null,null,null,null,null,null,null,null,null,null,null,null,null,null,null,null,null,null,""]
[null,null,null,null,null,null,null,null,null,null,null,null,null,null,null,null,null,null,null,null,null,null,null,null,null,null,null,null,null,null,null,null,null,null,null,null,null,null,null,null,""]
[null,null,null,null,null,null,null,null,null,null,null,null,null,null,null,null,null,null,null,null,null,null,null,null,null,null,null,null,null,null,null,null,null,null,null,null,null,null,null,null,""]
[null,null,null,null,null,null,null,null,null,null,null,null,null,null,null,null,null,null,null,null,null,null,null,null,null,null,null,null,null,null,null,null,null,null,null,null,null,null,null,null,""]
[null,null,null,null,null,null,null,null,null,null,null,null,null,null,null,null,null,null,null,null,null,null,null,null,null,null,null,null,null,null,null,null,null,null,null,null,null,null,null,null,""]
[null,null,null,null,null,null,null,null,null,null,null,null,null,null,null,null,null,null,null,null,null,null,null,null,null,null,null,null,null,null,null,null,null,null,null,null,null,null,null,null,""]
[null,null,null,null,null,null,null,null,null,null,null,null,null,null,null,null,null,null,null,null,null,null,null,null,null,null,null,null,null,null,null,null,null,null,null,null,null,null,null,null,""]
[null,null,null,null,null,null,null,null,null,null,null,null,null,null,null,null,null,null,null,null,null,null,null,null,null,null,null,null,null,null,null,null,null,null,null,null,null,null,null,null,""]
[null,null,null,null,null,null,null,null,null,null,null,null,null,null,null,null,null,null,null,null,null,null,null,null,null,null,null,null,null,null,null,null,null,null,null,null,null,null,null,null,""]
[null,null,null,null,null,null,null,null,null,null,null,null,null,null,null,null,null,null,null,null,null,null,null,null,null,null,null,null,null,null,null,null,null,null,null,null,null,null,null,null,""]
[null,null,null,null,null,null,null,null,null,null,null,null,null,null,null,null,null,null,null,null,null,null,null,null,null,null,null,null,null,null,null,null,null,null,null,null,null,null,null,null,""]
[null,null,null,null,null,null,null,null,null,null,null,null,null,null,null,null,null,null,null,null,null,null,null,null,null,null,null,null,null,null,null,null,null,null,null,null,null,null,null,null,{"$f":"IF(OR(AE205=\"\",AH205=\"\",AK205=\"\"),\"\",AK205*AH205*AE205)","v":""}]
[null,null,null,null,null,null,null,null,null,null,null,null,null,null,null,null,null,null,null,null,null,null,null,null,null,null,null,null,null,null,null,null,null,null,null,null,null,null,null,null,""]
[null,null,null,null,null,null,null,null,null,null,null,null,null,null,null,null,null,null,null,null,null,null,null,null,null,null,null,null,null,null,null,null,null,null,null,null,null,null,null,null,""]
[null,null,null,null,null,null,null,null,null,null,null,null,null,null,null,null,null,null,null,null,null,null,null,null,null,null,null,null,null,null,null,null,null,null,null,null,null,null,null,null,""]
[null,null,null,null,null,null,null,null,null,null,null,null,null,null,null,null,null,null,null,null,null,null,null,null,null,null,null,null,null,null,null,null,null,null,null,null,null,null,null,null,""]
[null,null,null,null,null,null,null,null,null,null,null,null,null,null,null,null,null,null,null,null,null,null,null,null,null,null,null,null,null,null,null,null,null,null,null,null,null,null,null,null,""]
[null,null,null,null,null,null,null,null,null,null,null,null,null,null,null,null,null,null,null,null,null,null,null,null,null,null,null,null,null,null,null,null,null,null,null,null,null,null,null,null,""]
[null,null,null,null,null,null,null,null,null,null,null,null,null,null,null,null,null,null,null,null,null,null,null,null,null,null,null,null,null,null,null,null,null,null,null,null,null,null,null,null,""]
[null,null,null,null,null,null,null,null,null,null,null,null,null,null,null,null,null,null,null,null,null,null,null,null,null,null,null,null,null,null,null,null,null,null,null,null,null,null,null,null,""]
[null,null,null,null,null,null,null,null,null,null,null,null,null,null,null,null,null,null,null,null,null,null,null,null,null,null,null,null,null,null,null,null,null,null,null,null,null,null,null,null,""]
[null,null,null,null,null,null,null,null,null,null,null,null,null,null,null,null,null,null,null,null,null,null,null,null,null,null,null,null,null,null,null,null,null,null,null,null,null,null,null,null,""]
[null,null,null,null,null,null,null,null,null,null,null,null,null,null,null,null,null,null,null,null,null,null,null,null,null,null,null,null,null,null,null,null,null,null,null,null,null,null,null,null,""]
[null,null,null,null,null,null,null,null,null,null,null,null,null,null,null,null,null,null,null,null,null,null,null,null,null,null,null,null,null,null,null,null,null,null,null,null,null,null,null,null,""]
[null,null,null,null,null,null,null,null,null,null,null,null,null,null,null,null,null,null,null,null,null,null,null,null,null,null,null,null,null,null,null,null,null,null,null,null,null,null,null,null,""]
[null,null,null,null,null,null,null,null,null,null,null,null,null,null,null,null,null,null,null,null,null,null,null,null,null,null,null,null,null,null,null,null,null,null,null,null,null,null,null,null,""]
[null,null,null,null,null,null,null,null,null,null,null,null,null,null,null,null,null,null,null,null,null,null,null,null,null,null,null,null,null,null,null,null,null,null,null,null,null,null,null,null,""]
[null,null,null,null,null,null,null,null,null,null,null,null,null,null,null,null,null,null,null,null,null,null,null,null,null,null,null,null,null,null,null,null,null,null,null,null,null,null,null,null,""]
[null,null,null,null,null,null,null,null,null,null,null,null,null,null,null,null,null,null,null,null,null,null,null,null,null,null,null,null,null,null,null,null,null,null,null,null,null,null,null,null,""]
[null,null,null,null,null,null,null,null,null,null,null,null,null,null,null,null,null,null,null,null,null,null,null,null,null,null,null,null,null,null,null,null,null,null,null,null,null,null,null,null,""]
[null,null,null,null,null,null,null,null,null,null,null,null,null,null,null,null,null,null,null,null,null,null,null,null,null,null,null,null,null,null,null,null,null,null,null,null,null,null,null,null,""]
[null,null,null,null,null,null,null,null,null,null,null,null,null,null,null,null,null,null,null,null,null,null,null,null,null,null,null,null,null,null,null,null,null,null,null,null,null,null,null,null,""]
["TOTAL",null,null,null,null,null,null,null,null,null,null,null,null,null,null,null,null,null,null,null,null,null,null,null,null,null,null,null,null,null,{"$f":"SUM(AE176:AG225)","v":0},null,null,null,null,null,{"$f":"SUM(AK176:AN225)","v":0},null,null,null,{"$f":"SUM(AO176:AS225)","v":0}]
[]
["BENS MÓVEIS"]
[]
[" VEÍCULOS, MÁQUINAS E EQUIPAMENTOS"]
["ORIGEM DAS PARTICIPAÇÕES"]
[]
["TIPO",null,null,null,null,null,"DESCRIÇÃO",null,null,null,null,null,null,null,null,null,null,"PARTICIPAÇÃO",null,null,null,null,null,null,null,null,null,null,null,"QTD",null,null,"PERCENT\n%",null,null,"VALOR BEM\n (R$)",null,null,null,null,"VALOR %\n(R$)"]
[null,null,null,null,null,null,null,null,null,null,null,null,null,null,null,null,null,null,null,null,null,null,null,null,null,null,null,null,null,null,null,null,null,null,null,null,null,null,null,null,{"$f":"IF(AD234=\"\",\"\",AD234*AG234*AJ234)","v":""},null,null,null,null,null,{"$f":"SUM(AV234:AV433)","v":1},1]
[null,null,null,null,null,null,null,null,null,null,null,null,null,null,null,null,null,null,null,null,null,null,null,null,null,null,null,null,null,null,null,null,null,null,null,null,null,null,null,null,{"$f":"IF(AD235=\"\",\"\",AD235*AG235*AJ235)","v":""}]
[null,null,null,null,null,null,null,null,null,null,null,null,null,null,null,null,null,null,null,null,null,null,null,null,null,null,null,null,null,null,null,null,null,null,null,null,null,null,null,null,""]
[null,null,null,null,null,null,null,null,null,null,null,null,null,null,null,null,null,null,null,null,null,null,null,null,null,null,null,null,null,null,null,null,null,null,null,null,null,null,null,null,""]
[null,null,null,null,null,null,null,null,null,null,null,null,null,null,null,null,null,null,null,null,null,null,null,null,null,null,null,null,null,null,null,null,null,null,null,null,null,null,null,null,""]
[null,null,null,null,null,null,null,null,null,null,null,null,null,null,null,null,null,null,null,null,null,null,null,null,null,null,null,null,null,null,null,null,null,null,null,null,null,null,null,null,""]
[null,null,null,null,null,null,null,null,null,null,null,null,null,null,null,null,null,null,null,null,null,null,null,null,null,null,null,null,null,null,null,null,null,null,null,null,null,null,null,null,""]
[null,null,null,null,null,null,null,null,null,null,null,null,null,null,null,null,null,null,null,null,null,null,null,null,null,null,null,null,null,null,null,null,null,null,null,null,null,null,null,null,""]
[null,null,null,null,null,null,null,null,null,null,null,null,null,null,null,null,null,null,null,null,null,null,null,null,null,null,null,null,null,null,null,null,null,null,null,null,null,null,null,null,""]
[null,null,null,null,null,null,null,null,null,null,null,null,null,null,null,null,null,null,null,null,null,null,null,null,null,null,null,null,null,null,null,null,null,null,null,null,null,null,null,null,""]
[null,null,null,null,null,null,null,null,null,null,null,null,null,null,null,null,null,null,null,null,null,null,null,null,null,null,null,null,null,null,null,null,null,null,null,null,null,null,null,null,""]
[null,null,null,null,null,null,null,null,null,null,null,null,null,null,null,null,null,null,null,null,null,null,null,null,null,null,null,null,null,null,null,null,null,null,null,null,null,null,null,null,""]
[null,null,null,null,null,null,null,null,null,null,null,null,null,null,null,null,null,null,null,null,null,null,null,null,null,null,null,null,null,null,null,null,null,null,null,null,null,null,null,null,""]
[null,null,null,null,null,null,null,null,null,null,null,null,null,null,null,null,null,null,null,null,null,null,null,null,null,null,null,null,null,null,null,null,null,null,null,null,null,null,null,null,""]
[null,null,null,null,null,null,null,null,null,null,null,null,null,null,null,null,null,null,null,null,null,null,null,null,null,null,null,null,null,null,null,null,null,null,null,null,null,null,null,null,""]
[null,null,null,null,null,null,null,null,null,null,null,null,null,null,null,null,null,null,null,null,null,null,null,null,null,null,null,null,null,null,null,null,null,null,null,null,null,null,null,null,""]
[null,null,null,null,null,null,null,null,null,null,null,null,null,null,null,null,null,null,null,null,null,null,null,null,null,null,null,null,null,null,null,null,null,null,null,null,null,null,null,null,""]
[null,null,null,null,null,null,null,null,null,null,null,null,null,null,null,null,null,null,null,null,null,null,null,null,null,null,null,null,null,null,null,null,null,null,null,null,null,null,null,null,""]
[null,null,null,null,null,null,null,null,null,null,null,null,null,null,null,null,null,null,null,null,null,null,null,null,null,null,null,null,null,null,null,null,null,null,null,null,null,null,null,null,""]
[null,null,null,null,null,null,null,null,null,null,null,null,null,null,null,null,null,null,null,null,null,null,null,null,null,null,null,null,null,null,null,null,null,null,null,null,null,null,null,null,""]
[null,null,null,null,null,null,null,null,null,null,null,null,null,null,null,null,null,null,null,null,null,null,null,null,null,null,null,null,null,null,null,null,null,null,null,null,null,null,null,null,""]
[null,null,null,null,null,null,null,null,null,null,null,null,null,null,null,null,null,null,null,null,null,null,null,null,null,null,null,null,null,null,null,null,null,null,null,null,null,null,null,null,""]
[null,null,null,null,null,null,null,null,null,null,null,null,null,null,null,null,null,null,null,null,null,null,null,null,null,null,null,null,null,null,null,null,null,null,null,null,null,null,null,null,""]
[null,null,null,null,null,null,null,null,null,null,null,null,null,null,null,null,null,null,null,null,null,null,null,null,null,null,null,null,null,null,null,null,null,null,null,null,null,null,null,null,""]
[null,null,null,null,null,null,null,null,null,null,null,null,null,null,null,null,null,null,null,null,null,null,null,null,null,null,null,null,null,null,null,null,null,null,null,null,null,null,null,null,""]
[null,null,null,null,null,null,null,null,null,null,null,null,null,null,null,null,null,null,null,null,null,null,null,null,null,null,null,null,null,null,null,null,null,null,null,null,null,null,null,null,""]
[null,null,null,null,null,null,null,null,null,null,null,null,null,null,null,null,null,null,null,null,null,null,null,null,null,null,null,null,null,null,null,null,null,null,null,null,null,null,null,null,""]
[null,null,null,null,null,null,null,null,null,null,null,null,null,null,null,null,null,null,null,null,null,null,null,null,null,null,null,null,null,null,null,null,null,null,null,null,null,null,null,null,""]
[null,null,null,null,null,null,null,null,null,null,null,null,null,null,null,null,null,null,null,null,null,null,null,null,null,null,null,null,null,null,null,null,null,null,null,null,null,null,null,null,""]
[null,null,null,null,null,null,null,null,null,null,null,null,null,null,null,null,null,null,null,null,null,null,null,null,null,null,null,null,null,null,null,null,null,null,null,null,null,null,null,null,""]
[null,null,null,null,null,null,null,null,null,null,null,null,null,null,null,null,null,null,null,null,null,null,null,null,null,null,null,null,null,null,null,null,null,null,null,null,null,null,null,null,""]
[null,null,null,null,null,null,null,null,null,null,null,null,null,null,null,null,null,null,null,null,null,null,null,null,null,null,null,null,null,null,null,null,null,null,null,null,null,null,null,null,""]
[null,null,null,null,null,null,null,null,null,null,null,null,null,null,null,null,null,null,null,null,null,null,null,null,null,null,null,null,null,null,null,null,null,null,null,null,null,null,null,null,""]
[null,null,null,null,null,null,null,null,null,null,null,null,null,null,null,null,null,null,null,null,null,null,null,null,null,null,null,null,null,null,null,null,null,null,null,null,null,null,null,null,""]
[null,null,null,null,null,null,null,null,null,null,null,null,null,null,null,null,null,null,null,null,null,null,null,null,null,null,null,null,null,null,null,null,null,null,null,null,null,null,null,null,""]
[null,null,null,null,null,null,null,null,null,null,null,null,null,null,null,null,null,null,null,null,null,null,null,null,null,null,null,null,null,null,null,null,null,null,null,null,null,null,null,null,""]
[null,null,null,null,null,null,null,null,null,null,null,null,null,null,null,null,null,null,null,null,null,null,null,null,null,null,null,null,null,null,null,null,null,null,null,null,null,null,null,null,""]
[null,null,null,null,null,null,null,null,null,null,null,null,null,null,null,null,null,null,null,null,null,null,null,null,null,null,null,null,null,null,null,null,null,null,null,null,null,null,null,null,""]
[null,null,null,null,null,null,null,null,null,null,null,null,null,null,null,null,null,null,null,null,null,null,null,null,null,null,null,null,null,null,null,null,null,null,null,null,null,null,null,null,""]
[null,null,null,null,null,null,null,null,null,null,null,null,null,null,null,null,null,null,null,null,null,null,null,null,null,null,null,null,null,null,null,null,null,null,null,null,null,null,null,null,""]
[null,null,null,null,null,null,null,null,null,null,null,null,null,null,null,null,null,null,null,null,null,null,null,null,null,null,null,null,null,null,null,null,null,null,null,null,null,null,null,null,""]
[null,null,null,null,null,null,null,null,null,null,null,null,null,null,null,null,null,null,null,null,null,null,null,null,null,null,null,null,null,null,null,null,null,null,null,null,null,null,null,null,""]
[null,null,null,null,null,null,null,null,null,null,null,null,null,null,null,null,null,null,null,null,null,null,null,null,null,null,null,null,null,null,null,null,null,null,null,null,null,null,null,null,""]
[null,null,null,null,null,null,null,null,null,null,null,null,null,null,null,null,null,null,null,null,null,null,null,null,null,null,null,null,null,null,null,null,null,null,null,null,null,null,null,null,""]
[null,null,null,null,null,null,null,null,null,null,null,null,null,null,null,null,null,null,null,null,null,null,null,null,null,null,null,null,null,null,null,null,null,null,null,null,null,null,null,null,""]
[null,null,null,null,null,null,null,null,null,null,null,null,null,null,null,null,null,null,null,null,null,null,null,null,null,null,null,null,null,null,null,null,null,null,null,null,null,null,null,null,""]
[null,null,null,null,null,null,null,null,null,null,null,null,null,null,null,null,null,null,null,null,null,null,null,null,null,null,null,null,null,null,null,null,null,null,null,null,null,null,null,null,""]
[null,null,null,null,null,null,null,null,null,null,null,null,null,null,null,null,null,null,null,null,null,null,null,null,null,null,null,null,null,null,null,null,null,null,null,null,null,null,null,null,""]
[null,null,null,null,null,null,null,null,null,null,null,null,null,null,null,null,null,null,null,null,null,null,null,null,null,null,null,null,null,null,null,null,null,null,null,null,null,null,null,null,""]
[null,null,null,null,null,null,null,null,null,null,null,null,null,null,null,null,null,null,null,null,null,null,null,null,null,null,null,null,null,null,null,null,null,null,null,null,null,null,null,null,""]
[null,null,null,null,null,null,null,null,null,null,null,null,null,null,null,null,null,null,null,null,null,null,null,null,null,null,null,null,null,null,null,null,null,null,null,null,null,null,null,null,""]
[null,null,null,null,null,null,null,null,null,null,null,null,null,null,null,null,null,null,null,null,null,null,null,null,null,null,null,null,null,null,null,null,null,null,null,null,null,null,null,null,""]
[null,null,null,null,null,null,null,null,null,null,null,null,null,null,null,null,null,null,null,null,null,null,null,null,null,null,null,null,null,null,null,null,null,null,null,null,null,null,null,null,""]
[null,null,null,null,null,null,null,null,null,null,null,null,null,null,null,null,null,null,null,null,null,null,null,null,null,null,null,null,null,null,null,null,null,null,null,null,null,null,null,null,""]
[null,null,null,null,null,null,null,null,null,null,null,null,null,null,null,null,null,null,null,null,null,null,null,null,null,null,null,null,null,null,null,null,null,null,null,null,null,null,null,null,""]
[null,null,null,null,null,null,null,null,null,null,null,null,null,null,null,null,null,null,null,null,null,null,null,null,null,null,null,null,null,null,null,null,null,null,null,null,null,null,null,null,""]
[null,null,null,null,null,null,null,null,null,null,null,null,null,null,null,null,null,null,null,null,null,null,null,null,null,null,null,null,null,null,null,null,null,null,null,null,null,null,null,null,""]
[null,null,null,null,null,null,null,null,null,null,null,null,null,null,null,null,null,null,null,null,null,null,null,null,null,null,null,null,null,null,null,null,null,null,null,null,null,null,null,null,""]
[null,null,null,null,null,null,null,null,null,null,null,null,null,null,null,null,null,null,null,null,null,null,null,null,null,null,null,null,null,null,null,null,null,null,null,null,null,null,null,null,""]
[null,null,null,null,null,null,null,null,null,null,null,null,null,null,null,null,null,null,null,null,null,null,null,null,null,null,null,null,null,null,null,null,null,null,null,null,null,null,null,null,""]
[null,null,null,null,null,null,null,null,null,null,null,null,null,null,null,null,null,null,null,null,null,null,null,null,null,null,null,null,null,null,null,null,null,null,null,null,null,null,null,null,""]
[null,null,null,null,null,null,null,null,null,null,null,null,null,null,null,null,null,null,null,null,null,null,null,null,null,null,null,null,null,null,null,null,null,null,null,null,null,null,null,null,""]
[null,null,null,null,null,null,null,null,null,null,null,null,null,null,null,null,null,null,null,null,null,null,null,null,null,null,null,null,null,null,null,null,null,null,null,null,null,null,null,null,""]
[null,null,null,null,null,null,null,null,null,null,null,null,null,null,null,null,null,null,null,null,null,null,null,null,null,null,null,null,null,null,null,null,null,null,null,null,null,null,null,null,""]
[null,null,null,null,null,null,null,null,null,null,null,null,null,null,null,null,null,null,null,null,null,null,null,null,null,null,null,null,null,null,null,null,null,null,null,null,null,null,null,null,""]
[null,null,null,null,null,null,null,null,null,null,null,null,null,null,null,null,null,null,null,null,null,null,null,null,null,null,null,null,null,null,null,null,null,null,null,null,null,null,null,null,""]
[null,null,null,null,null,null,null,null,null,null,null,null,null,null,null,null,null,null,null,null,null,null,null,null,null,null,null,null,null,null,null,null,null,null,null,null,null,null,null,null,""]
[null,null,null,null,null,null,null,null,null,null,null,null,null,null,null,null,null,null,null,null,null,null,null,null,null,null,null,null,null,null,null,null,null,null,null,null,null,null,null,null,""]
[null,null,null,null,null,null,null,null,null,null,null,null,null,null,null,null,null,null,null,null,null,null,null,null,null,null,null,null,null,null,null,null,null,null,null,null,null,null,null,null,""]
[null,null,null,null,null,null,null,null,null,null,null,null,null,null,null,null,null,null,null,null,null,null,null,null,null,null,null,null,null,null,null,null,null,null,null,null,null,null,null,null,""]
[null,null,null,null,null,null,null,null,null,null,null,null,null,null,null,null,null,null,null,null,null,null,null,null,null,null,null,null,null,null,null,null,null,null,null,null,null,null,null,null,""]
[null,null,null,null,null,null,null,null,null,null,null,null,null,null,null,null,null,null,null,null,null,null,null,null,null,null,null,null,null,null,null,null,null,null,null,null,null,null,null,null,""]
[null,null,null,null,null,null,null,null,null,null,null,null,null,null,null,null,null,null,null,null,null,null,null,null,null,null,null,null,null,null,null,null,null,null,null,null,null,null,null,null,""]
[null,null,null,null,null,null,null,null,null,null,null,null,null,null,null,null,null,null,null,null,null,null,null,null,null,null,null,null,null,null,null,null,null,null,null,null,null,null,null,null,""]
[null,null,null,null,null,null,null,null,null,null,null,null,null,null,null,null,null,null,null,null,null,null,null,null,null,null,null,null,null,null,null,null,null,null,null,null,null,null,null,null,""]
[null,null,null,null,null,null,null,null,null,null,null,null,null,null,null,null,null,null,null,null,null,null,null,null,null,null,null,null,null,null,null,null,null,null,null,null,null,null,null,null,""]
[null,null,null,null,null,null,null,null,null,null,null,null,null,null,null,null,null,null,null,null,null,null,null,null,null,null,null,null,null,null,null,null,null,null,null,null,null,null,null,null,""]
[null,null,null,null,null,null,null,null,null,null,null,null,null,null,null,null,null,null,null,null,null,null,null,null,null,null,null,null,null,null,null,null,null,null,null,null,null,null,null,null,""]
[null,null,null,null,null,null,null,null,null,null,null,null,null,null,null,null,null,null,null,null,null,null,null,null,null,null,null,null,null,null,null,null,null,null,null,null,null,null,null,null,""]
[null,null,null,null,null,null,null,null,null,null,null,null,null,null,null,null,null,null,null,null,null,null,null,null,null,null,null,null,null,null,null,null,null,null,null,null,null,null,null,null,""]
[null,null,null,null,null,null,null,null,null,null,null,null,null,null,null,null,null,null,null,null,null,null,null,null,null,null,null,null,null,null,null,null,null,null,null,null,null,null,null,null,""]
[null,null,null,null,null,null,null,null,null,null,null,null,null,null,null,null,null,null,null,null,null,null,null,null,null,null,null,null,null,null,null,null,null,null,null,null,null,null,null,null,""]
[null,null,null,null,null,null,null,null,null,null,null,null,null,null,null,null,null,null,null,null,null,null,null,null,null,null,null,null,null,null,null,null,null,null,null,null,null,null,null,null,""]
[null,null,null,null,null,null,null,null,null,null,null,null,null,null,null,null,null,null,null,null,null,null,null,null,null,null,null,null,null,null,null,null,null,null,null,null,null,null,null,null,""]
[null,null,null,null,null,null,null,null,null,null,null,null,null,null,null,null,null,null,null,null,null,null,null,null,null,null,null,null,null,null,null,null,null,null,null,null,null,null,null,null,""]
[null,null,null,null,null,null,null,null,null,null,null,null,null,null,null,null,null,null,null,null,null,null,null,null,null,null,null,null,null,null,null,null,null,null,null,null,null,null,null,null,""]
[null,null,null,null,null,null,null,null,null,null,null,null,null,null,null,null,null,null,null,null,null,null,null,null,null,null,null,null,null,null,null,null,null,null,null,null,null,null,null,null,""]
[null,null,null,null,null,null,null,null,null,null,null,null,null,null,null,null,null,null,null,null,null,null,null,null,null,null,null,null,null,null,null,null,null,null,null,null,null,null,null,null,""]
[null,null,null,null,null,null,null,null,null,null,null,null,null,null,null,null,null,null,null,null,null,null,null,null,null,null,null,null,null,null,null,null,null,null,null,null,null,null,null,null,""]
[null,null,null,null,null,null,null,null,null,null,null,null,null,null,null,null,null,null,null,null,null,null,null,null,null,null,null,null,null,null,null,null,null,null,null,null,null,null,null,null,""]
[null,null,null,null,null,null,null,null,null,null,null,null,null,null,null,null,null,null,null,null,null,null,null,null,null,null,null,null,null,null,null,null,null,null,null,null,null,null,null,null,""]
[null,null,null,null,null,null,null,null,null,null,null,null,null,null,null,null,null,null,null,null,null,null,null,null,null,null,null,null,null,null,null,null,null,null,null,null,null,null,null,null,""]
[null,null,null,null,null,null,null,null,null,null,null,null,null,null,null,null,null,null,null,null,null,null,null,null,null,null,null,null,null,null,null,null,null,null,null,null,null,null,null,null,""]
[null,null,null,null,null,null,null,null,null,null,null,null,null,null,null,null,null,null,null,null,null,null,null,null,null,null,null,null,null,null,null,null,null,null,null,null,null,null,null,null,""]
[null,null,null,null,null,null,null,null,null,null,null,null,null,null,null,null,null,null,null,null,null,null,null,null,null,null,null,null,null,null,null,null,null,null,null,null,null,null,null,null,""]
[null,null,null,null,null,null,null,null,null,null,null,null,null,null,null,null,null,null,null,null,null,null,null,null,null,null,null,null,null,null,null,null,null,null,null,null,null,null,null,null,""]
[null,null,null,null,null,null,null,null,null,null,null,null,null,null,null,null,null,null,null,null,null,null,null,null,null,null,null,null,null,null,null,null,null,null,null,null,null,null,null,null,""]
[null,null,null,null,null,null,null,null,null,null,null,null,null,null,null,null,null,null,null,null,null,null,null,null,null,null,null,null,null,null,null,null,null,null,null,null,null,null,null,null,""]
[null,null,null,null,null,null,null,null,null,null,null,null,null,null,null,null,null,null,null,null,null,null,null,null,null,null,null,null,null,null,null,null,null,null,null,null,null,null,null,null,""]
[null,null,null,null,null,null,null,null,null,null,null,null,null,null,null,null,null,null,null,null,null,null,null,null,null,null,null,null,null,null,null,null,null,null,null,null,null,null,null,null,""]
[null,null,null,null,null,null,null,null,null,null,null,null,null,null,null,null,null,null,null,null,null,null,null,null,null,null,null,null,null,null,null,null,null,null,null,null,null,null,null,null,{"$f":"IF(AD334=\"\",\"\",AD334*AG334*AJ334)","v":""}]
[null,null,null,null,null,null,null,null,null,null,null,null,null,null,null,null,null,null,null,null,null,null,null,null,null,null,null,null,null,null,null,null,null,null,null,null,null,null,null,null,{"$f":"IF(AD335=\"\",\"\",AD335*AG335*AJ335)","v":""}]
[null,null,null,null,null,null,null,null,null,null,null,null,null,null,null,null,null,null,null,null,null,null,null,null,null,null,null,null,null,null,null,null,null,null,null,null,null,null,null,null,""]
[null,null,null,null,null,null,null,null,null,null,null,null,null,null,null,null,null,null,null,null,null,null,null,null,null,null,null,null,null,null,null,null,null,null,null,null,null,null,null,null,""]
[null,null,null,null,null,null,null,null,null,null,null,null,null,null,null,null,null,null,null,null,null,null,null,null,null,null,null,null,null,null,null,null,null,null,null,null,null,null,null,null,""]
[null,null,null,null,null,null,null,null,null,null,null,null,null,null,null,null,null,null,null,null,null,null,null,null,null,null,null,null,null,null,null,null,null,null,null,null,null,null,null,null,""]
[null,null,null,null,null,null,null,null,null,null,null,null,null,null,null,null,null,null,null,null,null,null,null,null,null,null,null,null,null,null,null,null,null,null,null,null,null,null,null,null,""]
[null,null,null,null,null,null,null,null,null,null,null,null,null,null,null,null,null,null,null,null,null,null,null,null,null,null,null,null,null,null,null,null,null,null,null,null,null,null,null,null,""]
[null,null,null,null,null,null,null,null,null,null,null,null,null,null,null,null,null,null,null,null,null,null,null,null,null,null,null,null,null,null,null,null,null,null,null,null,null,null,null,null,{"$f":"IF(AD342=\"\",\"\",AD342*AG342*AJ342)","v":""}]
[null,null,null,null,null,null,null,null,null,null,null,null,null,null,null,null,null,null,null,null,null,null,null,null,null,null,null,null,null,null,null,null,null,null,null,null,null,null,null,null,""]
[null,null,null,null,null,null,null,null,null,null,null,null,null,null,null,null,null,null,null,null,null,null,null,null,null,null,null,null,null,null,null,null,null,null,null,null,null,null,null,null,""]
[null,null,null,null,null,null,null,null,null,null,null,null,null,null,null,null,null,null,null,null,null,null,null,null,null,null,null,null,null,null,null,null,null,null,null,null,null,null,null,null,""]
[null,null,null,null,null,null,null,null,null,null,null,null,null,null,null,null,null,null,null,null,null,null,null,null,null,null,null,null,null,null,null,null,null,null,null,null,null,null,null,null,""]
[null,null,null,null,null,null,null,null,null,null,null,null,null,null,null,null,null,null,null,null,null,null,null,null,null,null,null,null,null,null,null,null,null,null,null,null,null,null,null,null,""]
[null,null,null,null,null,null,null,null,null,null,null,null,null,null,null,null,null,null,null,null,null,null,null,null,null,null,null,null,null,null,null,null,null,null,null,null,null,null,null,null,""]
[null,null,null,null,null,null,null,null,null,null,null,null,null,null,null,null,null,null,null,null,null,null,null,null,null,null,null,null,null,null,null,null,null,null,null,null,null,null,null,null,""]
[null,null,null,null,null,null,null,null,null,null,null,null,null,null,null,null,null,null,null,null,null,null,null,null,null,null,null,null,null,null,null,null,null,null,null,null,null,null,null,null,""]
[null,null,null,null,null,null,null,null,null,null,null,null,null,null,null,null,null,null,null,null,null,null,null,null,null,null,null,null,null,null,null,null,null,null,null,null,null,null,null,null,""]
[null,null,null,null,null,null,null,null,null,null,null,null,null,null,null,null,null,null,null,null,null,null,null,null,null,null,null,null,null,null,null,null,null,null,null,null,null,null,null,null,""]
[null,null,null,null,null,null,null,null,null,null,null,null,null,null,null,null,null,null,null,null,null,null,null,null,null,null,null,null,null,null,null,null,null,null,null,null,null,null,null,null,""]
[null,null,null,null,null,null,null,null,null,null,null,null,null,null,null,null,null,null,null,null,null,null,null,null,null,null,null,null,null,null,null,null,null,null,null,null,null,null,null,null,""]
[null,null,null,null,null,null,null,null,null,null,null,null,null,null,null,null,null,null,null,null,null,null,null,null,null,null,null,null,null,null,null,null,null,null,null,null,null,null,null,null,""]
[null,null,null,null,null,null,null,null,null,null,null,null,null,null,null,null,null,null,null,null,null,null,null,null,null,null,null,null,null,null,null,null,null,null,null,null,null,null,null,null,""]
[null,null,null,null,null,null,null,null,null,null,null,null,null,null,null,null,null,null,null,null,null,null,null,null,null,null,null,null,null,null,null,null,null,null,null,null,null,null,null,null,""]
[null,null,null,null,null,null,null,null,null,null,null,null,null,null,null,null,null,null,null,null,null,null,null,null,null,null,null,null,null,null,null,null,null,null,null,null,null,null,null,null,""]
[null,null,null,null,null,null,null,null,null,null,null,null,null,null,null,null,null,null,null,null,null,null,null,null,null,null,null,null,null,null,null,null,null,null,null,null,null,null,null,null,""]
[null,null,null,null,null,null,null,null,null,null,null,null,null,null,null,null,null,null,null,null,null,null,null,null,null,null,null,null,null,null,null,null,null,null,null,null,null,null,null,null,""]
[null,null,null,null,null,null,null,null,null,null,null,null,null,null,null,null,null,null,null,null,null,null,null,null,null,null,null,null,null,null,null,null,null,null,null,null,null,null,null,null,""]
[null,null,null,null,null,null,null,null,null,null,null,null,null,null,null,null,null,null,null,null,null,null,null,null,null,null,null,null,null,null,null,null,null,null,null,null,null,null,null,null,""]
[null,null,null,null,null,null,null,null,null,null,null,null,null,null,null,null,null,null,null,null,null,null,null,null,null,null,null,null,null,null,null,null,null,null,null,null,null,null,null,null,""]
[null,null,null,null,null,null,null,null,null,null,null,null,null,null,null,null,null,null,null,null,null,null,null,null,null,null,null,null,null,null,null,null,null,null,null,null,null,null,null,null,""]
[null,null,null,null,null,null,null,null,null,null,null,null,null,null,null,null,null,null,null,null,null,null,null,null,null,null,null,null,null,null,null,null,null,null,null,null,null,null,null,null,""]
[null,null,null,null,null,null,null,null,null,null,null,null,null,null,null,null,null,null,null,null,null,null,null,null,null,null,null,null,null,null,null,null,null,null,null,null,null,null,null,null,""]
[null,null,null,null,null,null,null,null,null,null,null,null,null,null,null,null,null,null,null,null,null,null,null,null,null,null,null,null,null,null,null,null,null,null,null,null,null,null,null,null,""]
[null,null,null,null,null,null,null,null,null,null,null,null,null,null,null,null,null,null,null,null,null,null,null,null,null,null,null,null,null,null,null,null,null,null,null,null,null,null,null,null,""]
[null,null,null,null,null,null,null,null,null,null,null,null,null,null,null,null,null,null,null,null,null,null,null,null,null,null,null,null,null,null,null,null,null,null,null,null,null,null,null,null,""]
[null,null,null,null,null,null,null,null,null,null,null,null,null,null,null,null,null,null,null,null,null,null,null,null,null,null,null,null,null,null,null,null,null,null,null,null,null,null,null,null,""]
[null,null,null,null,null,null,null,null,null,null,null,null,null,null,null,null,null,null,null,null,null,null,null,null,null,null,null,null,null,null,null,null,null,null,null,null,null,null,null,null,""]
[null,null,null,null,null,null,null,null,null,null,null,null,null,null,null,null,null,null,null,null,null,null,null,null,null,null,null,null,null,null,null,null,null,null,null,null,null,null,null,null,""]
[null,null,null,null,null,null,null,null,null,null,null,null,null,null,null,null,null,null,null,null,null,null,null,null,null,null,null,null,null,null,null,null,null,null,null,null,null,null,null,null,""]
[null,null,null,null,null,null,null,null,null,null,null,null,null,null,null,null,null,null,null,null,null,null,null,null,null,null,null,null,null,null,null,null,null,null,null,null,null,null,null,null,""]
[null,null,null,null,null,null,null,null,null,null,null,null,null,null,null,null,null,null,null,null,null,null,null,null,null,null,null,null,null,null,null,null,null,null,null,null,null,null,null,null,""]
[null,null,null,null,null,null,null,null,null,null,null,null,null,null,null,null,null,null,null,null,null,null,null,null,null,null,null,null,null,null,null,null,null,null,null,null,null,null,null,null,""]
[null,null,null,null,null,null,null,null,null,null,null,null,null,null,null,null,null,null,null,null,null,null,null,null,null,null,null,null,null,null,null,null,null,null,null,null,null,null,null,null,""]
[null,null,null,null,null,null,null,null,null,null,null,null,null,null,null,null,null,null,null,null,null,null,null,null,null,null,null,null,null,null,null,null,null,null,null,null,null,null,null,null,""]
[null,null,null,null,null,null,null,null,null,null,null,null,null,null,null,null,null,null,null,null,null,null,null,null,null,null,null,null,null,null,null,null,null,null,null,null,null,null,null,null,""]
[null,null,null,null,null,null,null,null,null,null,null,null,null,null,null,null,null,null,null,null,null,null,null,null,null,null,null,null,null,null,null,null,null,null,null,null,null,null,null,null,""]
[null,null,null,null,null,null,null,null,null,null,null,null,null,null,null,null,null,null,null,null,null,null,null,null,null,null,null,null,null,null,null,null,null,null,null,null,null,null,null,null,""]
[null,null,null,null,null,null,null,null,null,null,null,null,null,null,null,null,null,null,null,null,null,null,null,null,null,null,null,null,null,null,null,null,null,null,null,null,null,null,null,null,""]
[null,null,null,null,null,null,null,null,null,null,null,null,null,null,null,null,null,null,null,null,null,null,null,null,null,null,null,null,null,null,null,null,null,null,null,null,null,null,null,null,{"$f":"IF(AD383=\"\",\"\",AD383*AG383*AJ383)","v":""}]
[null,null,null,null,null,null,null,null,null,null,null,null,null,null,null,null,null,null,null,null,null,null,null,null,null,null,null,null,null,null,null,null,null,null,null,null,null,null,null,null,""]
[null,null,null,null,null,null,null,null,null,null,null,null,null,null,null,null,null,null,null,null,null,null,null,null,null,null,null,null,null,null,null,null,null,null,null,null,null,null,null,null,""]
[null,null,null,null,null,null,null,null,null,null,null,null,null,null,null,null,null,null,null,null,null,null,null,null,null,null,null,null,null,null,null,null,null,null,null,null,null,null,null,null,""]
[null,null,null,null,null,null,null,null,null,null,null,null,null,null,null,null,null,null,null,null,null,null,null,null,null,null,null,null,null,null,null,null,null,null,null,null,null,null,null,null,""]
[null,null,null,null,null,null,null,null,null,null,null,null,null,null,null,null,null,null,null,null,null,null,null,null,null,null,null,null,null,null,null,null,null,null,null,null,null,null,null,null,""]
[null,null,null,null,null,null,null,null,null,null,null,null,null,null,null,null,null,null,null,null,null,null,null,null,null,null,null,null,null,null,null,null,null,null,null,null,null,null,null,null,""]
[null,null,null,null,null,null,null,null,null,null,null,null,null,null,null,null,null,null,null,null,null,null,null,null,null,null,null,null,null,null,null,null,null,null,null,null,null,null,null,null,""]
[null,null,null,null,null,null,null,null,null,null,null,null,null,null,null,null,null,null,null,null,null,null,null,null,null,null,null,null,null,null,null,null,null,null,null,null,null,null,null,null,""]
[null,null,null,null,null,null,null,null,null,null,null,null,null,null,null,null,null,null,null,null,null,null,null,null,null,null,null,null,null,null,null,null,null,null,null,null,null,null,null,null,""]
[null,null,null,null,null,null,null,null,null,null,null,null,null,null,null,null,null,null,null,null,null,null,null,null,null,null,null,null,null,null,null,null,null,null,null,null,null,null,null,null,""]
[null,null,null,null,null,null,null,null,null,null,null,null,null,null,null,null,null,null,null,null,null,null,null,null,null,null,null,null,null,null,null,null,null,null,null,null,null,null,null,null,""]
[null,null,null,null,null,null,null,null,null,null,null,null,null,null,null,null,null,null,null,null,null,null,null,null,null,null,null,null,null,null,null,null,null,null,null,null,null,null,null,null,""]
[null,null,null,null,null,null,null,null,null,null,null,null,null,null,null,null,null,null,null,null,null,null,null,null,null,null,null,null,null,null,null,null,null,null,null,null,null,null,null,null,""]
[null,null,null,null,null,null,null,null,null,null,null,null,null,null,null,null,null,null,null,null,null,null,null,null,null,null,null,null,null,null,null,null,null,null,null,null,null,null,null,null,""]
[null,null,null,null,null,null,null,null,null,null,null,null,null,null,null,null,null,null,null,null,null,null,null,null,null,null,null,null,null,null,null,null,null,null,null,null,null,null,null,null,""]
[null,null,null,null,null,null,null,null,null,null,null,null,null,null,null,null,null,null,null,null,null,null,null,null,null,null,null,null,null,null,null,null,null,null,null,null,null,null,null,null,""]
[null,null,null,null,null,null,null,null,null,null,null,null,null,null,null,null,null,null,null,null,null,null,null,null,null,null,null,null,null,null,null,null,null,null,null,null,null,null,null,null,""]
[null,null,null,null,null,null,null,null,null,null,null,null,null,null,null,null,null,null,null,null,null,null,null,null,null,null,null,null,null,null,null,null,null,null,null,null,null,null,null,null,""]
[null,null,null,null,null,null,null,null,null,null,null,null,null,null,null,null,null,null,null,null,null,null,null,null,null,null,null,null,null,null,null,null,null,null,null,null,null,null,null,null,""]
[null,null,null,null,null,null,null,null,null,null,null,null,null,null,null,null,null,null,null,null,null,null,null,null,null,null,null,null,null,null,null,null,null,null,null,null,null,null,null,null,""]
[null,null,null,null,null,null,null,null,null,null,null,null,null,null,null,null,null,null,null,null,null,null,null,null,null,null,null,null,null,null,null,null,null,null,null,null,null,null,null,null,""]
[null,null,null,null,null,null,null,null,null,null,null,null,null,null,null,null,null,null,null,null,null,null,null,null,null,null,null,null,null,null,null,null,null,null,null,null,null,null,null,null,""]
[null,null,null,null,null,null,null,null,null,null,null,null,null,null,null,null,null,null,null,null,null,null,null,null,null,null,null,null,null,null,null,null,null,null,null,null,null,null,null,null,""]
[null,null,null,null,null,null,null,null,null,null,null,null,null,null,null,null,null,null,null,null,null,null,null,null,null,null,null,null,null,null,null,null,null,null,null,null,null,null,null,null,""]
[null,null,null,null,null,null,null,null,null,null,null,null,null,null,null,null,null,null,null,null,null,null,null,null,null,null,null,null,null,null,null,null,null,null,null,null,null,null,null,null,""]
[null,null,null,null,null,null,null,null,null,null,null,null,null,null,null,null,null,null,null,null,null,null,null,null,null,null,null,null,null,null,null,null,null,null,null,null,null,null,null,null,""]
[null,null,null,null,null,null,null,null,null,null,null,null,null,null,null,null,null,null,null,null,null,null,null,null,null,null,null,null,null,null,null,null,null,null,null,null,null,null,null,null,""]
[null,null,null,null,null,null,null,null,null,null,null,null,null,null,null,null,null,null,null,null,null,null,null,null,null,null,null,null,null,null,null,null,null,null,null,null,null,null,null,null,""]
[null,null,null,null,null,null,null,null,null,null,null,null,null,null,null,null,null,null,null,null,null,null,null,null,null,null,null,null,null,null,null,null,null,null,null,null,null,null,null,null,""]
[null,null,null,null,null,null,null,null,null,null,null,null,null,null,null,null,null,null,null,null,null,null,null,null,null,null,null,null,null,null,null,null,null,null,null,null,null,null,null,null,""]
[null,null,null,null,null,null,null,null,null,null,null,null,null,null,null,null,null,null,null,null,null,null,null,null,null,null,null,null,null,null,null,null,null,null,null,null,null,null,null,null,""]
[null,null,null,null,null,null,null,null,null,null,null,null,null,null,null,null,null,null,null,null,null,null,null,null,null,null,null,null,null,null,null,null,null,null,null,null,null,null,null,null,""]
[null,null,null,null,null,null,null,null,null,null,null,null,null,null,null,null,null,null,null,null,null,null,null,null,null,null,null,null,null,null,null,null,null,null,null,null,null,null,null,null,""]
[null,null,null,null,null,null,null,null,null,null,null,null,null,null,null,null,null,null,null,null,null,null,null,null,null,null,null,null,null,null,null,null,null,null,null,null,null,null,null,null,""]
[null,null,null,null,null,null,null,null,null,null,null,null,null,null,null,null,null,null,null,null,null,null,null,null,null,null,null,null,null,null,null,null,null,null,null,null,null,null,null,null,""]
[null,null,null,null,null,null,null,null,null,null,null,null,null,null,null,null,null,null,null,null,null,null,null,null,null,null,null,null,null,null,null,null,null,null,null,null,null,null,null,null,""]
[null,null,null,null,null,null,null,null,null,null,null,null,null,null,null,null,null,null,null,null,null,null,null,null,null,null,null,null,null,null,null,null,null,null,null,null,null,null,null,null,""]
[null,null,null,null,null,null,null,null,null,null,null,null,null,null,null,null,null,null,null,null,null,null,null,null,null,null,null,null,null,null,null,null,null,null,null,null,null,null,null,null,""]
[null,null,null,null,null,null,null,null,null,null,null,null,null,null,null,null,null,null,null,null,null,null,null,null,null,null,null,null,null,null,null,null,null,null,null,null,null,null,null,null,{"$f":"IF(AD422=\"\",\"\",AD422*AG422*AJ422)","v":""}]
[null,null,null,null,null,null,null,null,null,null,null,null,null,null,null,null,null,null,null,null,null,null,null,null,null,null,null,null,null,null,null,null,null,null,null,null,null,null,null,null,""]
[null,null,null,null,null,null,null,null,null,null,null,null,null,null,null,null,null,null,null,null,null,null,null,null,null,null,null,null,null,null,null,null,null,null,null,null,null,null,null,null,""]
[null,null,null,null,null,null,null,null,null,null,null,null,null,null,null,null,null,null,null,null,null,null,null,null,null,null,null,null,null,null,null,null,null,null,null,null,null,null,null,null,""]
[null,null,null,null,null,null,null,null,null,null,null,null,null,null,null,null,null,null,null,null,null,null,null,null,null,null,null,null,null,null,null,null,null,null,null,null,null,null,null,null,""]
[null,null,null,null,null,null,null,null,null,null,null,null,null,null,null,null,null,null,null,null,null,null,null,null,null,null,null,null,null,null,null,null,null,null,null,null,null,null,null,null,""]
[null,null,null,null,null,null,null,null,null,null,null,null,null,null,null,null,null,null,null,null,null,null,null,null,null,null,null,null,null,null,null,null,null,null,null,null,null,null,null,null,""]
[null,null,null,null,null,null,null,null,null,null,null,null,null,null,null,null,null,null,null,null,null,null,null,null,null,null,null,null,null,null,null,null,null,null,null,null,null,null,null,null,""]
[null,null,null,null,null,null,null,null,null,null,null,null,null,null,null,null,null,null,null,null,null,null,null,null,null,null,null,null,null,null,null,null,null,null,null,null,null,null,null,null,""]
[null,null,null,null,null,null,null,null,null,null,null,null,null,null,null,null,null,null,null,null,null,null,null,null,null,null,null,null,null,null,null,null,null,null,null,null,null,null,null,null,""]
[null,null,null,null,null,null,null,null,null,null,null,null,null,null,null,null,null,null,null,null,null,null,null,null,null,null,null,null,null,null,null,null,null,null,null,null,null,null,null,null,""]
[null,null,null,null,null,null,null,null,null,null,null,null,null,null,null,null,null,null,null,null,null,null,null,null,null,null,null,null,null,null,null,null,null,null,null,null,null,null,null,null,""]
["TOTAL",null,null,null,null,null,null,null,null,null,null,null,null,null,null,null,null,null,null,null,null,null,null,null,null,null,null,null,null,{"$f":"SUM(AD234:AF433)","v":0},null,null,null,null,null,{"$f":"SUM(AJ234:AN433)","v":0},null,null,null,null,{"$f":"SUM(AO234:AS433)","v":0}]
[]
["SEMOVENTES"]
[]
["BOVINOS"]
["TIPO DE ANIMAL",null,null,null,null,null,null,"IDADE MÉDIA\n(MESES)",null,null,null,null,null,"RAÇA:",null,null,null,null,null,"COR PREDOMINANTE",null,null,null,null,null,null,"QUANTIDADE \n(Nº CABEÇAS)",null,null,null,null,null,null,"VALOR  UN.\n (R$)",null,null,null,null,null,"VALOR \nTOTAL (R$)"]
[null,null,null,null,null,null,null,null,null,null,null,null,null,null,null,null,null,null,null,null,null,null,null,null,null,null,null,null,null,null,null,null,null,null,null,null,null,null,null,{"$f":"IF(OR(AH440=\"\",AA440=\"\"),\"\",AH440*AA440)","v":""},null,null,null,null,null,null,{"$f":"SUM(AV440:AV489)","v":1},1]
[null,null,null,null,null,null,null,null,null,null,null,null,null,null,null,null,null,null,null,null,null,null,null,null,null,null,null,null,null,null,null,null,null,null,null,null,null,null,null,{"$f":"IF(OR(AH441=\"\",AA441=\"\"),\"\",AH441*AA441)","v":""}]
[null,null,null,null,null,null,null,null,null,null,null,null,null,null,null,null,null,null,null,null,null,null,null,null,null,null,null,null,null,null,null,null,null,null,null,null,null,null,null,""]
[null,null,null,null,null,null,null,null,null,null,null,null,null,null,null,null,null,null,null,null,null,null,null,null,null,null,null,null,null,null,null,null,null,null,null,null,null,null,null,""]
[null,null,null,null,null,null,null,null,null,null,null,null,null,null,null,null,null,null,null,null,null,null,null,null,null,null,null,null,null,null,null,null,null,null,null,null,null,null,null,""]
[null,null,null,null,null,null,null,null,null,null,null,null,null,null,null,null,null,null,null,null,null,null,null,null,null,null,null,null,null,null,null,null,null,null,null,null,null,null,null,""]
[null,null,null,null,null,null,null,null,null,null,null,null,null,null,null,null,null,null,null,null,null,null,null,null,null,null,null,null,null,null,null,null,null,null,null,null,null,null,null,""]
[null,null,null,null,null,null,null,null,null,null,null,null,null,null,null,null,null,null,null,null,null,null,null,null,null,null,null,null,null,null,null,null,null,null,null,null,null,null,null,""]
[null,null,null,null,null,null,null,null,null,null,null,null,null,null,null,null,null,null,null,null,null,null,null,null,null,null,null,null,null,null,null,null,null,null,null,null,null,null,null,""]
[null,null,null,null,null,null,null,null,null,null,null,null,null,null,null,null,null,null,null,null,null,null,null,null,null,null,null,null,null,null,null,null,null,null,null,null,null,null,null,""]
[null,null,null,null,null,null,null,null,null,null,null,null,null,null,null,null,null,null,null,null,null,null,null,null,null,null,null,null,null,null,null,null,null,null,null,null,null,null,null,""]
[null,null,null,null,null,null,null,null,null,null,null,null,null,null,null,null,null,null,null,null,null,null,null,null,null,null,null,null,null,null,null,null,null,null,null,null,null,null,null,{"$f":"IF(OR(AH451=\"\",AA451=\"\"),\"\",AH451*AA451)","v":""}]
[null,null,null,null,null,null,null,null,null,null,null,null,null,null,null,null,null,null,null,null,null,null,null,null,null,null,null,null,null,null,null,null,null,null,null,null,null,null,null,""]
[null,null,null,null,null,null,null,null,null,null,null,null,null,null,null,null,null,null,null,null,null,null,null,null,null,null,null,null,null,null,null,null,null,null,null,null,null,null,null,""]
[null,null,null,null,null,null,null,null,null,null,null,null,null,null,null,null,null,null,null,null,null,null,null,null,null,null,null,null,null,null,null,null,null,null,null,null,null,null,null,""]
[null,null,null,null,null,null,null,null,null,null,null,null,null,null,null,null,null,null,null,null,null,null,null,null,null,null,null,null,null,null,null,null,null,null,null,null,null,null,null,""]
[null,null,null,null,null,null,null,null,null,null,null,null,null,null,null,null,null,null,null,null,null,null,null,null,null,null,null,null,null,null,null,null,null,null,null,null,null,null,null,""]
[null,null,null,null,null,null,null,null,null,null,null,null,null,null,null,null,null,null,null,null,null,null,null,null,null,null,null,null,null,null,null,null,null,null,null,null,null,null,null,""]
[null,null,null,null,null,null,null,null,null,null,null,null,null,null,null,null,null,null,null,null,null,null,null,null,null,null,null,null,null,null,null,null,null,null,null,null,null,null,null,""]
[null,null,null,null,null,null,null,null,null,null,null,null,null,null,null,null,null,null,null,null,null,null,null,null,null,null,null,null,null,null,null,null,null,null,null,null,null,null,null,""]
[null,null,null,null,null,null,null,null,null,null,null,null,null,null,null,null,null,null,null,null,null,null,null,null,null,null,null,null,null,null,null,null,null,null,null,null,null,null,null,""]
[null,null,null,null,null,null,null,null,null,null,null,null,null,null,null,null,null,null,null,null,null,null,null,null,null,null,null,null,null,null,null,null,null,null,null,null,null,null,null,""]
[null,null,null,null,null,null,null,null,null,null,null,null,null,null,null,null,null,null,null,null,null,null,null,null,null,null,null,null,null,null,null,null,null,null,null,null,null,null,null,{"$f":"IF(OR(AH462=\"\",AA462=\"\"),\"\",AH462*AA462)","v":""}]
[null,null,null,null,null,null,null,null,null,null,null,null,null,null,null,null,null,null,null,null,null,null,null,null,null,null,null,null,null,null,null,null,null,null,null,null,null,null,null,""]
[null,null,null,null,null,null,null,null,null,null,null,null,null,null,null,null,null,null,null,null,null,null,null,null,null,null,null,null,null,null,null,null,null,null,null,null,null,null,null,""]
[null,null,null,null,null,null,null,null,null,null,null,null,null,null,null,null,null,null,null,null,null,null,null,null,null,null,null,null,null,null,null,null,null,null,null,null,null,null,null,""]
[null,null,null,null,null,null,null,null,null,null,null,null,null,null,null,null,null,null,null,null,null,null,null,null,null,null,null,null,null,null,null,null,null,null,null,null,null,null,null,""]
[null,null,null,null,null,null,null,null,null,null,null,null,null,null,null,null,null,null,null,null,null,null,null,null,null,null,null,null,null,null,null,null,null,null,null,null,null,null,null,""]
[null,null,null,null,null,null,null,null,null,null,null,null,null,null,null,null,null,null,null,null,null,null,null,null,null,null,null,null,null,null,null,null,null,null,null,null,null,null,null,""]
[null,null,null,null,null,null,null,null,null,null,null,null,null,null,null,null,null,null,null,null,null,null,null,null,null,null,null,null,null,null,null,null,null,null,null,null,null,null,null,""]
[null,null,null,null,null,null,null,null,null,null,null,null,null,null,null,null,null,null,null,null,null,null,null,null,null,null,null,null,null,null,null,null,null,null,null,null,null,null,null,""]
[null,null,null,null,null,null,null,null,null,null,null,null,null,null,null,null,null,null,null,null,null,null,null,null,null,null,null,null,null,null,null,null,null,null,null,null,null,null,null,""]
[null,null,null,null,null,null,null,null,null,null,null,null,null,null,null,null,null,null,null,null,null,null,null,null,null,null,null,null,null,null,null,null,null,null,null,null,null,null,null,""]
[null,null,null,null,null,null,null,null,null,null,null,null,null,null,null,null,null,null,null,null,null,null,null,null,null,null,null,null,null,null,null,null,null,null,null,null,null,null,null,""]
[null,null,null,null,null,null,null,null,null,null,null,null,null,null,null,null,null,null,null,null,null,null,null,null,null,null,null,null,null,null,null,null,null,null,null,null,null,null,null,""]
[null,null,null,null,null,null,null,null,null,null,null,null,null,null,null,null,null,null,null,null,null,null,null,null,null,null,null,null,null,null,null,null,null,null,null,null,null,null,null,""]
[null,null,null,null,null,null,null,null,null,null,null,null,null,null,null,null,null,null,null,null,null,null,null,null,null,null,null,null,null,null,null,null,null,null,null,null,null,null,null,""]
[null,null,null,null,null,null,null,null,null,null,null,null,null,null,null,null,null,null,null,null,null,null,null,null,null,null,null,null,null,null,null,null,null,null,null,null,null,null,null,""]
[null,null,null,null,null,null,null,null,null,null,null,null,null,null,null,null,null,null,null,null,null,null,null,null,null,null,null,null,null,null,null,null,null,null,null,null,null,null,null,""]
[null,null,null,null,null,null,null,null,null,null,null,null,null,null,null,null,null,null,null,null,null,null,null,null,null,null,null,null,null,null,null,null,null,null,null,null,null,null,null,""]
[null,null,null,null,null,null,null,null,null,null,null,null,null,null,null,null,null,null,null,null,null,null,null,null,null,null,null,null,null,null,null,null,null,null,null,null,null,null,null,""]
[null,null,null,null,null,null,null,null,null,null,null,null,null,null,null,null,null,null,null,null,null,null,null,null,null,null,null,null,null,null,null,null,null,null,null,null,null,null,null,""]
[null,null,null,null,null,null,null,null,null,null,null,null,null,null,null,null,null,null,null,null,null,null,null,null,null,null,null,null,null,null,null,null,null,null,null,null,null,null,null,""]
[null,null,null,null,null,null,null,null,null,null,null,null,null,null,null,null,null,null,null,null,null,null,null,null,null,null,null,null,null,null,null,null,null,null,null,null,null,null,null,""]
[null,null,null,null,null,null,null,null,null,null,null,null,null,null,null,null,null,null,null,null,null,null,null,null,null,null,null,null,null,null,null,null,null,null,null,null,null,null,null,""]
[null,null,null,null,null,null,null,null,null,null,null,null,null,null,null,null,null,null,null,null,null,null,null,null,null,null,null,null,null,null,null,null,null,null,null,null,null,null,null,""]
[null,null,null,null,null,null,null,null,null,null,null,null,null,null,null,null,null,null,null,null,null,null,null,null,null,null,null,null,null,null,null,null,null,null,null,null,null,null,null,""]
[null,null,null,null,null,null,null,null,null,null,null,null,null,null,null,null,null,null,null,null,null,null,null,null,null,null,null,null,null,null,null,null,null,null,null,null,null,null,null,""]
[null,null,null,null,null,null,null,null,null,null,null,null,null,null,null,null,null,null,null,null,null,null,null,null,null,null,null,null,null,null,null,null,null,null,null,null,null,null,null,""]
[null,null,null,null,null,null,null,null,null,null,null,null,null,null,null,null,null,null,null,null,null,null,null,null,null,null,null,null,null,null,null,null,null,null,null,null,null,null,null,""]
["TOTAL",null,null,null,null,null,null,null,null,null,null,null,null,null,null,null,null,null,null,null,null,null,null,null,null,null,{"$f":"SUM(AA440:AG489)","v":0},null,null,null,null,null,null,{"$f":"SUM(AH440:AM489)","v":0},null,null,null,null,null,{"$f":"SUM(AN440:AS489)","v":0}]
[]
["OUTROS ANIMAIS"]
["TIPO DE ANIMAL",null,null,null,null,null,null,"DESCRIÇÃO",null,null,null,null,null,null,null,null,null,null,null,null,null,null,null,null,null,null,null,null,null,null,"QTDE",null,null,"VALOR \nUNITÁRIO (R$)",null,null,null,null,null,"VALOR \nTOTAL (R$)"]
[null,null,null,null,null,null,null,null,null,null,null,null,null,null,null,null,null,null,null,null,null,null,null,null,null,null,null,null,null,null,null,null,null,null,null,null,null,null,null,{"$f":"IF(OR(AH494=\"\",AE494=\"\"),\"\",AE494*AH494)","v":""},null,null,null,null,null,null,{"$f":"SUM(AV494:AV543)","v":1},1]
[null,null,null,null,null,null,null,null,null,null,null,null,null,null,null,null,null,null,null,null,null,null,null,null,null,null,null,null,null,null,null,null,null,null,null,null,null,null,null,{"$f":"IF(OR(AH495=\"\",AE495=\"\"),\"\",AE495*AH495)","v":""}]
[null,null,null,null,null,null,null,null,null,null,null,null,null,null,null,null,null,null,null,null,null,null,null,null,null,null,null,null,null,null,null,null,null,null,null,null,null,null,null,""]
[null,null,null,null,null,null,null,null,null,null,null,null,null,null,null,null,null,null,null,null,null,null,null,null,null,null,null,null,null,null,null,null,null,null,null,null,null,null,null,""]
[null,null,null,null,null,null,null,null,null,null,null,null,null,null,null,null,null,null,null,null,null,null,null,null,null,null,null,null,null,null,null,null,null,null,null,null,null,null,null,""]
[null,null,null,null,null,null,null,null,null,null,null,null,null,null,null,null,null,null,null,null,null,null,null,null,null,null,null,null,null,null,null,null,null,null,null,null,null,null,null,""]
[null,null,null,null,null,null,null,null,null,null,null,null,null,null,null,null,null,null,null,null,null,null,null,null,null,null,null,null,null,null,null,null,null,null,null,null,null,null,null,""]
[null,null,null,null,null,null,null,null,null,null,null,null,null,null,null,null,null,null,null,null,null,null,null,null,null,null,null,null,null,null,null,null,null,null,null,null,null,null,null,""]
[null,null,null,null,null,null,null,null,null,null,null,null,null,null,null,null,null,null,null,null,null,null,null,null,null,null,null,null,null,null,null,null,null,null,null,null,null,null,null,""]
[null,null,null,null,null,null,null,null,null,null,null,null,null,null,null,null,null,null,null,null,null,null,null,null,null,null,null,null,null,null,null,null,null,null,null,null,null,null,null,""]
[null,null,null,null,null,null,null,null,null,null,null,null,null,null,null,null,null,null,null,null,null,null,null,null,null,null,null,null,null,null,null,null,null,null,null,null,null,null,null,{"$f":"IF(OR(AH504=\"\",AE504=\"\"),\"\",AE504*AH504)","v":""}]
[null,null,null,null,null,null,null,null,null,null,null,null,null,null,null,null,null,null,null,null,null,null,null,null,null,null,null,null,null,null,null,null,null,null,null,null,null,null,null,{"$f":"IF(OR(AH505=\"\",AE505=\"\"),\"\",AE505*AH505)","v":""}]
[null,null,null,null,null,null,null,null,null,null,null,null,null,null,null,null,null,null,null,null,null,null,null,null,null,null,null,null,null,null,null,null,null,null,null,null,null,null,null,""]
[null,null,null,null,null,null,null,null,null,null,null,null,null,null,null,null,null,null,null,null,null,null,null,null,null,null,null,null,null,null,null,null,null,null,null,null,null,null,null,""]
[null,null,null,null,null,null,null,null,null,null,null,null,null,null,null,null,null,null,null,null,null,null,null,null,null,null,null,null,null,null,null,null,null,null,null,null,null,null,null,""]
[null,null,null,null,null,null,null,null,null,null,null,null,null,null,null,null,null,null,null,null,null,null,null,null,null,null,null,null,null,null,null,null,null,null,null,null,null,null,null,""]
[null,null,null,null,null,null,null,null,null,null,null,null,null,null,null,null,null,null,null,null,null,null,null,null,null,null,null,null,null,null,null,null,null,null,null,null,null,null,null,""]
[null,null,null,null,null,null,null,null,null,null,null,null,null,null,null,null,null,null,null,null,null,null,null,null,null,null,null,null,null,null,null,null,null,null,null,null,null,null,null,""]
[null,null,null,null,null,null,null,null,null,null,null,null,null,null,null,null,null,null,null,null,null,null,null,null,null,null,null,null,null,null,null,null,null,null,null,null,null,null,null,""]
[null,null,null,null,null,null,null,null,null,null,null,null,null,null,null,null,null,null,null,null,null,null,null,null,null,null,null,null,null,null,null,null,null,null,null,null,null,null,null,""]
[null,null,null,null,null,null,null,null,null,null,null,null,null,null,null,null,null,null,null,null,null,null,null,null,null,null,null,null,null,null,null,null,null,null,null,null,null,null,null,{"$f":"IF(OR(AH514=\"\",AE514=\"\"),\"\",AE514*AH514)","v":""}]
[null,null,null,null,null,null,null,null,null,null,null,null,null,null,null,null,null,null,null,null,null,null,null,null,null,null,null,null,null,null,null,null,null,null,null,null,null,null,null,{"$f":"IF(OR(AH515=\"\",AE515=\"\"),\"\",AE515*AH515)","v":""}]
[null,null,null,null,null,null,null,null,null,null,null,null,null,null,null,null,null,null,null,null,null,null,null,null,null,null,null,null,null,null,null,null,null,null,null,null,null,null,null,""]
[null,null,null,null,null,null,null,null,null,null,null,null,null,null,null,null,null,null,null,null,null,null,null,null,null,null,null,null,null,null,null,null,null,null,null,null,null,null,null,""]
[null,null,null,null,null,null,null,null,null,null,null,null,null,null,null,null,null,null,null,null,null,null,null,null,null,null,null,null,null,null,null,null,null,null,null,null,null,null,null,""]
[null,null,null,null,null,null,null,null,null,null,null,null,null,null,null,null,null,null,null,null,null,null,null,null,null,null,null,null,null,null,null,null,null,null,null,null,null,null,null,""]
[null,null,null,null,null,null,null,null,null,null,null,null,null,null,null,null,null,null,null,null,null,null,null,null,null,null,null,null,null,null,null,null,null,null,null,null,null,null,null,""]
[null,null,null,null,null,null,null,null,null,null,null,null,null,null,null,null,null,null,null,null,null,null,null,null,null,null,null,null,null,null,null,null,null,null,null,null,null,null,null,""]
[null,null,null,null,null,null,null,null,null,null,null,null,null,null,null,null,null,null,null,null,null,null,null,null,null,null,null,null,null,null,null,null,null,null,null,null,null,null,null,""]
[null,null,null,null,null,null,null,null,null,null,null,null,null,null,null,null,null,null,null,null,null,null,null,null,null,null,null,null,null,null,null,null,null,null,null,null,null,null,null,""]
[null,null,null,null,null,null,null,null,null,null,null,null,null,null,null,null,null,null,null,null,null,null,null,null,null,null,null,null,null,null,null,null,null,null,null,null,null,null,null,{"$f":"IF(OR(AH524=\"\",AE524=\"\"),\"\",AE524*AH524)","v":""}]
[null,null,null,null,null,null,null,null,null,null,null,null,null,null,null,null,null,null,null,null,null,null,null,null,null,null,null,null,null,null,null,null,null,null,null,null,null,null,null,{"$f":"IF(OR(AH525=\"\",AE525=\"\"),\"\",AE525*AH525)","v":""}]
[null,null,null,null,null,null,null,null,null,null,null,null,null,null,null,null,null,null,null,null,null,null,null,null,null,null,null,null,null,null,null,null,null,null,null,null,null,null,null,""]
[null,null,null,null,null,null,null,null,null,null,null,null,null,null,null,null,null,null,null,null,null,null,null,null,null,null,null,null,null,null,null,null,null,null,null,null,null,null,null,""]
[null,null,null,null,null,null,null,null,null,null,null,null,null,null,null,null,null,null,null,null,null,null,null,null,null,null,null,null,null,null,null,null,null,null,null,null,null,null,null,""]
[null,null,null,null,null,null,null,null,null,null,null,null,null,null,null,null,null,null,null,null,null,null,null,null,null,null,null,null,null,null,null,null,null,null,null,null,null,null,null,""]
[null,null,null,null,null,null,null,null,null,null,null,null,null,null,null,null,null,null,null,null,null,null,null,null,null,null,null,null,null,null,null,null,null,null,null,null,null,null,null,""]
[null,null,null,null,null,null,null,null,null,null,null,null,null,null,null,null,null,null,null,null,null,null,null,null,null,null,null,null,null,null,null,null,null,null,null,null,null,null,null,""]
[null,null,null,null,null,null,null,null,null,null,null,null,null,null,null,null,null,null,null,null,null,null,null,null,null,null,null,null,null,null,null,null,null,null,null,null,null,null,null,""]
[null,null,null,null,null,null,null,null,null,null,null,null,null,null,null,null,null,null,null,null,null,null,null,null,null,null,null,null,null,null,null,null,null,null,null,null,null,null,null,""]
[null,null,null,null,null,null,null,null,null,null,null,null,null,null,null,null,null,null,null,null,null,null,null,null,null,null,null,null,null,null,null,null,null,null,null,null,null,null,null,""]
[null,null,null,null,null,null,null,null,null,null,null,null,null,null,null,null,null,null,null,null,null,null,null,null,null,null,null,null,null,null,null,null,null,null,null,null,null,null,null,""]
[null,null,null,null,null,null,null,null,null,null,null,null,null,null,null,null,null,null,null,null,null,null,null,null,null,null,null,null,null,null,null,null,null,null,null,null,null,null,null,""]
[null,null,null,null,null,null,null,null,null,null,null,null,null,null,null,null,null,null,null,null,null,null,null,null,null,null,null,null,null,null,null,null,null,null,null,null,null,null,null,""]
[null,null,null,null,null,null,null,null,null,null,null,null,null,null,null,null,null,null,null,null,null,null,null,null,null,null,null,null,null,null,null,null,null,null,null,null,null,null,null,""]
[null,null,null,null,null,null,null,null,null,null,null,null,null,null,null,null,null,null,null,null,null,null,null,null,null,null,null,null,null,null,null,null,null,null,null,null,null,null,null,""]
[null,null,null,null,null,null,null,null,null,null,null,null,null,null,null,null,null,null,null,null,null,null,null,null,null,null,null,null,null,null,null,null,null,null,null,null,null,null,null,""]
[null,null,null,null,null,null,null,null,null,null,null,null,null,null,null,null,null,null,null,null,null,null,null,null,null,null,null,null,null,null,null,null,null,null,null,null,null,null,null,""]
[null,null,null,null,null,null,null,null,null,null,null,null,null,null,null,null,null,null,null,null,null,null,null,null,null,null,null,null,null,null,null,null,null,null,null,null,null,null,null,""]
[null,null,null,null,null,null,null,null,null,null,null,null,null,null,null,null,null,null,null,null,null,null,null,null,null,null,null,null,null,null,null,null,null,null,null,null,null,null,null,""]
["TOTAL",null,null,null,null,null,null,null,null,null,null,null,null,null,null,null,null,null,null,null,null,null,null,null,null,null,null,null,null,null,{"$f":"SUM(AE494:AG543)","v":0},null,null,{"$f":"SUM(AH494:AM543)","v":0},null,null,null,null,null,{"$f":"SUM(AN494:AS543)","v":0}]
[]
["PATRIMÔNIO"]
[]
["BENS IMÓVEIS",null,null,null,null,null,null,null,{"$f":"SUM(I549:M551)","v":0},null,null,null,null,null,null,null,"BENS MÓVEIS",null,null,null,null,null,null,null,{"$f":"SUM(Y549:AC551)","v":0},null,null,null,null,null,null,null,"SEMOVENTES",null,null,null,null,null,null,null,{"$f":"SUM(AO549:AS550)","v":0}]
["RURAIS",null,null,null,null,null,null,null,{"$f":"SUMIF(C72:E171,\"RURAL\",AO72:AS171)","v":0},null,null,null,null,null,null,null,"VEÍCULOS",null,null,null,null,null,null,null,{"$f":"SUMIF(A234:F433,\"VEÍCULO\",AO234:AS433)","v":0},null,null,null,null,null,null,null,"BOVINOS",null,null,null,null,null,null,null,{"$f":"SUM(AN440:AS489)","v":0}]
["URBANOS",null,null,null,null,null,null,null,{"$f":"SUMIF(C72:E171,\"URBANO\",AO72:AS171)","v":0},null,null,null,null,null,null,"MÁQUINAS",null,null,null,null,null,null,null,null,{"$f":"SUMIF(A234:F433,\"MÁQUINA\",AO234:AS433)","v":0},null,null,null,null,null,null,null,"OUTROS ANIMAIS",null,null,null,null,null,null,null,{"$f":"SUM(AN494:AS543)","v":0}]
["BENFEITORIAS",null,null,null,null,null,null,null,{"$f":"SUM(AN176:AS225)","v":0},null,null,null,null,null,null,null,"EQUIPAMENTOS",null,null,null,null,null,null,null,{"$f":"SUMIF(A234:F433,\"EQUIPAMENTO\",AO234:AS433)","v":0}]
[null,null,null,null,null,null,null,null,null,null,"PATRIMÔNIO TOTAL:",null,null,null,null,null,null,null,null,null,null,null,null,null,null,{"$f":"I548+Y548+AO548","v":0}]
[]
["RECEITAS E DESPESAS"]
[]
["TIPO DE RENDA:",null,null,null,null,null,"REALIZADA",null,null,null,null,null,null,null,{"$f":"IF(TIPO_RENDA=\"PROJETADA\",\"SAFRA PROJETADA:\",\"SAFRA REALIZADA:\")","v":"SAFRA REALIZADA:"},null,null,null,null,null,null,null,null,null,"/"]
[]
["ATIVIDADES AGRÍCOLAS - REALIZADAS"]
[]
["RECEITA"]
["CULTURA",null,null,null,null,"EMPRESA / GRUPO",null,null,null,null,null,null,"PARTICIPAÇÃO\n(%)",null,null,null,"ÁREA\n(ha)",null,null,"IMÓVEL",null,null,null,"PRODUTIVIDADE (kg/ha)",null,null,null,null,"RECEITA\n(R$/kg)",null,null,null,null,null,"VALOR TOTAL\n(R$)",null,null,null,null,null,"VALOR PART. \n(R$)"]
[null,null,null,null,null,null,null,null,null,null,null,null,null,null,null,null,null,null,null,null,null,null,null,null,null,null,null,null,null,null,null,null,null,null,{"$f":"IF(AC562*X562*Q562<>0,AC562*X562*Q562,\"\")","v":""},null,null,null,null,null,{"$f":"IF(AI562=\"\",\"\",AI562*M562)","v":""},null,null,null,null,null,{"$f":"SUM(AV562:AV581)","v":1},1]
[null,null,null,null,null,null,null,null,null,null,null,null,null,null,null,null,null,null,null,null,null,null,null,null,null,null,null,null,null,null,null,null,null,null,{"$f":"IF(AC563*X563*Q563<>0,AC563*X563*Q563,\"\")","v":""},null,null,null,null,null,{"$f":"IF(AI563=\"\",\"\",AI563*M563)","v":""}]
[null,null,null,null,null,null,null,null,null,null,null,null,null,null,null,null,null,null,null,null,null,null,null,null,null,null,null,null,null,null,null,null,null,null,{"$f":"IF(AC564*X564*Q564<>0,AC564*X564*Q564,\"\")","v":""},null,null,null,null,null,""]
[null,null,null,null,null,null,null,null,null,null,null,null,null,null,null,null,null,null,null,null,null,null,null,null,null,null,null,null,null,null,null,null,null,null,{"$f":"IF(AC565*X565*Q565<>0,AC565*X565*Q565,\"\")","v":""},null,null,null,null,null,""]
[null,null,null,null,null,null,null,null,null,null,null,null,null,null,null,null,null,null,null,null,null,null,null,null,null,null,null,null,null,null,null,null,null,null,{"$f":"IF(AC566*X566*Q566<>0,AC566*X566*Q566,\"\")","v":""},null,null,null,null,null,""]
[null,null,null,null,null,null,null,null,null,null,null,null,null,null,null,null,null,null,null,null,null,null,null,null,null,null,null,null,null,null,null,null,null,null,{"$f":"IF(AC567*X567*Q567<>0,AC567*X567*Q567,\"\")","v":""},null,null,null,null,null,""]
[null,null,null,null,null,null,null,null,null,null,null,null,null,null,null,null,null,null,null,null,null,null,null,null,null,null,null,null,null,null,null,null,null,null,{"$f":"IF(AC568*X568*Q568<>0,AC568*X568*Q568,\"\")","v":""},null,null,null,null,null,""]
[null,null,null,null,null,null,null,null,null,null,null,null,null,null,null,null,null,null,null,null,null,null,null,null,null,null,null,null,null,null,null,null,null,null,{"$f":"IF(AC569*X569*Q569<>0,AC569*X569*Q569,\"\")","v":""},null,null,null,null,null,""]
[null,null,null,null,null,null,null,null,null,null,null,null,null,null,null,null,null,null,null,null,null,null,null,null,null,null,null,null,null,null,null,null,null,null,{"$f":"IF(AC570*X570*Q570<>0,AC570*X570*Q570,\"\")","v":""},null,null,null,null,null,""]
[null,null,null,null,null,null,null,null,null,null,null,null,null,null,null,null,null,null,null,null,null,null,null,null,null,null,null,null,null,null,null,null,null,null,{"$f":"IF(AC571*X571*Q571<>0,AC571*X571*Q571,\"\")","v":""},null,null,null,null,null,""]
[null,null,null,null,null,null,null,null,null,null,null,null,null,null,null,null,null,null,null,null,null,null,null,null,null,null,null,null,null,null,null,null,null,null,{"$f":"IF(AC572*X572*Q572<>0,AC572*X572*Q572,\"\")","v":""},null,null,null,null,null,""]
[null,null,null,null,null,null,null,null,null,null,null,null,null,null,null,null,null,null,null,null,null,null,null,null,null,null,null,null,null,null,null,null,null,null,{"$f":"IF(AC573*X573*Q573<>0,AC573*X573*Q573,\"\")","v":""},null,null,null,null,null,""]
[null,null,null,null,null,null,null,null,null,null,null,null,null,null,null,null,null,null,null,null,null,null,null,null,null,null,null,null,null,null,null,null,null,null,{"$f":"IF(AC574*X574*Q574<>0,AC574*X574*Q574,\"\")","v":""},null,null,null,null,null,""]
[null,null,null,null,null,null,null,null,null,null,null,null,null,null,null,null,null,null,null,null,null,null,null,null,null,null,null,null,null,null,null,null,null,null,{"$f":"IF(AC575*X575*Q575<>0,AC575*X575*Q575,\"\")","v":""},null,null,null,null,null,""]
[null,null,null,null,null,null,null,null,null,null,null,null,null,null,null,null,null,null,null,null,null,null,null,null,null,null,null,null,null,null,null,null,null,null,{"$f":"IF(AC576*X576*Q576<>0,AC576*X576*Q576,\"\")","v":""},null,null,null,null,null,""]
[null,null,null,null,null,null,null,null,null,null,null,null,null,null,null,null,null,null,null,null,null,null,null,null,null,null,null,null,null,null,null,null,null,null,{"$f":"IF(AC577*X577*Q577<>0,AC577*X577*Q577,\"\")","v":""},null,null,null,null,null,""]
[null,null,null,null,null,null,null,null,null,null,null,null,null,null,null,null,null,null,null,null,null,null,null,null,null,null,null,null,null,null,null,null,null,null,{"$f":"IF(AC578*X578*Q578<>0,AC578*X578*Q578,\"\")","v":""},null,null,null,null,null,""]
[null,null,null,null,null,null,null,null,null,null,null,null,null,null,null,null,null,null,null,null,null,null,null,null,null,null,null,null,null,null,null,null,null,null,{"$f":"IF(AC579*X579*Q579<>0,AC579*X579*Q579,\"\")","v":""},null,null,null,null,null,""]
[null,null,null,null,null,null,null,null,null,null,null,null,null,null,null,null,null,null,null,null,null,null,null,null,null,null,null,null,null,null,null,null,null,null,{"$f":"IF(AC580*X580*Q580<>0,AC580*X580*Q580,\"\")","v":""},null,null,null,null,null,""]
[null,null,null,null,null,null,null,null,null,null,null,null,null,null,null,null,null,null,null,null,null,null,null,null,null,null,null,null,null,null,null,null,null,null,{"$f":"IF(AC581*X581*Q581<>0,AC581*X581*Q581,\"\")","v":""},null,null,null,null,null,""]
["DESPESA"]
["CULTURA",null,null,null,null,"EMPRESA / GRUPO",null,null,null,null,null,null,"PARTICIPAÇÃO\n(%)",null,null,null,"ÁREA\n(ha)",null,null,"IMÓVEL",null,null,null,"PRODUTIVIDADE (kg/ha)",null,null,null,null,"DESPESA\n(R$/kg)",null,null,null,null,null,"VALOR TOTAL\n(R$)",null,null,null,null,null,"VALOR PART. \n(R$)"]
[{"$f":"IF(A562=\"\",\"\",A562)","v":""},null,null,null,null,{"$f":"IF(F562=\"\",\"\",F562)","v":""},null,null,null,null,null,null,{"$f":"IF(M562=\"\",\"\",M562)","v":""},null,null,null,{"$f":"IF(Q562=\"\",\"\",Q562)","v":""},null,null,{"$f":"IF(T562=\"\",\"\",T562)","v":""},null,null,null,{"$f":"IF(X562=\"\",\"\",X562)","v":""},null,null,null,null,null,null,null,null,null,null,{"$f":"IF(AC584=\"\",\"\",AC584*X584*Q584)","v":""},null,null,null,null,null,{"$f":"IF(AI584=\"\",\"\",AI584*M584)","v":""},null,null,null,null,null,{"$f":"SUM(AV584:AV603)","v":1},1]
["",null,null,null,null,"",null,null,null,null,null,null,{"$f":"IF(M563=\"\",\"\",M563)","v":""},null,null,null,{"$f":"IF(Q563=\"\",\"\",Q563)","v":""},null,null,{"$f":"IF(T563=\"\",\"\",T563)","v":""},null,null,null,{"$f":"IF(X563=\"\",\"\",X563)","v":""},null,null,null,null,null,null,null,null,null,null,{"$f":"IF(AC585=\"\",\"\",AC585*X585*Q585)","v":""},null,null,null,null,null,{"$f":"IF(AI585=\"\",\"\",AI585*M585)","v":""}]
["",null,null,null,null,"",null,null,null,null,null,null,"",null,null,null,"",null,null,"",null,null,null,"",null,null,null,null,null,null,null,null,null,null,"",null,null,null,null,null,""]
["",null,null,null,null,"",null,null,null,null,null,null,"",null,null,null,"",null,null,"",null,null,null,"",null,null,null,null,null,null,null,null,null,null,"",null,null,null,null,null,""]
["",null,null,null,null,"",null,null,null,null,null,null,"",null,null,null,"",null,null,"",null,null,null,"",null,null,null,null,null,null,null,null,null,null,"",null,null,null,null,null,""]
["",null,null,null,null,"",null,null,null,null,null,null,"",null,null,null,"",null,null,"",null,null,null,"",null,null,null,null,null,null,null,null,null,null,"",null,null,null,null,null,""]
["",null,null,null,null,"",null,null,null,null,null,null,"",null,null,null,"",null,null,"",null,null,null,"",null,null,null,null,null,null,null,null,null,null,"",null,null,null,null,null,""]
["",null,null,null,null,"",null,null,null,null,null,null,"",null,null,null,"",null,null,"",null,null,null,"",null,null,null,null,null,null,null,null,null,null,"",null,null,null,null,null,""]
["",null,null,null,null,"",null,null,null,null,null,null,"",null,null,null,"",null,null,"",null,null,null,"",null,null,null,null,null,null,null,null,null,null,"",null,null,null,null,null,""]
["",null,null,null,null,"",null,null,null,null,null,null,"",null,null,null,"",null,null,"",null,null,null,"",null,null,null,null,null,null,null,null,null,null,"",null,null,null,null,null,""]
["",null,null,null,null,"",null,null,null,null,null,null,"",null,null,null,"",null,null,"",null,null,null,"",null,null,null,null,null,null,null,null,null,null,"",null,null,null,null,null,""]
["",null,null,null,null,"",null,null,null,null,null,null,"",null,null,null,"",null,null,"",null,null,null,"",null,null,null,null,null,null,null,null,null,null,"",null,null,null,null,null,""]
["",null,null,null,null,"",null,null,null,null,null,null,"",null,null,null,"",null,null,"",null,null,null,"",null,null,null,null,null,null,null,null,null,null,"",null,null,null,null,null,""]
["",null,null,null,null,"",null,null,null,null,null,null,"",null,null,null,"",null,null,"",null,null,null,"",null,null,null,null,null,null,null,null,null,null,"",null,null,null,null,null,""]
["",null,null,null,null,"",null,null,null,null,null,null,"",null,null,null,"",null,null,"",null,null,null,"",null,null,null,null,null,null,null,null,null,null,"",null,null,null,null,null,""]
["",null,null,null,null,"",null,null,null,null,null,null,"",null,null,null,"",null,null,"",null,null,null,"",null,null,null,null,null,null,null,null,null,null,"",null,null,null,null,null,""]
["",null,null,null,null,"",null,null,null,null,null,null,"",null,null,null,"",null,null,"",null,null,null,"",null,null,null,null,null,null,null,null,null,null,"",null,null,null,null,null,""]
["",null,null,null,null,"",null,null,null,null,null,null,"",null,null,null,"",null,null,"",null,null,null,"",null,null,null,null,null,null,null,null,null,null,"",null,null,null,null,null,""]
["",null,null,null,null,"",null,null,null,null,null,null,"",null,null,null,"",null,null,"",null,null,null,"",null,null,null,null,null,null,null,null,null,null,"",null,null,null,null,null,""]
["",null,null,null,null,"",null,null,null,null,null,null,"",null,null,null,"",null,null,"",null,null,null,"",null,null,null,null,null,null,null,null,null,null,"",null,null,null,null,null,""]
[]
["ATIVIDADES PECUÁRIAS - REALIZADAS"]
[]
["RECEITA"]
["ATIVIDADE",null,null,null,null,null,"EMPRESA / GRUPO",null,null,null,null,null,null,"PARTICIPAÇÃO\n(%)",null,null,null,null,"UN. DE\nPRODUÇÃO",null,null,null,"PRODUTIVIDADE",null,null,null,"IMÓVEL",null,null,"RECEITA\n(R$/UN)",null,null,null,null,"VALOR TOTAL\n(R$)",null,null,null,null,null,"VALOR PART. \n(R$)"]
[null,null,null,null,null,null,null,null,null,null,null,null,null,null,null,null,null,null,{"$f":"IF(A609=\"LEITE\",\"LITROS\",IF(A609<>\"\",\"CABEÇAS\",\"\"))","v":""},null,null,null,null,null,null,null,null,null,null,null,null,null,null,null,{"$f":"IF(W609*AD609=0,\"\",W609*AD609)","v":""},null,null,null,null,null,{"$f":"IF(AI609=\"\",\"\",AI609*N609)","v":""},null,null,null,null,null,{"$f":"SUM(AV609:AV628)","v":1},1]
[null,null,null,null,null,null,null,null,null,null,null,null,null,null,null,null,null,null,{"$f":"IF(A610=\"LEITE\",\"LITROS\",IF(A610<>\"\",\"CABEÇAS\",\"\"))","v":""},null,null,null,null,null,null,null,null,null,null,null,null,null,null,null,{"$f":"IF(W610*AD610=0,\"\",W610*AD610)","v":""},null,null,null,null,null,{"$f":"IF(AI610=\"\",\"\",AI610*N610)","v":""}]
[null,null,null,null,null,null,null,null,null,null,null,null,null,null,null,null,null,null,{"$f":"IF(A611=\"LEITE\",\"LITROS\",IF(A611<>\"\",\"CABEÇAS\",\"\"))","v":""},null,null,null,null,null,null,null,null,null,null,null,null,null,null,null,"",null,null,null,null,null,{"$f":"IF(AI611=\"\",\"\",AI611*N611)","v":""}]
[null,null,null,null,null,null,null,null,null,null,null,null,null,null,null,null,null,null,{"$f":"IF(A612=\"LEITE\",\"LITROS\",IF(A612<>\"\",\"CABEÇAS\",\"\"))","v":""},null,null,null,null,null,null,null,null,null,null,null,null,null,null,null,"",null,null,null,null,null,""]
[null,null,null,null,null,null,null,null,null,null,null,null,null,null,null,null,null,null,{"$f":"IF(A613=\"LEITE\",\"LITROS\",IF(A613<>\"\",\"CABEÇAS\",\"\"))","v":""},null,null,null,null,null,null,null,null,null,null,null,null,null,null,null,"",null,null,null,null,null,""]
[null,null,null,null,null,null,null,null,null,null,null,null,null,null,null,null,null,null,{"$f":"IF(A614=\"LEITE\",\"LITROS\",IF(A614<>\"\",\"CABEÇAS\",\"\"))","v":""},null,null,null,null,null,null,null,null,null,null,null,null,null,null,null,"",null,null,null,null,null,""]
[null,null,null,null,null,null,null,null,null,null,null,null,null,null,null,null,null,null,{"$f":"IF(A615=\"LEITE\",\"LITROS\",IF(A615<>\"\",\"CABEÇAS\",\"\"))","v":""},null,null,null,null,null,null,null,null,null,null,null,null,null,null,null,"",null,null,null,null,null,""]
[null,null,null,null,null,null,null,null,null,null,null,null,null,null,null,null,null,null,{"$f":"IF(A616=\"LEITE\",\"LITROS\",IF(A616<>\"\",\"CABEÇAS\",\"\"))","v":""},null,null,null,null,null,null,null,null,null,null,null,null,null,null,null,"",null,null,null,null,null,""]
[null,null,null,null,null,null,null,null,null,null,null,null,null,null,null,null,null,null,{"$f":"IF(A617=\"LEITE\",\"LITROS\",IF(A617<>\"\",\"CABEÇAS\",\"\"))","v":""},null,null,null,null,null,null,null,null,null,null,null,null,null,null,null,"",null,null,null,null,null,""]
[null,null,null,null,null,null,null,null,null,null,null,null,null,null,null,null,null,null,{"$f":"IF(A618=\"LEITE\",\"LITROS\",IF(A618<>\"\",\"CABEÇAS\",\"\"))","v":""},null,null,null,null,null,null,null,null,null,null,null,null,null,null,null,"",null,null,null,null,null,""]
[null,null,null,null,null,null,null,null,null,null,null,null,null,null,null,null,null,null,{"$f":"IF(A619=\"LEITE\",\"LITROS\",IF(A619<>\"\",\"CABEÇAS\",\"\"))","v":""},null,null,null,null,null,null,null,null,null,null,null,null,null,null,null,"",null,null,null,null,null,""]
[null,null,null,null,null,null,null,null,null,null,null,null,null,null,null,null,null,null,{"$f":"IF(A620=\"LEITE\",\"LITROS\",IF(A620<>\"\",\"CABEÇAS\",\"\"))","v":""},null,null,null,null,null,null,null,null,null,null,null,null,null,null,null,"",null,null,null,null,null,""]
[null,null,null,null,null,null,null,null,null,null,null,null,null,null,null,null,null,null,{"$f":"IF(A621=\"LEITE\",\"LITROS\",IF(A621<>\"\",\"CABEÇAS\",\"\"))","v":""},null,null,null,null,null,null,null,null,null,null,null,null,null,null,null,"",null,null,null,null,null,""]
[null,null,null,null,null,null,null,null,null,null,null,null,null,null,null,null,null,null,{"$f":"IF(A622=\"LEITE\",\"LITROS\",IF(A622<>\"\",\"CABEÇAS\",\"\"))","v":""},null,null,null,null,null,null,null,null,null,null,null,null,null,null,null,"",null,null,null,null,null,""]
[null,null,null,null,null,null,null,null,null,null,null,null,null,null,null,null,null,null,{"$f":"IF(A623=\"LEITE\",\"LITROS\",IF(A623<>\"\",\"CABEÇAS\",\"\"))","v":""},null,null,null,null,null,null,null,null,null,null,null,null,null,null,null,"",null,null,null,null,null,""]
[null,null,null,null,null,null,null,null,null,null,null,null,null,null,null,null,null,null,{"$f":"IF(A624=\"LEITE\",\"LITROS\",IF(A624<>\"\",\"CABEÇAS\",\"\"))","v":""},null,null,null,null,null,null,null,null,null,null,null,null,null,null,null,"",null,null,null,null,null,""]
[null,null,null,null,null,null,null,null,null,null,null,null,null,null,null,null,null,null,{"$f":"IF(A625=\"LEITE\",\"LITROS\",IF(A625<>\"\",\"CABEÇAS\",\"\"))","v":""},null,null,null,null,null,null,null,null,null,null,null,null,null,null,null,"",null,null,null,null,null,""]
[null,null,null,null,null,null,null,null,null,null,null,null,null,null,null,null,null,null,{"$f":"IF(A626=\"LEITE\",\"LITROS\",IF(A626<>\"\",\"CABEÇAS\",\"\"))","v":""},null,null,null,null,null,null,null,null,null,null,null,null,null,null,null,"",null,null,null,null,null,""]
[null,null,null,null,null,null,null,null,null,null,null,null,null,null,null,null,null,null,{"$f":"IF(A627=\"LEITE\",\"LITROS\",IF(A627<>\"\",\"CABEÇAS\",\"\"))","v":""},null,null,null,null,null,null,null,null,null,null,null,null,null,null,null,"",null,null,null,null,null,""]
[null,null,null,null,null,null,null,null,null,null,null,null,null,null,null,null,null,null,{"$f":"IF(A628=\"LEITE\",\"LITROS\",IF(A628<>\"\",\"CABEÇAS\",\"\"))","v":""},null,null,null,null,null,null,null,null,null,null,null,null,null,null,null,"",null,null,null,null,null,""]
["DESPESA"]
["ATIVIDADE",null,null,null,null,null,"EMPRESA / GRUPO",null,null,null,null,null,null,"PARTICIPAÇÃO\n(%)",null,null,null,null,"UN. DE\nPRODUÇÃO",null,null,null,"PRODUTIVIDADE",null,null,null,"IMÓVEL",null,null,"DESPESA\n(R$/UN)",null,null,null,null,"VALOR TOTAL\n(R$)",null,null,null,null,null,"VALOR PART. \n(R$)"]
[{"$f":"IF(A609=\"\",\"\",A609)","v":""},null,null,null,null,null,{"$f":"IF(G609=\"\",\"\",G609)","v":""},null,null,null,null,null,null,{"$f":"IF(N609=\"\",\"\",N609)","v":""},null,null,null,null,{"$f":"IF(S609=\"\",\"\",S609)","v":""},null,null,null,{"$f":"IF(W609=\"\",\"\",W609)","v":""},null,null,null,{"$f":"IF(AA609=\"\",\"\",AA609)","v":""},null,null,null,null,null,null,null,{"$f":"IF(OR(AD631=\"\",W631=\"\"),\"\",AD631*W631)","v":""},null,null,null,null,null,{"$f":"IF(OR(AD631=\"\",W631=\"\",N631=\"\"),\"\",AD631*W631*N631)","v":""},null,null,null,null,null,{"$f":"SUM(AV631:AV650)","v":1},1]
["",null,null,null,null,null,"",null,null,null,null,null,null,"",null,null,null,null,{"$f":"IF(S610=\"\",\"\",S610)","v":""},null,null,null,{"$f":"IF(W610=\"\",\"\",W610)","v":""},null,null,null,{"$f":"IF(AA610=\"\",\"\",AA610)","v":""},null,null,null,null,null,null,null,{"$f":"IF(OR(AD632=\"\",W632=\"\"),\"\",AD632*W632)","v":""},null,null,null,null,null,{"$f":"IF(OR(AD632=\"\",W632=\"\",N632=\"\"),\"\",AD632*W632*N632)","v":""}]
["",null,null,null,null,null,"",null,null,null,null,null,null,"",null,null,null,null,"",null,null,null,"",null,null,null,"",null,null,null,null,null,null,null,"",null,null,null,null,null,""]
["",null,null,null,null,null,"",null,null,null,null,null,null,"",null,null,null,null,"",null,null,null,"",null,null,null,"",null,null,null,null,null,null,null,"",null,null,null,null,null,""]
["",null,null,null,null,null,"",null,null,null,null,null,null,"",null,null,null,null,"",null,null,null,"",null,null,null,"",null,null,null,null,null,null,null,"",null,null,null,null,null,""]
["",null,null,null,null,null,"",null,null,null,null,null,null,"",null,null,null,null,"",null,null,null,"",null,null,null,"",null,null,null,null,null,null,null,"",null,null,null,null,null,""]
["",null,null,null,null,null,"",null,null,null,null,null,null,"",null,null,null,null,"",null,null,null,"",null,null,null,"",null,null,null,null,null,null,null,"",null,null,null,null,null,""]
["",null,null,null,null,null,"",null,null,null,null,null,null,"",null,null,null,null,"",null,null,null,"",null,null,null,"",null,null,null,null,null,null,null,"",null,null,null,null,null,""]
["",null,null,null,null,null,"",null,null,null,null,null,null,"",null,null,null,null,"",null,null,null,"",null,null,null,"",null,null,null,null,null,null,null,"",null,null,null,null,null,""]
["",null,null,null,null,null,"",null,null,null,null,null,null,"",null,null,null,null,"",null,null,null,"",null,null,null,"",null,null,null,null,null,null,null,"",null,null,null,null,null,""]
["",null,null,null,null,null,"",null,null,null,null,null,null,"",null,null,null,null,"",null,null,null,"",null,null,null,"",null,null,null,null,null,null,null,"",null,null,null,null,null,""]
["",null,null,null,null,null,"",null,null,null,null,null,null,"",null,null,null,null,"",null,null,null,"",null,null,null,"",null,null,null,null,null,null,null,"",null,null,null,null,null,""]
["",null,null,null,null,null,"",null,null,null,null,null,null,"",null,null,null,null,"",null,null,null,"",null,null,null,"",null,null,null,null,null,null,null,"",null,null,null,null,null,""]
["",null,null,null,null,null,"",null,null,null,null,null,null,"",null,null,null,null,"",null,null,null,"",null,null,null,"",null,null,null,null,null,null,null,"",null,null,null,null,null,""]
["",null,null,null,null,null,"",null,null,null,null,null,null,"",null,null,null,null,"",null,null,null,"",null,null,null,"",null,null,null,null,null,null,null,"",null,null,null,null,null,""]
["",null,null,null,null,null,"",null,null,null,null,null,null,"",null,null,null,null,"",null,null,null,"",null,null,null,"",null,null,null,null,null,null,null,"",null,null,null,null,null,""]
["",null,null,null,null,null,"",null,null,null,null,null,null,"",null,null,null,null,"",null,null,null,"",null,null,null,"",null,null,null,null,null,null,null,"",null,null,null,null,null,""]
["",null,null,null,null,null,"",null,null,null,null,null,null,"",null,null,null,null,"",null,null,null,"",null,null,null,"",null,null,null,null,null,null,null,"",null,null,null,null,null,""]
["",null,null,null,null,null,"",null,null,null,null,null,null,"",null,null,null,null,"",null,null,null,"",null,null,null,"",null,null,null,null,null,null,null,"",null,null,null,null,null,""]
["",null,null,null,null,null,"",null,null,null,null,null,null,"",null,null,null,null,"",null,null,null,"",null,null,null,"",null,null,null,null,null,null,null,"",null,null,null,null,null,""]
[]
["MARGEM FINANCEIRA - REALIZADA"]
[null,null,null,null,null,null,null,null,null,null,null,null,null,"Receita Líquida:",null,null,null,null,null,null,null,{"$f":"R654-AN654","v":0}]
["RECEITAS",null,null,null,null,null,null,null,null,null,null,null,null,null,null,null,null,{"$f":"IF(SUM(R655:W656)+SUM(R662:W665)=0,0,SUM(R655:W656)+SUM(R662:W665))","v":0},null,null,null,null,null,"DESPESAS",null,null,null,null,null,null,null,null,null,null,null,null,null,null,null,{"$f":"IF(SUM(AN655:AS659)+SUM(AN662:AS665)+AN660=0,0,SUM(AN655:AS659)+SUM(AN662:AS665)+AN660*12)","v":0}]
["RECEITA REALIZADA ATIVIDADES AGRÍCOLAS",null,null,null,null,null,null,null,null,null,null,null,null,null,null,null,null,{"$f":"SUM(AO562:AS581)","v":0},null,null,null,null,null,"CUSTO REALIZADO ATIVIDADES AGRÍCOLAS",null,null,null,null,null,null,null,null,null,null,null,null,null,null,null,{"$f":"SUM(AO584:AS603)","v":0}]
["RECEITA REALIZADA ATIVIDADES PECUÁRIAS",null,null,null,null,null,null,null,null,null,null,null,null,null,null,null,null,{"$f":"SUM(AO609:AS628)","v":0},null,null,null,null,null,"CUSTO REALIZADO ATIVIDADES PECUÁRIAS",null,null,null,null,null,null,null,null,null,null,null,null,null,null,null,{"$f":"SUM(AO631:AS650)","v":0}]
[null,null,null,null,null,null,null,null,null,null,null,null,null,null,null,null,null,null,null,null,null,null,null,"ARRENDAMENTOS"]
[null,null,null,null,null,null,null,null,null,null,null,null,null,null,null,null,null,null,null,null,null,null,null,"JUROS DE FINANCIAMENTOS"]
[null,null,null,null,null,null,null,null,null,null,null,null,null,null,null,null,null,null,null,null,null,null,null,"MANUTENÇÃO DE MAQUINÁRIO"]
[null,null,null,null,null,null,null,null,null,null,null,null,null,null,null,null,null,null,null,null,null,null,null,"MANUTENÇÃO FAMILIAR MENSAL"]
["OUTRAS RECEITAS",null,null,null,null,null,null,null,null,null,null,null,null,null,null,null,null,null,null,null,null,null,null,"OUTRAS DESPESAS"]
[]
[]
[]
[]
[null,null,null,null,null,null,null,null,null,null,"MARGEM FINANCEIRA LÍQUIDA:",null,null,null,null,null,null,null,null,null,null,null,null,null,null,{"$f":"IF(AND(R654=\"\",AN654=\"\"),\"\",R654-AN654)","v":0}]
[]
["ATIVIDADE AGRÍCOLAS - PROJETADAS"]
[]
["RECEITA"]
["CULTURA",null,null,null,null,"EMPRESA / GRUPO",null,null,null,null,null,null,"PARTICIPAÇÃO\n(%)",null,null,null,"ÁREA\n(ha)",null,null,"IMÓVEL",null,null,null,"PRODUTIVIDADE (kg/ha)",null,null,null,null,"RECEITA\n(R$/kg)",null,null,null,null,null,"VALOR TOTAL\n(R$)",null,null,null,null,null,"VALOR PART. \n(R$)"]
[null,null,null,null,null,null,null,null,null,null,null,null,null,null,null,null,null,null,null,null,null,null,null,null,null,null,null,null,null,null,null,null,null,null,{"$f":"IF(AC672*X672*Q672<>0,AC672*X672*Q672,\"\")","v":""},null,null,null,null,null,{"$f":"IF(AI672=\"\",\"\",AI672*M672)","v":""},null,null,null,null,null,{"$f":"SUM(AV672:AV691)","v":1},1]
[null,null,null,null,null,null,null,null,null,null,null,null,null,null,null,null,null,null,null,null,null,null,null,null,null,null,null,null,null,null,null,null,null,null,{"$f":"IF(AC673*X673*Q673<>0,AC673*X673*Q673,\"\")","v":""},null,null,null,null,null,{"$f":"IF(AI673=\"\",\"\",AI673*M673)","v":""}]
[null,null,null,null,null,null,null,null,null,null,null,null,null,null,null,null,null,null,null,null,null,null,null,null,null,null,null,null,null,null,null,null,null,null,{"$f":"IF(AC674*X674*Q674<>0,AC674*X674*Q674,\"\")","v":""},null,null,null,null,null,""]
[null,null,null,null,null,null,null,null,null,null,null,null,null,null,null,null,null,null,null,null,null,null,null,null,null,null,null,null,null,null,null,null,null,null,{"$f":"IF(AC675*X675*Q675<>0,AC675*X675*Q675,\"\")","v":""},null,null,null,null,null,""]
[null,null,null,null,null,null,null,null,null,null,null,null,null,null,null,null,null,null,null,null,null,null,null,null,null,null,null,null,null,null,null,null,null,null,{"$f":"IF(AC676*X676*Q676<>0,AC676*X676*Q676,\"\")","v":""},null,null,null,null,null,""]
[null,null,null,null,null,null,null,null,null,null,null,null,null,null,null,null,null,null,null,null,null,null,null,null,null,null,null,null,null,null,null,null,null,null,{"$f":"IF(AC677*X677*Q677<>0,AC677*X677*Q677,\"\")","v":""},null,null,null,null,null,""]
[null,null,null,null,null,null,null,null,null,null,null,null,null,null,null,null,null,null,null,null,null,null,null,null,null,null,null,null,null,null,null,null,null,null,{"$f":"IF(AC678*X678*Q678<>0,AC678*X678*Q678,\"\")","v":""},null,null,null,null,null,""]
[null,null,null,null,null,null,null,null,null,null,null,null,null,null,null,null,null,null,null,null,null,null,null,null,null,null,null,null,null,null,null,null,null,null,{"$f":"IF(AC679*X679*Q679<>0,AC679*X679*Q679,\"\")","v":""},null,null,null,null,null,""]
[null,null,null,null,null,null,null,null,null,null,null,null,null,null,null,null,null,null,null,null,null,null,null,null,null,null,null,null,null,null,null,null,null,null,{"$f":"IF(AC680*X680*Q680<>0,AC680*X680*Q680,\"\")","v":""},null,null,null,null,null,""]
[null,null,null,null,null,null,null,null,null,null,null,null,null,null,null,null,null,null,null,null,null,null,null,null,null,null,null,null,null,null,null,null,null,null,{"$f":"IF(AC681*X681*Q681<>0,AC681*X681*Q681,\"\")","v":""},null,null,null,null,null,""]
[null,null,null,null,null,null,null,null,null,null,null,null,null,null,null,null,null,null,null,null,null,null,null,null,null,null,null,null,null,null,null,null,null,null,{"$f":"IF(AC682*X682*Q682<>0,AC682*X682*Q682,\"\")","v":""},null,null,null,null,null,""]
[null,null,null,null,null,null,null,null,null,null,null,null,null,null,null,null,null,null,null,null,null,null,null,null,null,null,null,null,null,null,null,null,null,null,{"$f":"IF(AC683*X683*Q683<>0,AC683*X683*Q683,\"\")","v":""},null,null,null,null,null,""]
[null,null,null,null,null,null,null,null,null,null,null,null,null,null,null,null,null,null,null,null,null,null,null,null,null,null,null,null,null,null,null,null,null,null,{"$f":"IF(AC684*X684*Q684<>0,AC684*X684*Q684,\"\")","v":""},null,null,null,null,null,""]
[null,null,null,null,null,null,null,null,null,null,null,null,null,null,null,null,null,null,null,null,null,null,null,null,null,null,null,null,null,null,null,null,null,null,{"$f":"IF(AC685*X685*Q685<>0,AC685*X685*Q685,\"\")","v":""},null,null,null,null,null,""]
[null,null,null,null,null,null,null,null,null,null,null,null,null,null,null,null,null,null,null,null,null,null,null,null,null,null,null,null,null,null,null,null,null,null,{"$f":"IF(AC686*X686*Q686<>0,AC686*X686*Q686,\"\")","v":""},null,null,null,null,null,""]
[null,null,null,null,null,null,null,null,null,null,null,null,null,null,null,null,null,null,null,null,null,null,null,null,null,null,null,null,null,null,null,null,null,null,{"$f":"IF(AC687*X687*Q687<>0,AC687*X687*Q687,\"\")","v":""},null,null,null,null,null,""]
[null,null,null,null,null,null,null,null,null,null,null,null,null,null,null,null,null,null,null,null,null,null,null,null,null,null,null,null,null,null,null,null,null,null,{"$f":"IF(AC688*X688*Q688<>0,AC688*X688*Q688,\"\")","v":""},null,null,null,null,null,""]
[null,null,null,null,null,null,null,null,null,null,null,null,null,null,null,null,null,null,null,null,null,null,null,null,null,null,null,null,null,null,null,null,null,null,{"$f":"IF(AC689*X689*Q689<>0,AC689*X689*Q689,\"\")","v":""},null,null,null,null,null,""]
[null,null,null,null,null,null,null,null,null,null,null,null,null,null,null,null,null,null,null,null,null,null,null,null,null,null,null,null,null,null,null,null,null,null,{"$f":"IF(AC690*X690*Q690<>0,AC690*X690*Q690,\"\")","v":""},null,null,null,null,null,""]
[null,null,null,null,null,null,null,null,null,null,null,null,null,null,null,null,null,null,null,null,null,null,null,null,null,null,null,null,null,null,null,null,null,null,{"$f":"IF(AC691*X691*Q691<>0,AC691*X691*Q691,\"\")","v":""},null,null,null,null,null,""]
["DESPESA"]
["CULTURA",null,null,null,null,"EMPRESA / GRUPO",null,null,null,null,null,null,"PARTICIPAÇÃO\n(%)",null,null,null,"ÁREA\n(ha)",null,null,"IMÓVEL",null,null,null,"PRODUTIVIDADE (kg/ha)",null,null,null,null,"DESPESA\n(R$/kg)",null,null,null,null,null,"VALOR TOTAL\n(R$)",null,null,null,null,null,"VALOR PART. \n(R$)"]
[{"$f":"IF(A672=\"\",\"\",A672)","v":""},null,null,null,null,{"$f":"IF(F672=\"\",\"\",F672)","v":""},null,null,null,null,null,null,{"$f":"IF(M672=\"\",\"\",M672)","v":""},null,null,null,{"$f":"IF(Q672=\"\",\"\",Q672)","v":""},null,null,{"$f":"IF(T672=\"\",\"\",T672)","v":""},null,null,null,{"$f":"IF(X672=\"\",\"\",X672)","v":""},null,null,null,null,null,null,null,null,null,null,{"$f":"IF(AC694=\"\",\"\",AC694*X694*Q694)","v":""},null,null,null,null,null,{"$f":"IF(AI694=\"\",\"\",AI694*M694)","v":""},null,null,null,null,null,{"$f":"SUM(AV694:AV713)","v":1},1]
["",null,null,null,null,"",null,null,null,null,null,null,{"$f":"IF(M673=\"\",\"\",M673)","v":""},null,null,null,{"$f":"IF(Q673=\"\",\"\",Q673)","v":""},null,null,{"$f":"IF(T673=\"\",\"\",T673)","v":""},null,null,null,{"$f":"IF(X673=\"\",\"\",X673)","v":""},null,null,null,null,null,null,null,null,null,null,{"$f":"IF(AC695=\"\",\"\",AC695*X695*Q695)","v":""},null,null,null,null,null,{"$f":"IF(AI695=\"\",\"\",AI695*M695)","v":""}]
["",null,null,null,null,"",null,null,null,null,null,null,"",null,null,null,"",null,null,"",null,null,null,"",null,null,null,null,null,null,null,null,null,null,"",null,null,null,null,null,""]
["",null,null,null,null,"",null,null,null,null,null,null,"",null,null,null,"",null,null,"",null,null,null,"",null,null,null,null,null,null,null,null,null,null,"",null,null,null,null,null,""]
["",null,null,null,null,"",null,null,null,null,null,null,"",null,null,null,"",null,null,"",null,null,null,"",null,null,null,null,null,null,null,null,null,null,"",null,null,null,null,null,""]
["",null,null,null,null,"",null,null,null,null,null,null,"",null,null,null,"",null,null,"",null,null,null,"",null,null,null,null,null,null,null,null,null,null,"",null,null,null,null,null,""]
["",null,null,null,null,"",null,null,null,null,null,null,"",null,null,null,"",null,null,"",null,null,null,"",null,null,null,null,null,null,null,null,null,null,"",null,null,null,null,null,""]
["",null,null,null,null,"",null,null,null,null,null,null,"",null,null,null,"",null,null,"",null,null,null,"",null,null,null,null,null,null,null,null,null,null,"",null,null,null,null,null,""]
["",null,null,null,null,"",null,null,null,null,null,null,"",null,null,null,"",null,null,"",null,null,null,"",null,null,null,null,null,null,null,null,null,null,"",null,null,null,null,null,""]
["",null,null,null,null,"",null,null,null,null,null,null,"",null,null,null,"",null,null,"",null,null,null,"",null,null,null,null,null,null,null,null,null,null,"",null,null,null,null,null,""]
["",null,null,null,null,"",null,null,null,null,null,null,"",null,null,null,"",null,null,"",null,null,null,"",null,null,null,null,null,null,null,null,null,null,"",null,null,null,null,null,""]
["",null,null,null,null,"",null,null,null,null,null,null,"",null,null,null,"",null,null,"",null,null,null,"",null,null,null,null,null,null,null,null,null,null,"",null,null,null,null,null,""]
["",null,null,null,null,"",null,null,null,null,null,null,"",null,null,null,"",null,null,"",null,null,null,"",null,null,null,null,null,null,null,null,null,null,"",null,null,null,null,null,""]
["",null,null,null,null,"",null,null,null,null,null,null,"",null,null,null,"",null,null,"",null,null,null,"",null,null,null,null,null,null,null,null,null,null,"",null,null,null,null,null,""]
["",null,null,null,null,"",null,null,null,null,null,null,"",null,null,null,"",null,null,"",null,null,null,"",null,null,null,null,null,null,null,null,null,null,"",null,null,null,null,null,""]
["",null,null,null,null,"",null,null,null,null,null,null,"",null,null,null,"",null,null,"",null,null,null,"",null,null,null,null,null,null,null,null,null,null,"",null,null,null,null,null,""]
["",null,null,null,null,"",null,null,null,null,null,null,"",null,null,null,"",null,null,"",null,null,null,"",null,null,null,null,null,null,null,null,null,null,"",null,null,null,null,null,""]
["",null,null,null,null,"",null,null,null,null,null,null,"",null,null,null,"",null,null,"",null,null,null,"",null,null,null,null,null,null,null,null,null,null,"",null,null,null,null,null,""]
["",null,null,null,null,"",null,null,null,null,null,null,"",null,null,null,"",null,null,"",null,null,null,"",null,null,null,null,null,null,null,null,null,null,"",null,null,null,null,null,""]
["",null,null,null,null,"",null,null,null,null,null,null,"",null,null,null,"",null,null,"",null,null,null,"",null,null,null,null,null,null,null,null,null,null,"",null,null,null,null,null,""]
[]
["ATIVIDADE PECUÁRIAS - PROJETADAS"]
[]
["RECEITA"]
["ATIVIDADE",null,null,null,null,null,"EMPRESA / GRUPO",null,null,null,null,null,null,"PARTICIPAÇÃO\n(%)",null,null,null,null,"UN. DE\nPRODUÇÃO",null,null,null,"PRODUTIVIDADE",null,null,null,"IMÓVEL",null,null,"RECEITA\n(R$/UN)",null,null,null,null,"VALOR TOTAL\n(R$)",null,null,null,null,null,"VALOR PART. \n(R$)"]
[null,null,null,null,null,null,null,null,null,null,null,null,null,null,null,null,null,null,{"$f":"IF(A719=\"LEITE\",\"LITROS\",IF(A719<>\"\",\"CABEÇAS\",\"\"))","v":""},null,null,null,null,null,null,null,null,null,null,null,null,null,null,null,{"$f":"IF(W719*AD719=0,\"\",W719*AD719)","v":""},null,null,null,null,null,{"$f":"IF(AI719=\"\",\"\",AI719*N719)","v":""},null,null,null,null,null,{"$f":"SUM(AV719:AV738)","v":1},1]
[null,null,null,null,null,null,null,null,null,null,null,null,null,null,null,null,null,null,{"$f":"IF(A720=\"LEITE\",\"LITROS\",IF(A720<>\"\",\"CABEÇAS\",\"\"))","v":""},null,null,null,null,null,null,null,null,null,null,null,null,null,null,null,{"$f":"IF(W720*AD720=0,\"\",W720*AD720)","v":""},null,null,null,null,null,{"$f":"IF(AI720=\"\",\"\",AI720*N720)","v":""}]
[null,null,null,null,null,null,null,null,null,null,null,null,null,null,null,null,null,null,{"$f":"IF(A721=\"LEITE\",\"LITROS\",IF(A721<>\"\",\"CABEÇAS\",\"\"))","v":""},null,null,null,null,null,null,null,null,null,null,null,null,null,null,null,"",null,null,null,null,null,{"$f":"IF(AI721=\"\",\"\",AI721*N721)","v":""}]
[null,null,null,null,null,null,null,null,null,null,null,null,null,null,null,null,null,null,{"$f":"IF(A722=\"LEITE\",\"LITROS\",IF(A722<>\"\",\"CABEÇAS\",\"\"))","v":""},null,null,null,null,null,null,null,null,null,null,null,null,null,null,null,"",null,null,null,null,null,""]
[null,null,null,null,null,null,null,null,null,null,null,null,null,null,null,null,null,null,{"$f":"IF(A723=\"LEITE\",\"LITROS\",IF(A723<>\"\",\"CABEÇAS\",\"\"))","v":""},null,null,null,null,null,null,null,null,null,null,null,null,null,null,null,"",null,null,null,null,null,""]
[null,null,null,null,null,null,null,null,null,null,null,null,null,null,null,null,null,null,{"$f":"IF(A724=\"LEITE\",\"LITROS\",IF(A724<>\"\",\"CABEÇAS\",\"\"))","v":""},null,null,null,null,null,null,null,null,null,null,null,null,null,null,null,"",null,null,null,null,null,""]
[null,null,null,null,null,null,null,null,null,null,null,null,null,null,null,null,null,null,{"$f":"IF(A725=\"LEITE\",\"LITROS\",IF(A725<>\"\",\"CABEÇAS\",\"\"))","v":""},null,null,null,null,null,null,null,null,null,null,null,null,null,null,null,"",null,null,null,null,null,""]
[null,null,null,null,null,null,null,null,null,null,null,null,null,null,null,null,null,null,{"$f":"IF(A726=\"LEITE\",\"LITROS\",IF(A726<>\"\",\"CABEÇAS\",\"\"))","v":""},null,null,null,null,null,null,null,null,null,null,null,null,null,null,null,"",null,null,null,null,null,""]
[null,null,null,null,null,null,null,null,null,null,null,null,null,null,null,null,null,null,{"$f":"IF(A727=\"LEITE\",\"LITROS\",IF(A727<>\"\",\"CABEÇAS\",\"\"))","v":""},null,null,null,null,null,null,null,null,null,null,null,null,null,null,null,"",null,null,null,null,null,""]
[null,null,null,null,null,null,null,null,null,null,null,null,null,null,null,null,null,null,{"$f":"IF(A728=\"LEITE\",\"LITROS\",IF(A728<>\"\",\"CABEÇAS\",\"\"))","v":""},null,null,null,null,null,null,null,null,null,null,null,null,null,null,null,"",null,null,null,null,null,""]
[null,null,null,null,null,null,null,null,null,null,null,null,null,null,null,null,null,null,{"$f":"IF(A729=\"LEITE\",\"LITROS\",IF(A729<>\"\",\"CABEÇAS\",\"\"))","v":""},null,null,null,null,null,null,null,null,null,null,null,null,null,null,null,"",null,null,null,null,null,""]
[null,null,null,null,null,null,null,null,null,null,null,null,null,null,null,null,null,null,{"$f":"IF(A730=\"LEITE\",\"LITROS\",IF(A730<>\"\",\"CABEÇAS\",\"\"))","v":""},null,null,null,null,null,null,null,null,null,null,null,null,null,null,null,"",null,null,null,null,null,""]
[null,null,null,null,null,null,null,null,null,null,null,null,null,null,null,null,null,null,{"$f":"IF(A731=\"LEITE\",\"LITROS\",IF(A731<>\"\",\"CABEÇAS\",\"\"))","v":""},null,null,null,null,null,null,null,null,null,null,null,null,null,null,null,"",null,null,null,null,null,""]
[null,null,null,null,null,null,null,null,null,null,null,null,null,null,null,null,null,null,{"$f":"IF(A732=\"LEITE\",\"LITROS\",IF(A732<>\"\",\"CABEÇAS\",\"\"))","v":""},null,null,null,null,null,null,null,null,null,null,null,null,null,null,null,"",null,null,null,null,null,""]
[null,null,null,null,null,null,null,null,null,null,null,null,null,null,null,null,null,null,{"$f":"IF(A733=\"LEITE\",\"LITROS\",IF(A733<>\"\",\"CABEÇAS\",\"\"))","v":""},null,null,null,null,null,null,null,null,null,null,null,null,null,null,null,"",null,null,null,null,null,""]
[null,null,null,null,null,null,null,null,null,null,null,null,null,null,null,null,null,null,{"$f":"IF(A734=\"LEITE\",\"LITROS\",IF(A734<>\"\",\"CABEÇAS\",\"\"))","v":""},null,null,null,null,null,null,null,null,null,null,null,null,null,null,null,"",null,null,null,null,null,""]
[null,null,null,null,null,null,null,null,null,null,null,null,null,null,null,null,null,null,{"$f":"IF(A735=\"LEITE\",\"LITROS\",IF(A735<>\"\",\"CABEÇAS\",\"\"))","v":""},null,null,null,null,null,null,null,null,null,null,null,null,null,null,null,"",null,null,null,null,null,""]
[null,null,null,null,null,null,null,null,null,null,null,null,null,null,null,null,null,null,{"$f":"IF(A736=\"LEITE\",\"LITROS\",IF(A736<>\"\",\"CABEÇAS\",\"\"))","v":""},null,null,null,null,null,null,null,null,null,null,null,null,null,null,null,"",null,null,null,null,null,""]
[null,null,null,null,null,null,null,null,null,null,null,null,null,null,null,null,null,null,{"$f":"IF(A737=\"LEITE\",\"LITROS\",IF(A737<>\"\",\"CABEÇAS\",\"\"))","v":""},null,null,null,null,null,null,null,null,null,null,null,null,null,null,null,"",null,null,null,null,null,""]
[null,null,null,null,null,null,null,null,null,null,null,null,null,null,null,null,null,null,{"$f":"IF(A738=\"LEITE\",\"LITROS\",IF(A738<>\"\",\"CABEÇAS\",\"\"))","v":""},null,null,null,null,null,null,null,null,null,null,null,null,null,null,null,"",null,null,null,null,null,""]
["DESPESA"]
["ATIVIDADE",null,null,null,null,null,"EMPRESA / GRUPO",null,null,null,null,null,null,"PARTICIPAÇÃO\n(%)",null,null,null,null,"UN. DE\nPRODUÇÃO",null,null,null,"PRODUTIVIDADE",null,null,null,"IMÓVEL",null,null,"DESPESA\n(R$/UN)",null,null,null,null,"VALOR TOTAL\n(R$)",null,null,null,null,null,"VALOR PART. \n(R$)"]
[{"$f":"IF(A719=\"\",\"\",A719)","v":""},null,null,null,null,null,{"$f":"IF(G719=\"\",\"\",G719)","v":""},null,null,null,null,null,null,{"$f":"IF(N719=\"\",\"\",N719)","v":""},null,null,null,null,{"$f":"IF(S719=\"\",\"\",S719)","v":""},null,null,null,{"$f":"IF(W719=\"\",\"\",W719)","v":""},null,null,null,{"$f":"IF(AA719=\"\",\"\",AA719)","v":""},null,null,null,null,null,null,null,{"$f":"IF(OR(AD741=\"\",W741=\"\"),\"\",AD741*W741)","v":""},null,null,null,null,null,{"$f":"IF(OR(AD741=\"\",W741=\"\",N741=\"\"),\"\",AD741*W741*N741)","v":""},null,null,null,null,null,{"$f":"SUM(AV741:AV760)","v":1},1]
["",null,null,null,null,null,"",null,null,null,null,null,null,"",null,null,null,null,{"$f":"IF(S720=\"\",\"\",S720)","v":""},null,null,null,{"$f":"IF(W720=\"\",\"\",W720)","v":""},null,null,null,{"$f":"IF(AA720=\"\",\"\",AA720)","v":""},null,null,null,null,null,null,null,{"$f":"IF(OR(AD742=\"\",W742=\"\"),\"\",AD742*W742)","v":""},null,null,null,null,null,{"$f":"IF(OR(AD742=\"\",W742=\"\",N742=\"\"),\"\",AD742*W742*N742)","v":""}]
["",null,null,null,null,null,"",null,null,null,null,null,null,"",null,null,null,null,"",null,null,null,"",null,null,null,"",null,null,null,null,null,null,null,"",null,null,null,null,null,""]
["",null,null,null,null,null,"",null,null,null,null,null,null,"",null,null,null,null,"",null,null,null,"",null,null,null,"",null,null,null,null,null,null,null,"",null,null,null,null,null,""]
["",null,null,null,null,null,"",null,null,null,null,null,null,"",null,null,null,null,"",null,null,null,"",null,null,null,"",null,null,null,null,null,null,null,"",null,null,null,null,null,""]
["",null,null,null,null,null,"",null,null,null,null,null,null,"",null,null,null,null,"",null,null,null,"",null,null,null,"",null,null,null,null,null,null,null,"",null,null,null,null,null,""]
["",null,null,null,null,null,"",null,null,null,null,null,null,"",null,null,null,null,"",null,null,null,"",null,null,null,"",null,null,null,null,null,null,null,"",null,null,null,null,null,""]
["",null,null,null,null,null,"",null,null,null,null,null,null,"",null,null,null,null,"",null,null,null,"",null,null,null,"",null,null,null,null,null,null,null,"",null,null,null,null,null,""]
["",null,null,null,null,null,"",null,null,null,null,null,null,"",null,null,null,null,"",null,null,null,"",null,null,null,"",null,null,null,null,null,null,null,"",null,null,null,null,null,""]
["",null,null,null,null,null,"",null,null,null,null,null,null,"",null,null,null,null,"",null,null,null,"",null,null,null,"",null,null,null,null,null,null,null,"",null,null,null,null,null,""]
["",null,null,null,null,null,"",null,null,null,null,null,null,"",null,null,null,null,"",null,null,null,"",null,null,null,"",null,null,null,null,null,null,null,"",null,null,null,null,null,""]
["",null,null,null,null,null,"",null,null,null,null,null,null,"",null,null,null,null,"",null,null,null,"",null,null,null,"",null,null,null,null,null,null,null,"",null,null,null,null,null,""]
["",null,null,null,null,null,"",null,null,null,null,null,null,"",null,null,null,null,"",null,null,null,"",null,null,null,"",null,null,null,null,null,null,null,"",null,null,null,null,null,""]
["",null,null,null,null,null,"",null,null,null,null,null,null,"",null,null,null,null,"",null,null,null,"",null,null,null,"",null,null,null,null,null,null,null,"",null,null,null,null,null,""]
["",null,null,null,null,null,"",null,null,null,null,null,null,"",null,null,null,null,"",null,null,null,"",null,null,null,"",null,null,null,null,null,null,null,"",null,null,null,null,null,""]
["",null,null,null,null,null,"",null,null,null,null,null,null,"",null,null,null,null,"",null,null,null,"",null,null,null,"",null,null,null,null,null,null,null,"",null,null,null,null,null,""]
["",null,null,null,null,null,"",null,null,null,null,null,null,"",null,null,null,null,"",null,null,null,"",null,null,null,"",null,null,null,null,null,null,null,"",null,null,null,null,null,""]
["",null,null,null,null,null,"",null,null,null,null,null,null,"",null,null,null,null,"",null,null,null,"",null,null,null,"",null,null,null,null,null,null,null,"",null,null,null,null,null,""]
["",null,null,null,null,null,"",null,null,null,null,null,null,"",null,null,null,null,"",null,null,null,"",null,null,null,"",null,null,null,null,null,null,null,"",null,null,null,null,null,""]
["",null,null,null,null,null,"",null,null,null,null,null,null,"",null,null,null,null,"",null,null,null,"",null,null,null,"",null,null,null,null,null,null,null,"",null,null,null,null,null,""]
[]
["MARGEM FINANCEIRA - PROJETADA"]
[]
["RECEITAS",null,null,null,null,null,null,null,null,null,null,null,null,null,null,null,null,{"$f":"IF(SUM(R765:W766)+SUM(R772:W775)=0,0,SUM(R765:W766)+SUM(R772:W775))","v":0},null,null,null,null,null,"DESPESAS",null,null,null,null,null,null,null,null,null,null,null,null,null,null,null,{"$f":"IF(SUM(AN765:AS769)+SUM(AN772:AS775)+AN770=0,0,SUM(AN765:AS769)+SUM(AN772:AS775)+AN770*12)","v":0}]
["RECEITA PREVISTA ATIVIDADES AGRÍCOLAS",null,null,null,null,null,null,null,null,null,null,null,null,null,null,null,null,{"$f":"SUM(AO672:AS691)","v":0},null,null,null,null,null,"CUSTO PREVISTO ATIVIDADES AGRÍCOLAS",null,null,null,null,null,null,null,null,null,null,null,null,null,null,null,{"$f":"SUM(AO694:AS713)","v":0}]
["RECEITA PREVISTA ATIVIDADES PECUÁRIAS",null,null,null,null,null,null,null,null,null,null,null,null,null,null,null,null,{"$f":"SUM(AO719:AS738)","v":0},null,null,null,null,null,"CUSTO PREVISTO ATIVIDADES PECUÁRIAS",null,null,null,null,null,null,null,null,null,null,null,null,null,null,null,{"$f":"SUM(AO741:AS760)","v":0}]
[null,null,null,null,null,null,null,null,null,null,null,null,null,null,null,null,null,null,null,null,null,null,null,"ARRENDAMENTOS"]
[null,null,null,null,null,null,null,null,null,null,null,null,null,null,null,null,null,null,null,null,null,null,null,"JUROS DE FINANCIAMENTOS"]
[null,null,null,null,null,null,null,null,null,null,null,null,null,null,null,null,null,null,null,null,null,null,null,"MANUTENÇÃO DE MAQUINÁRIO"]
[null,null,null,null,null,null,null,null,null,null,null,null,null,null,null,null,null,null,null,null,null,null,null,"MANUTENÇÃO FAMILIAR MENSAL"]
["OUTRAS RECEITAS",null,null,null,null,null,null,null,null,null,null,null,null,null,null,null,null,null,null,null,null,null,null,"OUTRAS DESPESAS"]
[]
[]
[]
[]
["MARGEM FINANCEIRA LÍQUIDA:",null,null,null,null,null,null,null,null,null,null,null,null,null,null,null,null,null,null,null,null,null,null,null,null,{"$f":"IF(AND(R764=\"\",AN764=\"\"),\"\",R764-AN764)","v":0}]
[]
["QUESTIONÁRIO RISCO SÓCIO AMBIENTAL"]
[]
["QUESTÃO 01"]
["Se a área de produção ou do proprietário/arrendador/parceiro faz parte do bioma Amazônia ou Pantanal, declara que cumpre com as exigências ambientais e legais, conforme disposto na Lei n° 12.651/2012, no que se refere às áreas de Preservação Permanente e Reserva Legal?  "]
[]
[]
["RESPOSTA:"]
[]
["QUESTÃO 02"]
[" Se a resposta anterior for “Não”, declara que há a compensação da Reserva Legal em outra propriedade?"]
[]
["RESPOSTA:"]
[]
["QUESTÃO 03"]
["A atividade está sujeita ao licenciamento ambiental conforme a Resolução CONAMA n° 237/1997 ou normativo estadual/Municipal, se houver? Se \"Sim\", declara possuir o licenciamento necessário vigente?  "]
[]
[]
["RESPOSTA:"]
[]
["QUESTÃO 04"]
["Na realização de suas atividades utiliza produtos químicos (ex.: agrotóxicos e fertilizantes) não registrados em órgão federal, conforme as diretrizes e exigências dos órgãos federais responsáveis pelos setores saúde, meio ambiente e agricultura (Lei n° 7.802/1989)?  "]
[]
[]
["RESPOSTA:"]
[]
["QUESTÃO 05"]
["É realizada a tríplice lavagem ou tecnologia equivalente, procedimentos para devolução, destinação, transporte, reciclagem, reutilização e inutilização de embalagens vazias de agrotóxicos (§ 4° Artigo 6° da Lei n° 7.802/1989)?  "]
[]
[]
["RESPOSTA:"]
[]
["QUESTÃO 06"]
["O uso da água na área de produção e/ou construção está em conformidade com as normas de utilização de recursos hídricos (Lei n° 9.433/1997)?  "]
[]
[]
["RESPOSTA:"]
[]
["QUESTÃO 07"]
["Na produção e/ou execução das atividades declara estar em conformidade com a legislação trabalhista vigente, em especial o não emprego de mão de obra em condições análogas a escravo ou infantil, bem como cumpre com as regras atinentes à jornada de trabalho e ao pagamento de todos os salários, despesas e encargos decorrentes da legislação?  "]
[]
[]
["RESPOSTA:"]
[]
["QUESTÃO 08"]
["Possui débitos trabalhistas inadimplidos perante a Justiça do Trabalho?  "]
[]
[]
["RESPOSTA:"]
[]
["QUESTÃO 09"]
["Nos casos em que o recurso possuir uma destinação definida na contratação, a propriedade beneficiada/garantidora é ou foi objeto de inquérito, multas, embargos ou auto de infração relacionado às questões socioambientais nos últimos 5 anos? "]
[]
[]
["RESPOSTA:"]
[]
["QUESTÃO 10"]
["Houve condenação com sentença judicial transitada em julgado relacionada às questões socioambientais nos últimos 5 anos? "]
[]
[]
["RESPOSTA:"]
[]
["QUESTÃO 11"]
["Quando há infrações ou embargos de ordem ambiental e/ou social, o infrator poderá firmar TAC – Termo de Ajustamento de Conduta para regularização. Nos últimos 5 anos, as atividades da empresa/produtor rural foram objeto de inquérito, multa, auto de infração ou TAC em decorrência de questões sociais ou ambientais?  "]
[]
[]
["RESPOSTA:"]
[]
["QUESTÃO 12"]
["A sua atividade está exposta a impactos relacionados ao clima? Exemplos de impactos relacionados ao clima: período de seca prolongado; escassez/falta de água; chuvas intensas, deslizamentos de terra etc."]
[]
[]
["RESPOSTA:"]
["Se positivo, informar os impactos relacionados ao clima que a sua atividade está exposta:"]
[]
[]
[]
[]
["QUESTÃO 13"]
["Declara adotar iniciativas de combate aos riscos climáticos? Exemplos de iniciativas de combate aos riscos climáticos: redução do consumo de água; reflorestamento; adoção de energia de fontes renováveis na produção; geração própria de energia solar; eólica ou de pequena central hidrelétrica; metas para redução das emissões de gases efeito estufa; diagnóstico de emissão de gases de efeito estufa etc.  "]
[]
[]
["RESPOSTA:"]
["Se positivo, informar as iniciativas adotadas de combate aos riscos climáticos."]
[]
[]
[]
[]
[]
[]
[]
[]
[]
["DATA DE REFERÊNCIA:",null,null,null,null,null,null,null,null,null,"/",null,null,null,null,null,"/"]
[]
[]
[]
[]
["________________________________________",null,null,null,null,null,null,null,null,null,null,null,null,null,null,null,null,null,null,null,null,null,null,null,null,"________________________________________"]
[{"$f":"IF(TP_PESSOA=\"FÍSICA\",UPPER(D10),UPPER(D21))","v":""},null,null,null,null,null,null,null,null,null,null,null,null,null,null,null,null,null,null,null,null,null,null,null,null,{"$f":"UPPER('INFORMAÇÕES GERAIS'!H61)","v":""}]
[{"$f":"IF(G8=\"JURÍDICA\",\"Responsável pela Empresa\",\"Associado\")","v":"Associado"},null,null,null,null,null,null,null,null,null,null,null,null,null,null,null,null,null,null,null,null,null,null,null,null,{"$f":"CONCATENATE(\"Responsável Técnico - \",ÓRGÃO,\" \",N_ÓRGÃO)","v":"Responsável Técnico - CREA / CFTA: "}]

{"sheet":"EMPRESAS ELABORADORAS","index":1,"n_rows":13,"n_cols":6,"rows_kept":13,"cut":false,"hidden":true,"merged":[]}
["NOME","CNPJ","ENDEREÇO","CIDADE","TELEFONE","EMAIL"]
["AGROMINAS - APA ASSESSORIA E PLANEJAMENTO AGROPECUÁRIO LTDA",7357636000134,"RUA DO BÁLSAMO, Nº 500, BAIRRO CAMPESTRE","SÃO GOTARDO","(34)  3671-3425","AGROMINASSG@YAHOO.COM.BR"]
["AGROSOLUÇÕES - AFA ASSESSORIA PROJETOS E PLANEJAMENTOS LTDA",33478456000110,"AV. RUI BARBOSA, 174A, CENTRO","SÃO GOTARDO","(34) 3671-3334","AGROSOLUCOES@AGROSOLUCOESLTDA.COM.BR"]
["COOPADAP - COOPERATIVA AGROPECUÁRIA DO ALTO PARANAÍBA",86675642000106,"ROD MG 235 KM 89, 443 - GUARDA DOS FERREIROS","SÃO GOTARDO","(34) 3616-1200","DEBORAPRATES@COOPADAP.COM.BR"]
["ÉLCIO EDUARDO URBANO JÚNIOR",7244640692,"RUA CORONEL FONTE BOA - Nº 725 - CENTRO","SÃO GOTARDO","(34) 99823-4210","URBANOELCIO@YAHOO.COM.BR"]
["EMATER-MG",19198118000102,"RUA BENTO FERREIRA DOS SANTOS, 160 S02, CENTRO","SÃO GOTARDO","(34) 3671-1355","SAO.GOTARDO@EMATER.MG.GOV.BR"]
["FORTPLAN - VICTOR SATORU ALVES MUKAEDA 10149154658",41465317000180,"AV. TABELIÃO JOÃO LOPES, Nº 1064, CAMPESTRE","SÃO GOTARDO","(34) 99944-7158","FORTPLAN@OUTLOOK.COM"]
["NIVALDO LUCAS MARTINS",10839110669,"RUA CURITIBA, N° 95, BAIRRO SANTA TEREZINHA","SÃO GOTARDO","(34) 99931-0052","THIAGOFERNANDES@SHIMADAAGRO.COM.BR"]
["NOVA CONSULTORIA - JUSCELINO ALEXANDRINO MACHADO EIRELI",14409336000117,"AV. PRESIDENTE VARGAS, 245, CENTRO","SÃO GOTARDO","(34) 3671-2396","NOVACONSULTORIAEPROJETOS@HOTMAIL.COM"]
["PAULO MITURU YAMAGAMI",97037680834,"AV. RIO TOCANTINS, N° 70, BAIRRO SOL NASCENTE","SÃO GOTARDO","(34) 99983-0655","AGROLOGICA@YMAIL.COM"]
["Rural Credi - ECRM Assessoria e projetos para o agronegócio Ltda.",50623756000165,"RUA PINHEIRO MACHADO Nº 245","SÃO GOTARDO","(34) 99815-1120","ruralcredicreditorural@hotmail.com"]
["PROGEO - ISAIAS DE SOUZA SANTOS",29368223000198,"RUA TRISTAO FURTADO, Nº 114, CENTRO","RIO PARANAÍBA","(34) 99961-9993","PROGEORP@GMAIL.COM"]
["VALOR SERVICOS FINANCEIROS LTDA",26311957000142,"RUA JOÃO ALVES FRANCO Nº 50,CENTRO","SÃO GOTARDO","(34) 99904-2818","VALOR.CREDITORURAL@GMAIL.COM"]

{"sheet":"LISTA","index":2,"n_rows":10,"n_cols":17,"rows_kept":10,"cut":false,"hidden":true,"merged":[]}
["LEITE",null,"ESTADO CIVIL",null,"TIPO EMPRESA",null,null,null,"NÃO ALFABETIZADO",null,null,null,null,"SÓCIO",null,null,"IR"]
["CORTE (CRIA)",null,"SOLTEIRO(A)",null,"MICROEMPREENDEDOR INDIVIDUAL (MEI)",null,null,null,"ATÉ 4ª SÉRIE INCOMPLETA DO ENSINO FUNDAMENTAL",null,null,null,null,"SÓCIO ADMINISTRADOR",null,null,"Certidão"]
["CORTE (RECRIA)",null,"CASADO(A)",null,"MICROEMPRESA (ME)",null,null,null,"4ª SÉRIE COMPLETA DO ENSINO FUNDAMENTAL",null,null,null,null,null,null,null,"Contrato de Compra e Venda"]
["CORTE (ENGOR.)",null,"VIÚVO(A)",null,"EMPRESA DE PEQUENO PORTE (EPP)",null,null,null,"DA 5ª À 8ª SÉRIE DO ENSINO FUNDAMENTAL",null,null,null,null,null,null,null,"Outros"]
[null,null,"DIVORCIADO(A)",null,"EMPRESA DE MÉDIO PORTE",null,null,null,"ENSINO FUNDAMENTAL COMPLETO (ANTIGO 1º GRAU)"]
[null,null,"SEPARADO(A)",null,"GRANDE EMPRESA",null,null,null,"ENSINO MÉDIO INCOMPLETO (ANTIGO 2º GRAU)"]
[null,null,"DESQUITADO(A)",null,null,null,null,null,"ENSINO MÉDIO COMPLETO (ANTIGO 2º GRAU)"]
[null,null,"UNIÃO ESTÁVEL",null,null,null,null,null,"EDUCAÇÃO SUPERIOR INCOMPLETA"]
[null,null,null,null,null,null,null,null,"EDUCAÇÃO SUPERIOR COMPLETA"]
[null,null,null,null,null,null,null,null,"PÓS-GRADUAÇÃO / MESTRADO / DOUTORADO"]

{"sheet":"LISTA_PATRIMÔNIO","index":3,"n_rows":21,"n_cols":11,"rows_kept":21,"cut":false,"hidden":true,"merged":[]}
["LOCALIZAÇÃO","TIPO USO","TIPO BEM","TIPO BEM",null,null,null,null,"TIPO_SEMOVENTES",null,"REF"]
["URBANO","RESIDENCIAL","CASA","VEÍCULO",null,null,null,null,"SUÍNOS",null,1]
["RURAL","COMERCIAL","APARTAMENTO","MÁQUINA",null,null,null,null,"BUBALINOS",null,2]
[" ","INDUSTRIAL","PRÉDIO","EQUIPAMENTO",null,null,null,null,"EQUINOS",null,3]
[null,"RURAL","TERRENO",null,null,null,null,null,"OVINOS",null,4]
[null,null,"PRÉDIO",null,null,null,null,null,"APICULTURA",null,5]
[null,null,"TERRENO",null,null,null,null,null,"ASININOS",null,6]
[null,null,"LOJA",null,null,null,null,null,"AVICULTURA",null,7]
[null,null,"SALA",null,null,null,null,null,"CANINOS",null,8]
[null,null,"GALPÃO",null,null,null,null,null,"CAPRINOS",null,9]
[null,null,"PRÉDIO",null,null,null,null,null,"PISCICULTURA",null,10]
[null,null,"TERRENO",null,null,null,null,null,"RANICULTURA",null,11]
[null,null,"FAZENDA",null,null,null,null,null,"SERICICULTURA",null,12]
[null,null,"SÍTIO",null,null,null,null,null,null,null,13]
[null,null,"RANCHO",null,null,null,null,null,null,null,14]
[null,null,"CHÁCARA",null,null,null,null,null,null,null,15]
[null,null,"ESTÂNCIA",null,null,null,null,null,null,null,16]
[null,null,"OUTRO",null,null,null,null,null,null,null,17]
[null,null,null,null,null,null,null,null,null,null,18]
[null,null,null,null,null,null,null,null,null,null,19]
[null,null,null,null,null,null,null,null,null,null,20]

{"sheet":"LISTAS","index":4,"n_rows":32,"n_cols":29,"rows_kept":32,"cut":false,"hidden":true,"merged":[]}
["CULTURAS","UNIDADES","DIA","MÊS","ANO","ASSISTENCIA TÉCNICA","GARANTIA","ATIVIDADE FINANCIADA","ATIVIDADE","PRODUTO","MEDIDA","VALOR","FINANCIADO","PRAZO MÁXIMO","1 MÊS",1,null,null,"NÍVEL TECNOLÓGICO","SISTEMA PRODUTIVO","ANGUS","BEZERRA","BEZERRA","0 a 6",{"$f":"YEAR(TODAY())-1","v":2023},null,"PRODUTOR",null,"PERIODICIDADE"]
[null,"UN",1,"JANEIRO",{"$f":"YEAR(TODAY())","v":2024},"SOMENTE ELABORAÇÃO DO PROJETO","PENHOR DOS ANIMAIS","BOVINOCULTURA DE LEITE","CRIA","CABEÇAS DE BEZERRO","CAB/MATRIZ","(POR CABEÇA)","MATRIZ BOVINA",12,"2 MESES",2,null,null,"EXTENSIVO","PASTAGEM","BONSMARA","BEZERRO","BEZERRA","7 a 12",{"$f":"Y1-1","v":2022},null,"PEQUENO PRODUTOR",null,"MENSAL"]
[null,"KG",2,"FEVEREIRO",{"$f":"E2+1","v":2025},"PROJETO + ASSISTÊNCIA","PENHOR DOS ANIMAIS + AVAIS","BOVINOCULTURA DE CORTE","RECRIA","CABEÇAS DE BOI MAGRO","KG PV/DIA/BEZ","(POR KG)","BEZERRO P/ RECRIA",12,"3 MESES",3,null,null,"SEMI-INTENSIVO","PASTAGEM IRRIGADA","CARACU","NOVILHA","BEZERRO","0 a 6",2021,null,"MÉDIO PRODUTOR",null,"SEMESTRAL"]
[null,"TON",3,"MARÇO",{"$f":"E3+1","v":2026},null,"PENHOR DOS ANIMAIS + GARANTIA REAL",null,"ENGORDA","CABEÇAS DE BOI GORDO","KG PV (GP)/DIA","(POR KG)","BOI MAGRO P/ ENGORDA",12,"4 MESES",4,null,null,"INTENSIVO","PASTAGEM + SUPLEMENTAÇÃO","BELGIAN BLUE","NOVILHO","BEZERRO","7 a 12",2020,null,"GRANDE PRODUTOR",null,"ANUAL"]
[null,"GR",4,"ABRIL",2027,null,"SOMENTE AVAIS",null,"RECRIA / ENGORDA","CABEÇAS DE BOI GORDO","KG PV (GP)/DIA","(POR KG)","BEZERRO P/ REC. E ENG.",24,"5 MESES",5,null,null,null,"PASTAGEM IRRIGADA + SUPLEMENT.","BRAFORD","VACA","BOI","25 a 30",2019]
[null,"m",5,"MAIO",2028,null,"SOMENTE GARANTIA REAL",null,"ENGORDA EM CONFINAMENTO","CABEÇAS DE BOI GORDO","KGPV (GP)/DIA","(POR KG)","BOI MAGRO P/ ENGORDA",6,"6 MESES",6,null,null,null,"ESTABULAMENTO","DEVON","BOI","BOI","30 a 36",2018]
[null,"SACO",6,"JUNHO",2029,null,"AVAIS + GARANTIA REAL",null,"PRODUÇÃO DE LEITE","LITROS DE LEITE","L/DIA/MATRIZ","(POR LITRO)","MATRIZ BOVINA",12,"7 MESES",7,null,null,null,null,"BRAHMAN",null,"BOI",{"$f":"TEXT(\"+ de 36\",1)","v":"+ de 36"},2017]
[null,"DOSE",7,"JULHO",2030,null,null,null,null,null,null,null,null,null,"8 MESES",8,null,null,null,null,"BRANGUS ",null,"NOVILHA","13 a 18",2016]
[null,"DIÁRIA",8,"AGOSTO",2031,null,null,null,null,null,null,null,null,null,"9 MESES",9,null,null,null,null,"CANCHIM",null,"NOVILHA","19 a 24"]
[null,"HORA",9,"SETEMBRO",2032,null,null,null,null,null,null,null,null,null,"10 MESES",10,null,null,null,null,"CHAROLÊS",null,"NOVILHA","25 a 30"]
[null,"L",10,"OUTUBRO",2033,null,null,null,null,null,null,null,null,null,"11 MESES",11,null,null,null,null,"CHIANINA",null,"NOVILHO","19 a 24"]
[null,"ml",11,"NOVEMBRO",2034,null,null,null,null,null,null,null,null,null,"12 MESES",12,null,null,null,null,"GIR",null,"NOVILHO","13 a 18"]
[null,null,12,"DEZEMBRO",2035,null,null,null,null,null,null,null,null,null,"13 MESES",13,null,null,null,null,"GUZERÁ",null,"NOVILHO","25 a 30"]
[null,null,13,null,null,null,null,null,"CRIA / RECRIA","BOI MAGRO (CABEÇA)","CAB/MATRIZ","(POR CABEÇA)","MATRIZ BOVINA",null,"14 MESES",14,null,null,null,null,"HEREFORD",null,"VACA","25 a 30"]
[null,null,14,null,null,null,null,null,"CRIA / RECRIA / ENGORDA","BOI GORDO (CABEÇA)","CAB/MATRIZ","(POR CABEÇA)","MATRIZ BOVINA",null,"15 MESES",15,null,null,null,null,"INDUBRASIL",null,"VACA","30 a 36"]
[null,null,15,null,null,null,null,null,null,null,null,null,null,null,"16 MESES",16,null,null,null,null,"LIMOUSIN",null,"VACA",{"$f":"TEXT(\"+ de 36\",1)","v":"+ de 36"}]
[null,null,16,null,null,null,null,null,null,null,null,null,null,null,"17 MESES",17,null,null,null,null,"MARCHIGIANA"]
[null,null,17,null,null,null,null,null,null,null,null,null,null,null,"18 MESES",18,null,null,null,null,"NELORE"]
[null,null,18,null,null,null,null,null,null,null,null,null,null,null,"19 MESES",19,null,null,null,null,"PIEMONTÊS"]
[null,null,19,null,null,null,null,null,null,null,null,null,null,null,"20 MESES",20,null,null,null,null,"RED ANGUS"]
[null,null,20,null,null,null,null,null,null,null,null,null,null,null,"21 MESES",21,null,null,null,null,"SANTA GERTRUDIS"]
[null,null,21,null,null,null,null,null,null,null,null,null,null,null,"22 MESES",22,null,null,null,null,"SENEPOL"]
[null,null,22,null,null,null,null,null,null,null,null,null,null,null,"23 MESES",23,null,null,null,null,"SIMENTAL"]
[null,null,23,null,null,null,null,null,null,null,null,null,null,null,"24 MESES",24,null,null,null,null,"TABAPUÃ"]
[null,null,24,null,null,null,null,null,null,null,null,null,null,null,null,null,null,null,null,null,"CRUZ. INDUSTRIAL"]
[null,null,25,null,null,null,null,null,null,null,null,null,null,null,null,null,null,null,null,null,"OUTROS"]
[null,null,26]
[null,null,27]
[null,null,28]
[null,null,29]
[null,null,30]
[null,null,31]